Workbook

Sheet Home
B19: Provision-ISR team at your service
B20: pricelist terms- Ex-Works Shenzhen / FCA Den Hoorn NL prices are in USD Minimum order- 5,000$

Sheet NVR
C1: NVR
A4: =IF(AND(IFERROR(SEARCH("None PoE",l0&5,1),0)>=1,IFERROR(SEARCH("PoE",l0&5,1),0)>=1,IFERROR(SEARCH("RAID",l0&5,1),0)>=1,IFERROR(SEARCH("Face",l0&5,1),0)>=1,IFERROR(SEARCH("DDA Analytic",l0&5,1),0)>=1,IFERROR(SEARCH("FishEye",l0&5,1),0)>=1),1,0) -> 0 | C4: Model | D4: Free | E4: Description | F4: No. of Channels | G4: Max Resolution | H4: Bandwidth | I4: FPS | J4: Video Outputs | K4: HDD | L4: Audio Input | M4: Audio Output | N4: Dry Contact | O4: Special Features | P4: NDAA | Q4: China Price | R4: Old Price | S4: China Availability | T4: Netherlands Price | U4: Old Price | V4: Netherland Availability | W4: Unit Per Carton | X4: MOQ | Y4: Remarks
A5: 1 | C5: NVR5-4100X+(MM) | E5: H.265 Stand Alone NVR, 4CH 5MP at 25fps. MM case | F5: 4 | G5: 5MP | H5: 32Mbps/ 32Mbps | I5: 25fps 5MP | J5: HDMI, VGA | K5: 1 of 6TB max | L5: Based on IPC Only | M5: Based on IPC Only | N5: Based on IPC Only | O5: None PoE DDA Analytic LPR | P5: No | Q5: $33.00 | S5: EOL | T5: =SUM((Q5*1.095)+((Q5*1.07)*Sheet1!C$5)) -> $36.14 | V5: Yes | W5: 5 | X5: 5 | Y5: EOL, replaced by NVR5-4100XN(MM)
C6: NVR5-4100XN(MM) | E6: H.265 Stand Alone NDAA NVR, 4CH 5MP at 25fps. MM case | F6: 4 | G6: 5MP | H6: 40Mbps/ 64Mbps | I6: 25fps 5MP | J6: HDMI, VGA | K6: 1 of 6TB Max | L6: Based on IPC Only | M6: Based on IPC Only | N6: Based on IPC Only | O6: None PoE DDA Analytic LPR | P6: Yes | Q6: $28.00 | S6: Yes | T6: =SUM((Q6*1.095)+((Q6*1.07)*Sheet1!C$5)) -> $30.66 | V6: Mar | W6: 5 | X6: 5 | Y6: New Model
A7: 1 | C7: NVR5-4100PX+(MM) | E7: H.265 Stand Alone NVR, 4CH 5MP at 25fps, MM case with PoE | F7: 4 | G7: 5MP | H7: 24Mbps/ 24Mbps | I7: 25fps 5MP | J7: HDMI, VGA | K7: 1 of 6TB Max | L7: Based on IPC Only | M7: Based on IPC Only | N7: Based on IPC Only | O7: with PoE DDA Analytic LPR | P7: No | Q7: $58.50 | S7: EOL | T7: =SUM((Q7*1.095)+((Q7*1.07)*Sheet1!C$5)) -> $64.06 | V7: Yes | W7: 5 | X7: 5 | Y7: EOL, replaced by NVR5-4100PXN(MM)
C8: NVR5-4100PXN(MM) | E8: H.265 Stand Alone NDAA NVR, 4CH 5MP at 25fps, MM case with PoE | F8: 4 | G8: 5MP | H8: 40Mbps/ 64Mbps | I8: 25fps 5MP | J8: HDMI, VGA | K8: 1 of 6TB Max | L8: Based on IPC Only | M8: Based on IPC Only | N8: Based on IPC Only | O8: with PoE DDA Analytic LPR | P8: Yes | Q8: $45.00 | S8: Yes | T8: =SUM((Q8*1.095)+((Q8*1.07)*Sheet1!C$5)) -> $49.28 | V8: Mar | W8: 5 | X8: 5 | Y8: New Model
C9: NVR5-8200XN(MM) | E9: H.265 Stand Alone NDAA NVR, 8CH 5MP at 25fps. MM case | F9: 8 | G9: 5MP | H9: 64Mbps/ 64Mbps | I9: 25fps 5MP | J9: HDMI, VGA | K9: 1 of 6TB Max | L9: Based on IPC Only | M9: Based on IPC Only | N9: Based on IPC Only | O9: None PoE DDA Analytic LPR | P9: Yes | Q9: $33.00 | S9: Yes | T9: =SUM((Q9*1.095)+((Q9*1.07)*Sheet1!C$5)) -> $36.14 | V9: Yes | W9: 5 | X9: 5
A10: 1 | C10: NVR8-8200FA | E10: H.265 Stand Alone NVR, 8CH 8MP at 25fps. Small 1U case | F10: 8 | G10: 8MP | H10: 80Mbps/ 80Mbps | I10: 25fps 8MP | J10: HDMI 4K, VGA | K10: 1 of 8TB Max | L10: 1+IPC | M10: 1+IPC | N10: In- 8+IPC Out- 4+IPC | O10: None PoE Face DDA Analytic FishEye LPR | P10: No | Q10: $88.00 | S10: EOL | T10: =SUM((Q10*1.095)+((Q10*1.07)*Sheet1!C$5)) -> $96.36 | V10: Yes | W10: 4 | X10: 4 | Y10: EOL, replaced by NVR12-8200FAN
C11: NVR12-8200FAN | E11: H.265 Stand Alone NVR, 8CH 12MP at 25fps. Small 1U case | F11: 8 | G11: 12MP | H11: 80Mbps/ 80Mbps | I11: 25fps 8MP | J11: HDMI 4K, VGA | K11: 1 of 8TB Max | L11: 1+IPC | M11: 1+IPC | N11: In- 8+IPC Out- 4+IPC | O11: None PoE Face DDA Analytic FishEye LPR | P11: Yes | Q11: $88.00 | S11: Yes | T11: =SUM((Q11*1.095)+((Q11*1.07)*Sheet1!C$5)) -> $96.36 | V11: Yes | W11: 4 | X11: 4 | Y11: New Model
A12: 1 | C12: NVR8-8200N | E12: H.265 Stand Alone NVR, 8CH 8MP at 25fps. Small 1U case | F12: 8 | G12: 8MP | H12: 80Mbps/ 80Mbps | I12: 25fps 8MP | J12: HDMI 4K, VGA | K12: 1 of 8TB Max | L12: 1+IPC | M12: 1+IPC | N12: Based on IPC Only | O12: None PoE DDA Analytic LPR Check Point Protect | P12: Yes | Q12: $57.00 | S12: Yes | T12: =SUM((Q12*1.095)+((Q12*1.07)*Sheet1!C$5)) -> $62.42 | V12: Yes | W12: 4 | X12: 4
A13: 1 | C13: NVR5-8200PX+(MM) | E13: H.265 Stand Alone NVR, 8CH 5MP at 25fps, MM case with PoE | F13: 8 | G13: 5MP | H13: 40Mbps/ 40Mbps | I13: 25fps 5MP | J13: HDMI, VGA | K13: 1 of 6TB Max | L13: Based on IPC Only | M13: Based on IPC Only | N13: Based on IPC Only | O13: with PoE DDA Analytic LPR | P13: No | Q13: $88.00 | S13: EOL | T13: =SUM((Q13*1.095)+((Q13*1.07)*Sheet1!C$5)) -> $96.36 | V13: Yes | W13: 5 | X13: 5 | Y13: EOL, replaced by NVR5-8200PXN(MM)
C14: NVR5-8200PXN(MM) | E14: H.265 Stand Alone NDAA NVR, 8CH 5MP at 25fps, MM case with PoE | F14: 8 | G14: 5MP | H14: 64Mbps/ 64Mbps | I14: 25fps 5MP | J14: HDMI, VGA | K14: 1 of 6TB Max | L14: Based on IPC Only | M14: Based on IPC Only | N14: Based on IPC Only | O14: with PoE DDA Analytic LPR | P14: Yes | Q14: $60.00 | S14: Yes | T14: =SUM((Q14*1.095)+((Q14*1.07)*Sheet1!C$5)) -> $65.70 | V14: Feb | W14: 5 | X14: 5 | Y14: New Model
A15: 1 | C15: NVR8-8200PFA | E15: H.265 Stand Alone NVR, 8CH PoE 8MP at 25fps. Small 1U case | F15: 8 | G15: 8MP | H15: 80Mbps/ 80Mbps | I15: 25fps 8MP | J15: HDMI 4K, VGA | K15: 1 of 8TB Max | L15: 1+IPC | M15: 1+IPC | N15: In- 8+IPC Out- 4+IPC | O15: with PoE Face DDA Analytic FishEye LPR | P15: No | Q15: $140.00 | S15: EOL | T15: =SUM((Q15*1.095)+((Q15*1.07)*Sheet1!C$5)) -> $153.30 | V15: Yes | W15: 4 | X15: 4 | Y15: EOL, replaced by NVR12-8200PFAN
C16: NVR12-8200PFAN | E16: H.265 Stand Alone NDAA NVR, 8CH PoE 12MP at 25fps. Small 1U case | F16: 8 | G16: 12MP | H16: 80Mbps/ 80Mbps | I16: 25fps 8MP | J16: HDMI 4K, VGA | K16: 1 of 8TB Max | L16: 1+IPC | M16: 1+IPC | N16: In- 8+IPC Out- 4+IPC | O16: with PoE Face DDA Analytic FishEye LPR | P16: Yes | Q16: $140.00 | S16: Yes | T16: =SUM((Q16*1.095)+((Q16*1.07)*Sheet1!C$5)) -> $153.30 | V16: Yes | W16: 4 | X16: 4 | Y16: New Model
A17: 1 | C17: NVR8-16400AN(1U) | E17: H.265 Stand Alone NVR, 16CH 8MP at 25fps. 1U case | F17: 16 | G17: 8MP | H17: 96Mbps/ 96Mbps | I17: 25fps 8MP | J17: HDMI 4K, VGA | K17: 2 of 8TB Max | L17: 1+IPC | M17: 1+IPC | N17: In- 4+IPC Out- 1+IPC | O17: None PoE DDA Analytic LPR Check Point Protect | P17: Yes | Q17: $78.00 | S17: EOL | T17: =SUM((Q17*1.095)+((Q17*1.07)*Sheet1!C$5)) -> $85.41 | V17: Yes | W17: 4 | X17: 4 | Y17: EOL, repalced by NVR8-16400AN(1U)-V2
C18: NVR8-16400AN(1U)-V2 | E18: H.265 Stand Alone NDAA NVR, 16CH 8MP at 25fps. 1U case | F18: 16 | G18: 8MP | H18: 96Mbps/ 96Mbps | I18: 25fps 8MP | J18: HDMI 4K, VGA | K18: 2 of 8TB Max | L18: 1+IPC | M18: 1+IPC | N18: In- 4+IPC Out- 1+IPC | O18: None PoE DDA Analytic LPR Check Point Protect | P18: Yes | Q18: $75.00 | S18: Yes | T18: =SUM((Q18*1.095)+((Q18*1.07)*Sheet1!C$5)) -> $82.13 | V18: Mar | W18: 4 | X18: 4 | Y18: New Model
C19: NVR12-16400FAN(1U) | E19: H.265 Stand Alone NDAA NVR, 16CH 12MP at 25fps. 1U case, support Face recognition | F19: 16 | G19: 12MP | H19: 160Mbps/ 160Mbps | I19: 25fps 8MP | J19: HDMI 4K, VGA | K19: 2 of 8TB Max | L19: 1+IPC | M19: 1+IPC | N19: In- 8+IPC Out- 4+IPC | O19: None PoE Face DDA Analytic FishEye LPR | P19: Yes | Q19: $125.00 | S19: Yes | T19: =SUM((Q19*1.095)+((Q19*1.07)*Sheet1!C$5)) -> $136.88 | V19: Yes | W19: 4 | X19: 4
A20: 1 | C20: NVR8-16400PFA(1U) | E20: H.265 Stand Alone NVR, 16CH PoE 8MP at 25fps. 1U case, support Face recognition | F20: 16 | G20: 8MP | H20: 160Mbps/ 160Mbps | I20: 25fps 8MP | J20: HDMI 4K, VGA | K20: 2 of 8TB Max | L20: 1+IPC | M20: 1+IPC | N20: In- 8+IPC Out- 4+IPC | O20: with PoE Face DDA Analytic FishEye LPR | P20: No | Q20: $209.00 | S20: EOL | T20: =SUM((Q20*1.095)+((Q20*1.07)*Sheet1!C$5)) -> $228.86 | V20: Yes | W20: 4 | X20: 4 | Y20: EOL, replaced by NVR12-16400PFAN(1U)
C21: NVR12-16400PFAN(1U) | E21: H.265 Stand Alone NDAA NVR, 16CH PoE 12MP at 25fps. 1U case, support Face recognition | F21: 16 | G21: 12MP | H21: 160Mbps/ 160Mbps | I21: 20fps 12MP | J21: HDMI 4K, VGA | K21: 2 of 8TB Max | L21: 1+IPC | M21: 1+IPC | N21: In- 8+IPC Out- 4+IPC | O21: with PoE Face DDA Analytic FishEye LPR | P21: Yes | Q21: $209.00 | S21: Yes | T21: =SUM((Q21*1.095)+((Q21*1.07)*Sheet1!C$5)) -> $228.86 | V21: Mar | W21: 4 | X21: 4 | Y21: New Model
A22: 1 | C22: NVR12-32800FN-16P(2U) | E22: H.265 Stand Alone NVR, 32CH 8MP at 25fps, 2U case with 16CH PoE, support Face recognition | F22: 32 | G22: 12MP | H22: 192Mbps/ 192Mbps | I22: 20fps 12MP | J22: 2 of HDMI, 4K, VGA | K22: 8 of 10TB Max | L22: 1+IPC | M22: 1+IPC | N22: In- 16+IPC Out- 4+IPC | O22: with PoE Face DDA Analytic FishEye LPR Check Point Protect | P22: Yes | Q22: $300.00 | S22: Yes | T22: =SUM((Q22*1.095)+((Q22*1.07)*Sheet1!C$5)) -> $328.50 | V22: Yes | W22: 2 | X22: 1
A23: 1 | C23: NVR12-32800FAN(1U) | E23: H.265 Stand Alone NVR, 32CH 12MP at 20fps, 1U case, support Face recognition | F23: 32 | G23: 12MP | H23: 192Mbps/ 192Mbps | I23: 20fps 12MP | J23: 2 of HDMI, 4K, VGA | K23: 2 of 10TB Max | L23: 1+IPC | M23: 1+IPC | N23: In- 8+IPC Out- 4+IPC | O23: None*PoE Face DDA Analytic FishEye LPR 2*Ethernet Check Point Protect | P23: Yes | Q23: $157.00 | S23: Yes | T23: $177.79 | V23: Yes | W23: 4 | X23: 1
A24: 1 | C24: NVR12-32800RFAN(2U) | E24: H.265 Stand Alone NVR, 32CH 12MP at 20fps, 2U case, support Face recognition, with RAID | F24: 32 | G24: 12MP | H24: 160Mbps/ 160Mbps | I24: 20fps 12MP | J24: 2 of HDMI, 4K, VGA | K24: 8 of 10TB Max | L24: 1+IPC | M24: 1+IPC | N24: In- 16+IPC Out- 4+IPC | O24: None*PoE Face DDA Analytic FishEye LPR 2*Ethernet Check Point Protect | P24: Yes | Q24: $275.00 | S24: Yes | T24: =SUM((Q24*1.095)+((Q24*1.07)*Sheet1!C$5)) -> $301.13 | V24: Yes | W24: 2 | X24: 1
A25: 1 | C25: NVR8-641600R(2U) | E25: H.265 Stand Alone NVR, 64CH 8MP, 2U case | F25: 64 | G25: 8MP | H25: 320Mbps/ 320Mbps | I25: 25fps 8MP | J25: HDMI, 4K, VGA | K25: 8 of 8TB Max | L25: 1+IPC | M25: 1+IPC | N25: In- 8+IPC Out- 4+IPC | O25: None PoE DDA Analytic FishEye LPR Raid 2*Ethernet | P25: No | Q25: $385.00 | S25: Yes | T25: =SUM((Q25*1.095)+((Q25*1.07)*Sheet1!C$5)) -> $421.58 | V25: Yes | W25: 2 | X25: 1
A26: 1 | C26: NVR8-128RT(3U) | E26: H.265 Stand Alone NVR, 128CH, 8MP at 25fps. 3U case | F26: 128 | G26: 8MP | H26: 384Mbps/ 384Mbps | I26: 25fps 8MP | J26: HDMI, 4K, VGA | K26: 16 of 8TB Max | L26: 1+IPC | M26: 1+IPC | N26: In- 8+IPC Out- 4+IPC | O26: None PoE DDA Analytic FishEye LPR Raid 2*Ethernet | P26: No | Q26: $1,100.00 | S26: Yes | T26: =SUM((Q26*1.095)+((Q26*1.07)*Sheet1!C$5)) -> $1,204.50 | V26: Yes | W26: 1 | X26: 1 | Y26: EOL, replaced by NVR16-128RFAN(3U)
A27: 1 | C27: NVR16-128RFAN(3U) | E27: H.265 Stand Alone NDAA NVR, 128CH 16MP,support Face recognition, with RAID,3U case | F27: 128 | G27: 12MP | H27: 768Mbps/ 768Mbps | I27: 25fps 15MP | J27: HDMI, 4K, VGA | K27: 16 of 8TB Max | L27: 1+IPC | M27: 1+IPC | N27: In- 24+IPC Out- 4+IPC | O27: None PoE DDA Analytic FishEye LPR Raid 2*Ethernet | P27: No | Q27: $1,000.00 | S27: Feb | T27: =SUM((Q27*1.095)+((Q27*1.07)*Sheet1!C$5)) -> $1,095.00 | V27: Apr | W27: 1 | X27: 1 | Y27: New Model
A28: 1
A29: 1
A30: 1
A31: 1

Sheet IPC
D1: IPC
C4: R | D4: Model | E4: free text | F4: Series | G4: Description | H4: Resolution | I4: Housing | J4: WDR | K4: Lens Type | L4: Lens Focal | M4: Protection | N4: IR range | O4: Juntion box | P4: Special features | Q4: Analytic | R4: NDAA | S4: China Price | T4: Old Price | U4: China Availability | V4: Netherlands Price | W4: Old Price | X4: Netherland Availability | Y4: Unit Per Carton | Z4: MOQ | AA4: Remarks
A5: 1 | B5: 1 | D5: DI-320IPB-28 | F5: B-Sight | G5: Camera- H.265 B-Sight Series, Turret/Dome, IR 20M(1 LED Array),2.8mm lens, 2M with PoE | H5: 2MP | I5: Turret/Dome | J5: DWDR | K5: Fixed | L5: 2.8mm (102°) | M5: IP67 | N5: 20M | O5: PR-JB12IP66 - PR-JB12IP64 - PR-WB-A | P5: Made of aluminum alloy and polycarbonate | Q5: Camera Tampering Standard- Line Crossing Standard- Sterile Area | R5: No | S5: $24.00 | U5: EOL | V5: =SUM((S5*1.095)+((S5*1.07)*Sheet1!C$3)) -> $26.28 | X5: Yes | Y5: 16 | Z5: 16 | AA5: EOL, replaced by DI-320IPBN-36
A6: 1 | B6: 1 | D6: DI-320IPBN-36 | F6: B-Sight | G6: Camera- H.265 B-Sight Series, Turret/Dome, IR 20M(1 LED Array),3.6mm lens, 2M with PoE | H6: 2MP | I6: Turret/Dome | J6: DWDR | K6: Fixed | L6: 3.6mm (87°) | M6: IP67 | N6: 20M | O6: PR-JB12IP66 - PR-JB12IP64 - PR-WB-A | P6: Made of aluminum alloy and polycarbonate | Q6: Camera Tampering Standard- Line Crossing Standard- Sterile Area | R6: Yes | S6: $23.00 | U6: Yes | V6: =SUM((S6*1.095)+((S6*1.07)*Sheet1!C$3)) -> $25.19 | X6: ט | Y6: 16 | Z6: 16 | AA6: New Model
A7: 1 | B7: 1 | D7: I2-320IPB-28 | F7: B-Sight | G7: Camera- H.265 B-Sight Series, Bullet, IR 20M(1 LED Array),2.8mm lens, 2M with PoE | H7: 2MP | I7: Bullet | J7: DWDR | K7: Fixed | L7: 2.8mm (102°) | M7: IP67 | N7: 20M | O7: PR-JB12IP66 - PR-JB12IP64 - PR-WB-A | P7: Made of aluminum alloy and polycarbonate | Q7: Camera Tampering Standard- Line Crossing Standard- Sterile Area | R7: No | S7: $24.00 | U7: EOL | V7: =SUM((S7*1.095)+((S7*1.07)*Sheet1!C$3)) -> $26.28 | X7: Yes | Y7: 18 | Z7: 18 | AA7: EOL, replaced by I2-320IPBN-36
A8: 1 | B8: 1 | D8: I2-320IPBN-36 | F8: B-Sight | G8: Camera- H.265 B-Sight Series, Bullet, IR 20M(1 LED Array),3.6mm lens, 2M with PoE | H8: 2MP | I8: Bullet | J8: DWDR | K8: Fixed | L8: 3.6mm (87°) | M8: IP67 | N8: 20M | O8: PR-JB12IP66 - PR-JB12IP64 - PR-WB-A | P8: Made of aluminum alloy and polycarbonate | Q8: Camera Tampering Standard- Line Crossing Standard- Sterile Area | R8: Yes | S8: $23.00 | U8: Yes | V8: =SUM((S8*1.095)+((S8*1.07)*Sheet1!C$3)) -> $25.19 | X8: Mar | Y8: 18 | Z8: 18 | AA8: New Model
A9: 1 | B9: 1 | D9: DI-320IPSN-28-V4 | F9: S-Sight | G9: Camera- H.265 S-Sight Series,, Dome/Turret, IR 20M(1 LED Array), 2.8mm Lens 2M with PoE | H9: 2MP | I9: Turret/Dome | J9: True WDR | K9: Fixed | L9: 2.8mm (107°) | M9: IP67 | N9: 20M | O9: PR-JB12IP66/ PR-JB12IP64/ PR-WB-A | P9: Audio In Built-in Mic SD Card | Q9: Camera Tampering Standard- Line Crossing Standard- Sterile Area, DDA- Line Crossing DDA- Sterile Area Check Point Protect | R9: Yes | S9: $31.00 | U9: Yes | V9: =SUM((S9*1.095)+((S9*1.07)*Sheet1!C$3)) -> $33.95 | X9: Yes | Y9: 16 | Z9: 16
A10: 1 | B10: 1 | D10: DI-320IPSN-28-G | F10: S-Sight | G10: Camera- H.265 S-Sight Series,, Dome/Turret, IR 20M(1 LED Array), 2.8mm Lens 2M with PoE, Grey | H10: 2MP | I10: Turret/Dome | J10: DWDR | K10: Fixed | L10: 2.8mm (107°) | M10: IP67 | N10: 20M | O10: PR-JB12IP66-G/ PR-WB-A-G | P10: Built-in Mic SD Card | Q10: Camera Tampering Standard- Line Crossing Standard- Sterile Area | R10: Yes | S10: $31.00 | U10: EOL | V10: =SUM((S10*1.095)+((S10*1.07)*Sheet1!C$3)) -> $33.95 | X10: Yes | Y10: 16 | Z10: 16 | AA10: EOL, replaced by DI-320IPSN-28-G-V2
A11: 1 | B11: 1 | D11: DI-320IPSN-28-G-V2 | F11: S-Sight | G11: Camera- H.265 S-Sight Series,, Dome/Turret, IR 20M(1 LED Array), 2.8mm Lens 2M with PoE Grey | H11: 2MP | I11: Turret/Dome | J11: DWDR | K11: Fixed | L11: 2.8mm (107°) | M11: IP67 | N11: 20M | O11: PR-JB12IP66-G/ PR-WB-A-G | P11: Audio In SD Card Built-in Mic | Q11: Camera Tampering Standard- Line Crossing Standard- Sterile Area DDA- Line Crossing DDA- Sterile Area | R11: Yes | S11: $31.00 | U11: Yes | V11: =SUM((S11*1.095)+((S11*1.07)*Sheet1!C$3)) -> $33.95 | X11: Yes | Y11: 16 | Z11: 16 | AA11: New Model
A12: 1 | B12: 1 | D12: DI-320IPSN-36 | F12: S-Sight | G12: Camera- H.265 S-Sight Series,, Dome/Turret, IR 20M(1 LED Array), 3.6mm Lens 2M with PoE | H12: 2MP | I12: Turret/Dome | J12: DWDR | K12: Fixed | L12: 3.6mm (89°) | M12: IP67 | N12: 20M | O12: PR-JB12IP66/ PR-JB12IP64/ PR-WB-A | P12: Built-in Mic SD Card | Q12: Camera Tampering Standard- Line Crossing Standard- Sterile Area | R12: Yes | S12: $31.00 | U12: EOL | V12: =SUM((S12*1.095)+((S12*1.07)*Sheet1!C$3)) -> $33.95 | X12: Yes | Y12: 16 | Z12: 16 | AA12: EOL, replaced by DI-320IPSN-36-V2
A13: 1 | B13: 1 | D13: DI-320IPSN-36-V2 | F13: S-Sight | G13: Camera- H.265 S-Sight Series,, Dome/Turret, IR 20M(1 LED Array), 3.6mm Lens 2M with PoE | H13: 2MP | I13: Turret/Dome | J13: DWDR | K13: Fixed | L13: 3.6mm (89°) | M13: IP67 | N13: 20M | O13: PR-JB12IP66/ PR-JB12IP64/ PR-WB-A | P13: Audio In SD Card Built-in Mic | Q13: Camera Tampering Standard- Line Crossing Standard- Sterile Area DDA- Line Crossing DDA- Sterile Area | R13: Yes | S13: $31.00 | U13: Yes | V13: =SUM((S13*1.095)+((S13*1.07)*Sheet1!C$3)) -> $33.95 | X13: Feb | Y13: 16 | Z13: 16 | AA13: New Model
A14: 1 | B14: 1 | D14: DI-320IPSN-VF-V2 | F14: S-Sight | G14: Camera- H.265 S-Sight Series, Dome/Turret IR 40M(2 LED Array), 2.8-12mm lens, 2M with PoE | H14: 2MP | I14: Turret/Dome | J14: DWDR | K14: Vari-Focal | L14: 2.8-12mm (101.9 °-33°) | M14: IP67 | N14: 40M | O14: PR-JB14IP66/ PR-JB14IP64/ PR-WB-A | P14: Audio In SD Card Built-in Mic | Q14: Camera Tampering Standard- Line Crossing Standard- Sterile Area DDA- Line Crossing DDA- Sterile Area | R14: Yes | S14: $46.00 | U14: Yes | V14: $50.37 | X14: Yes | Y14: 12 | Z14: 6
A15: 1 | B15: 1 | D15: DI-320IPSN-VF-G | F15: S-Sight | G15: Camera- H.265 S-Sight Series, Dome/Turret IR 40M(2 LED Array), 2.8-12mm lens, 2M with PoE, Grey | H15: 2MP | I15: Turret/Dome | J15: DWDR | K15: Vari-Focal | L15: 2.8-12mm (88°-34.8°) | M15: IP67 | N15: 40M | O15: PR-JB14IP66-G/ PR-WB-A-G | P15: Built-in Mic SD Card | Q15: Camera Tampering Standard- Line Crossing Standard- Sterile Area | R15: Yes | S15: $46.00 | U15: Yes | V15: =SUM((S15*1.095)+((S15*1.07)*Sheet1!C$3)) -> $50.37 | X15: Yes | Y15: 12 | Z15: 6 | AA15: EOL
A16: 1 | B16: 1 | D16: DI-320IPSN-MVF-V2 | F16: S-Sight | G16: Camera- H.265 S-Sight Series, Dome/Turret IR 40M(2 LED Array),Motorized 2.8-12mm lens, 2M with PoE | H16: 2MP | I16: Turret/Dome | J16: True WDR | K16: Motorized Vari-Focal | L16: 2.8-12mm (102.5°-33.6°) | M16: IP67 | N16: 40M | O16: PR-JB14IP66-G/ PR-WB-A-G | P16: Audio In I/O SD Card Built-in Mic | Q16: Camera Tampering Standard- Line Crossing Standard- Sterile Area DDA- Line Crossing DDA- Sterile Area | R16: Yes | S16: $62.00 | U16: Yes | V16: =SUM((S16*1.095)+((S16*1.07)*Sheet1!C$3)) -> $67.89 | X16: Yes | Y16: 12 | Z16: 6 | AA16: announcing EOL, no replacment
A17: 1 | B17: 1 | D17: I2-320IPSN-28-V2 | F17: S-Sight | G17: Camera- H.265 S-Sight Series, Bullet, IR 20M(1 LED Array),2.8mm lens, 2M with PoE | H17: 2MP | I17: Bullet | J17: True WDR | K17: Fixed | L17: 2.8mm (107°) | M17: IP67 | N17: 20M | O17: PR-JB12IP66/ PR-JB12IP64 | P17: Audio In SD Card | Q17: Camera Tampering Standard- Line Crossing Standard- Sterile Area DDA- Line Crossing DDA- Sterile Area | R17: Yes | S17: $31.00 | U17: Yes | V17: =SUM((S17*1.095)+((S17*1.07)*Sheet1!C$3)) -> $33.95 | X17: Yes | Y17: 18 | Z17: 18
A18: 1 | B18: 1 | D18: I2-320IPSN-28-G | F18: S-Sight | G18: Camera- H.265 S-Sight Series, Bullet, IR 20M(1 LED Array),2.8mm lens, 2M with PoE,grey | H18: 2MP | I18: Bullet | J18: DWDR | K18: Fixed | L18: 2.8mm (107°) | M18: IP67 | N18: 20M | O18: PR-JB12IP66/ PR-JB12IP64 | P18: SD Card | Q18: Camera Tampering Standard- Line Crossing Standard- Sterile Area | R18: Yes | S18: $31.00 | U18: EOL | V18: =SUM((S18*1.095)+((S18*1.07)*Sheet1!C$3)) -> $33.95 | X18: Yes | Y18: 18 | Z18: 18 | AA18: EOL, replaced by I2-320IPSN-28-G-V2
A19: 1 | B19: 1 | D19: I2-320IPSN-28-G-V2 | F19: S-Sight | G19: Camera- H.265 S-Sight Series, Bullet, IR 20M(1 LED Array),2.8mm lens, 2M with PoE,grey | H19: 2MP | I19: Bullet | J19: DWDR | K19: Fixed | L19: 2.8mm (107°) | M19: IP67 | N19: 20M | O19: PR-JB12IP66/ PR-JB12IP65 | P19: Audio In SD Card | Q19: Camera Tampering Standard- Line Crossing Standard- Sterile Area DDA- Line Crossing DDA- Sterile Area | R19: Yes | S19: $31.00 | U19: Yes | V19: =SUM((S19*1.095)+((S19*1.07)*Sheet1!C$3)) -> $33.95 | X19: Mar | Y19: 18 | Z19: 18 | AA19: New Model
A20: 1 | B20: 1 | D20: I2-320IPSN-36 | F20: S-Sight | G20: Camera- H.265 S-Sight Series, Bullet, IR 20M(1 LED Array),3.6mm lens, 2M with PoE | H20: 2MP | I20: Bullet | J20: DWDR | K20: Fixed | L20: 3.6mm (89°) | M20: IP67 | N20: 20M | O20: PR-JB12IP66/ PR-JB12IP66 | P20: SD Card | Q20: Camera Tampering Standard- Line Crossing Standard- Sterile Area | R20: Yes | S20: $31.00 | U20: Yes | V20: =SUM((S20*1.095)+((S20*1.07)*Sheet1!C$3)) -> $33.95 | X20: Yes | Y20: 18 | Z20: 18
B21: 1 | D21: I4-320IPSN-28-V4 | F21: S-Sight | G21: Camera- H.265 S-Sight Series, Bullet, IR 40M(2 LED Array),2.8mm Lens, 2M with PoE | H21: 2MP | I21: Bullet | J21: True WDR | K21: Fixed | L21: 2.8mm (104°) | M21: IP67 | N21: 40M | O21: PR-JB12IP66/ PR-JB12IP64 | P21: Audio In SD Card | Q21: Camera Tampering Standard- Line Crossing Standard- Sterile Area DDA- Line Crossing DDA- Sterile Area | R21: Yes | S21: $40.00 | U21: Yes | V21: =SUM((S21*1.095)+((S21*1.07)*Sheet1!C$3)) -> $43.80 | X21: Yes | Y21: 10 | Z21: 10
B22: 1 | D22: I4-320IPSN-VF-V4 | F22: S-Sight | G22: Camera- H.265 S-Sight Series, Bullet, IR 40M(2 LED Array),2.8-12mm lens, 2M with PoE | H22: 2MP | I22: Bullet | J22: True WDR | K22: Fixed | L22: 2.8-12mm (100°-33°) | M22: IP67 | N22: 40M | O22: PR-JB12IP66/ PR-JB12IP64 | P22: Audio In SD Card Built-in Mic | Q22: Camera Tampering Standard- Line Crossing Standard- Sterile Area DDA- Line Crossing DDA- Sterile Area | R22: Yes | S22: $46.00 | U22: Yes | V22: =SUM((S22*1.095)+((S22*1.07)*Sheet1!C$3)) -> $50.37 | X22: Yes | Y22: 10 | Z22: 10
A23: 1 | B23: 1 | D23: I4-320IPSN-MVF-V2 | F23: S-Sight | G23: Camera- H.265 S-Sight Series, Bullet, IR 40M(2 LED Array), Motorized 2.8-12mm Lens, 2M with PoE | H23: 2MP | I23: Bullet | J23: True WDR | K23: Motorized Vari-Focal | L23: 2.8-12mm (102.5°-33.6°) | M23: IP67 | N23: 40M | O23: PR-JB12IP66 - PR-JB12IP64 | P23: Audio In I/O SD Card | Q23: Camera Tampering Standard- Line Crossing Standard- Sterile Area DDA- Line Crossing DDA- Sterile Area | R23: Yes | S23: $62.00 | U23: EOL | V23: =SUM((S23*1.095)+((S23*1.07)*Sheet1!C$3)) -> $67.89 | X23: Yes | Y23: 10 | Z23: 10 | AA23: announcing EOL, no replacment
A24: 1 | B24: 1 | D24: DI-340IPSN-28-V2 | F24: S-Sight | G24: Camera- H.265 S-Sight Series,, Dome/Turret IR 20M(1 LED Array), 2.8mm Lens, 4M with PoE | H24: 4MP | I24: Turret/Dome | J24: True WDR | K24: Fixed | L24: 2.8mm (94°) | M24: IP67 | N24: 20M | O24: PR-JB12IP66/ PR-JB12IP64/ PR-WB-A | P24: Audio In SD Card Built-in Mic | Q24: Camera Tampering Standard- Line Crossing Standard- Sterile Area | R24: Yes | S24: $42.00 | U24: Yes | V24: =SUM((S24*1.095)+((S24*1.07)*Sheet1!C$3)) -> $45.99 | X24: Yes | Y24: 16 | Z24: 16
A25: 1 | B25: 1 | D25: DI-340IPSN-28-G-V2 | F25: S-Sight | G25: Camera- H.265 S-Sight Series,, Dome/Turret IR 20M(1 LED Array), 2.8mm Lens, 4M with PoE | H25: 4MP | I25: Turret/Dome | J25: True WDR | K25: Fixed | L25: 2.8mm (94°) | M25: IP67 | N25: 20M | O25: PR-JB12IP66/ PR-JB12IP64/ PR-WB-A | P25: Audio In SD Card Built-in Mic | Q25: Camera Tampering Standard- Line Crossing Standard- Sterile Area DDA- Line Crossing DDA- Sterile Area | R25: Yes | S25: $42.00 | U25: Yes | V25: =SUM((S25*1.095)+((S25*1.07)*Sheet1!C$3)) -> $45.99 | X25: Yes | Y25: 16 | Z25: 16
A26: 1 | B26: 1 | D26: DI-340IPSN-MVF-V2 | F26: S-Sight | G26: Camera- H.265 S-Sight Series, Dome/Turret IR 40M(2 LED Array), Motorized 2.8-12mm lens, 4M with PoE | H26: 4MP | I26: Turret/Dome | J26: True WDR | K26: Motorized Vari-Focal | L26: 2.8-12mm (94°-35.7°) | M26: IP67 | N26: 40M | O26: PR-JB14IP66/ PR-JB14IP64/ PR-WB-A | P26: Audio In I/O SD Card Built-in Mic | Q26: Camera Tampering Standard- Line Crossing Standard- Sterile Area DDA- Line Crossing DDA- Sterile Area | R26: Yes | S26: $68.00 | U26: Yes | V26: =SUM((S26*1.095)+((S26*1.07)*Sheet1!C$3)) -> $74.46 | X26: Yes | Y26: 12 | Z26: 6
A27: 1 | B27: 1 | D27: DI-340IPSN-MVF-G | F27: S-Sight | G27: Camera- H.265 S-Sight Series, Dome/Turret IR 40M(2 LED Array), Motorized 2.8-12mm lens, 4M with PoE, Grey | H27: 4MP | I27: Turret/Dome | J27: DWDR | K27: Motorized Vari-Focal | L27: 2.8-12mm (94°-35.7°) | M27: IP67 | N27: 40M | O27: PR-JB14IP66-G/ PR-WB-A-G | P27: Audio In SD Card Built-in Mic | Q27: Camera Tampering Standard- Line Crossing Standard- Sterile Area | R27: Yes | S27: $68.00 | U27: Yes | V27: =SUM((S27*1.095)+((S27*1.07)*Sheet1!C$3)) -> $74.46 | X27: EOL | Y27: 12 | Z27: 6 | AA27: EOL, replaced by DI-340IPSN-MVF-G-V2
D28: DI-340IPSN-MVF-G-V2 | F28: S-Sight | G28: Camera- H.265 S-Sight Series, Dome/Turret IR 40M(2 LED Array), Motorized 2.8-12mm lens, 4M with PoE | H28: 4MP | I28: Turret/Dome | J28: DWDR | K28: Motorized Vari-Focal | L28: 2.8-12mm (94°-35.7°) | M28: IP67 | N28: 40M | O28: PR-JB14IP66-G/ PR-WB-A-G | P28: Audio In SD Card Built-in Mic | Q28: Camera Tampering Standard- Line Crossing Standard- Sterile Area DDA- Line Crossing DDA- Sterile Area | R28: Yes | S28: $68.00 | U28: Yes | V28: =SUM((S28*1.095)+((S28*1.07)*Sheet1!C$3)) -> $74.46 | X28: Yes | Y28: 12 | Z28: 6 | AA28: New Model
A29: 1 | B29: 1 | D29: I2-340IPSN-28-V2 | F29: S-Sight | G29: Camera- H.265 S-Sight Series, Bullet, IR 20M(1 LED Array),2.8mm lens, 4M with PoE | H29: 4MP | I29: Bullet | J29: True WDR | K29: Fixed | L29: 2.8mm (110°) | M29: IP67 | N29: 20M | O29: PR-JB12IP66/ PR-JB12IP65 | P29: Audio In SD Card | Q29: Camera Tampering Standard- Line Crossing Standard- Sterile Area DDA- Line Crossing DDA- Sterile Area | R29: Yes | S29: $42.00 | U29: Yes | V29: =SUM((S29*1.095)+((S29*1.07)*Sheet1!C$3)) -> $45.99 | X29: Yes | Y29: 18 | Z29: 18
A30: 1 | B30: 1 | D30: I2-340IPSN-28-G-V2 | F30: S-Sight | G30: Camera- H.265 S-Sight Series, Bullet, IR 20M(1 LED Array),2.8mm lens, 4M with PoE,grey | H30: 4MP | I30: Bullet | J30: True WDR | K30: Fixed | L30: 2.8mm (110°) | M30: IP67 | N30: 20M | O30: PR-JB12IP66/ PR-JB12IP64 | P30: Audio In SD Card | Q30: Camera Tampering Standard- Line Crossing Standard- Sterile Area DDA- Line Crossing DDA- Sterile Area | R30: Yes | S30: $42.00 | U30: Yes | V30: $45.99 | X30: Yes | Y30: 18 | Z30: 18
A31: 1 | B31: 1 | D31: I4-340IPSN-MVF-V2 | F31: S-Sight | G31: Camera- H.265 S-Sight Series, Bullet, IR 40M(2 LED Array), Motorized 2.8-12mm lens, 4M with PoE | H31: 4MP | I31: Bullet | J31: True WDR | K31: Motorized Vari-Focal | L31: 2.8-12mm (94°-35.7°) | M31: IP67 | N31: 40M | O31: PR-JB14IP66/ PR-JB14IP64 | P31: Audio In I/O SD Card | Q31: Camera Tampering Standard- Line Crossing Standard- Sterile Area DDA- Line Crossing DDA- Sterile Area | R31: Yes | S31: $68.00 | U31: Yes | V31: =SUM((S31*1.095)+((S31*1.07)*Sheet1!C$3)) -> $74.46 | X31: Yes | Y31: 10 | Z31: 10
B32: 1 | D32: DAI-350IPSN-28-V4 | F32: S-Sight | G32: Camera- H.265 S-Sight Series,, Dome/Turret IR 20M(1 LED Array), 2.8mm Lens, 5M with PoE | H32: 5MP | I32: Dome Anti-Vandal | J32: True WDR | K32: Fixed | L32: 2.8mm (108°) | M32: IP67/ IK10 | N32: 20M | O32: PR-JB12IP66 / PR-ICB21 / PR-WB-A | P32: Audio in SD Card Build-in Mic | Q32: Camera Tampering Standard- Line Crossing Standard- Sterile Area DDA- Line Crossing DDA- Sterile Area | R32: Yes | S32: $53.00 | U32: Yes | V32: =SUM((S32*1.095)+((S32*1.07)*Sheet1!C$3)) -> $58.04 | X32: Yes | Y32: 16 | Z32: 8 | AA32: New Model
B33: 1 | D33: DMA-350IPSN-28-V4 | F33: S-Sight | G33: Camera-H.265 S-Sight Series, Mini dome, IR 10M, 2.8mm Lens 5MP with PoE | H33: 5MP | I33: Dome Anti-Vandal | J33: True WDR | K33: Fixed | L33: 2.8mm (108°) | M33: IP67/ IK10 | N33: 10M | O33: PR-B10BJB / PR-WB-A | P33: Audio in SD Card Build-in Mic | Q33: Camera Tampering Standard- Line Crossing Standard- Sterile Area DDA- Line Crossing DDA- Sterile Area | R33: Yes | S33: $55.00 | U33: Yes | V33: =SUM((S33*1.095)+((S33*1.07)*Sheet1!C$3)) -> $60.23 | X33: Mar | Y33: 20 | Z33: 10 | AA33: New Model
A34: 1 | B34: 1 | D34: DI-380IPSN-28-V3 | F34: S-Sight | G34: Camera- H.265 S-Sight Series,, Dome/Turret IR 20M(1 LED Array), 2.8mm Lens 8M with PoE | H34: 8MP | I34: Turret/Dome | J34: True WDR | K34: Fixed | L34: 2.8mm (112°) | M34: IP67 | N34: 20M | O34: PR-JB12IP66/ PR-JB12IP64/ PR-WB-A | P34: Audio In SD Card Built-in Mic Check Point Protect | Q34: Camera Tampering Standard- Line Crossing Standard- Sterile Area DDA- Line Crossing DDA- Sterile Area | R34: Yes | S34: $80.00 | U34: Yes | V34: =SUM((S34*1.095)+((S34*1.07)*Sheet1!C$3)) -> $87.60 | X34: Yes | Y34: 16 | Z34: 16
B35: 1 | D35: DI-380IPSN-28-G-V3 | F35: S-Sight | G35: Camera- H.265 S-Sight Series,, Dome/Turret IR 20M(1 LED Array), 2.8mm Lens 8M with PoE | H35: 8MP | I35: Turret/Dome | J35: True WDR | K35: Fixed | L35: 2.8mm (112°) | M35: IP67 | N35: 20M | O35: PR-JB12IP66-G/ PR-WB-A-G | P35: Audio In SD Card Built-in Mic Check Point Protect | Q35: Camera Tampering Standard- Line Crossing Standard- Sterile Area DDA- Line Crossing DDA- Sterile Area | R35: Yes | S35: $80.00 | U35: Yes | V35: =SUM((S35*1.095)+((S35*1.07)*Sheet1!C$3)) -> $87.60 | X35: Yes | Y35: 16 | Z35: 16 | AA35: New Model
A36: 1 | B36: 1 | D36: DI-380IPSN-MVF-V3 | F36: S-Sight | G36: Camera- H.265 S-Sight Series, Dome/Turret IR 40M(2 LED Array), Motorized 2.8-12mm lens, 8M with PoE | H36: 8MP | I36: Turret/Dome | J36: True WDR | K36: Motorized Vari-Focal | L36: 2.8-12mm (102.7°-32.2°) | M36: IP67 | N36: 40M | O36: PR-JB14IP66/ PR-JB14IP64/ PR-WB-A | P36: Audio In I/O SD Card Built-in Mic Check Point Protect | Q36: Camera Tampering Standart- Line Crossing Standart- Sterile Area DDA- Line Crossing DDA- Sterile Area | R36: Yes | S36: $107.00 | U36: Yes | V36: =SUM((S36*1.095)+((S36*1.07)*Sheet1!C$3)) -> $117.17 | X36: Yes | Y36: 12 | Z36: 6
B37: 1 | D37: DI-380IPSN-MVF-G-V3 | F37: S-Sight | G37: Camera- H.265 S-Sight Series, Dome/Turret IR 40M(2 LED Array), Motorized 2.8-12mm lens, 8M with PoE | H37: 8MP | I37: Turret/Dome | J37: True WDR | K37: Motorized Vari-Focal | L37: 2.8-12mm (102.7°-32.2°) | M37: IP67 | N37: 40M | O37: PR-JB14IP66/ PR-JB14IP64/ PR-WB-A | P37: Audio In I/O SD Card Built-in Mic Check Point Protect | Q37: Camera Tampering Standart- Line Crossing Standart- Sterile Area DDA- Line Crossing DDA- Sterile Area | R37: Yes | S37: $107.00 | U37: Yes | V37: =SUM((S37*1.095)+((S37*1.07)*Sheet1!C$3)) -> $117.17 | X37: Yes | Y37: 12 | Z37: 6 | AA37: New Model
A38: 1 | B38: 1 | D38: I4-380IPSN-28-V3 | F38: S-Sight | G38: Camera- H.265 S-Sight Series, Bullet, IR 40M(1 LED Array),2.8mm lens, 8MP with PoE | H38: 8MP | I38: Bullet | J38: True WDR | K38: Fixed | L38: 2.8mm (112°) | M38: IP67 | N38: 20M | O38: PR-JB14IP66/ PR-JB14IP64 | P38: Audio In SD Card Check Point Protect | Q38: Camera Tampering Standart- Line Crossing Standart- Sterile Area DDA- Line Crossing DDA- Sterile Area | R38: Yes | S38: $85.00 | U38: Yes | V38: =SUM((S38*1.095)+((S38*1.07)*Sheet1!C$3)) -> $93.08 | X38: Yes | Y38: 20 | Z38: 10
A39: 1 | B39: 1 | D39: I4-380IPSN-MVF-V3 | F39: S-Sight | G39: Camera- H.265 S-Sight Series, Bullet, IR 40M(2 LED Array), Motorized 2.8-12mm lens, 8M with PoE | H39: 8MP | I39: Bullet | J39: True WDR | K39: Motorized Vari-Focal | L39: 2.8-12mm (102.7°-32.2°) | M39: IP67 | N39: 40M | O39: PR-JB14IP66/ PR-JB14IP64 | P39: Audio In I/O SD Card Check Point Protect | Q39: Camera Tampering Standard- Line Crossing Standard- Sterile Area DDA- Line Crossing DDA- Sterile Area | R39: Yes | S39: $107.00 | U39: Yes | V39: =SUM((S39*1.095)+((S39*1.07)*Sheet1!C$3)) -> $117.17 | X39: Yes | Y39: 10 | Z39: 10
A40: 1 | B40: 1 | D40: DMA-320IPEN-28-V4 | F40: Eye-Sight | G40: Camera-H.265 Eye-Sight Series, Mini dome, IR 10M, 2.8mm Lens 2MP with PoE | H40: 2M0 | I40: Dome Anti-Vandal | J40: True WDR | K40: Fixed | L40: 2.8mm (108°) | M40: IP67/ IK10 | N40: 10M | O40: PR-B10BJB / PR-WB-A | P40: Audio In Built-in Mic SD Card Check Point Protect | Q40: Camera Tampering DDA- Line Crossing DDA- Sterile Area DDA- Object Counting (line) DDA- Object Counting (area) Item monitoring Heat Map Face Detection, Check Point Protect | R40: Yes | S40: $62.00 | U40: Yes | V40: N/A | X40: Yes | Y40: 20 | Z40: 10
A41: 1 | B41: 1 | D41: DAI-320IPEN-28-V4 | F41: Eye-Sight | G41: Camera-H.265 Eye-Sight Series, Anti-Vandal, IR 20M(3 LED Array), 2.8mm lens , 2M with PoE | H41: 2MP | I41: Dome Anti-Vandal | J41: True WDR | K41: Fixed | L41: 2.8mm (108°) | M41: IP67/ IK10 | N41: 20M | O41: PR-JB12IP66 / PR-ICB21 / PR-WB-A | P41: Audio In SD Card I/O Built-in Mic Check Point Protect | Q41: Camera Tampering DDA- Line Crossing DDA- Sterile Area DDA- Object Counting (line) DDA- Object Counting (area) Item monitoring Heat Map Face Detection, Check Point Protect | R41: Yes | S41: $61.00 | U41: Yes | V41: =SUM((S41*1.095)+((S41*1.07)*Sheet1!C$3)) -> $66.80 | X41: Yes | Y41: 16 | Z41: 8
A42: 1 | B42: 1 | D42: DAI-320IPE-MVF | F42: Eye-Sight | G42: Camera-H.265 Eye-Sight Series, Anti-Vandal, IR 40M(2 LED Array), Motorized2.8-12mm lens, 2M with PoE | H42: 2MP | I42: Dome Anti-Vandal | J42: True WDR | K42: Motorized Vari-Focal | L42: 2.8-12mm (103°-32°) | M42: IP67/ IK10 | N42: 40M | O42: PR-JB14IP66 / PR-ICB23 | P42: Audio In Audio Out I/O SD Card Built-in Mic | Q42: Camera Tampering DDA- Line Crossing DDA- Sterile Area DDA- Object Counting (line) DDA- Object Counting (area) Item monitoring Heat Map Face Detection | R42: No | S42: $88.00 | U42: Yes | V42: =SUM((S42*1.095)+((S42*1.07)*Sheet1!C$3)) -> $96.36 | X42: Yes | Y42: 6 | Z42: 6
A43: 1 | B43: 1 | D43: DI-320IPEN-28 | F43: Eye-Sight | G43: Camera- H.265 Eye-Sight Series,, Dome/Turret IR 20M(1 LED Array), 2.8mm Lens, 2M with PoE | H43: 2MP | I43: Turret/Dome | J43: True WDR | K43: Fixed | L43: 2.8mm (108°) | M43: IP67 | N43: 20M | O43: PR-JB12IP66/ PR-JB12IP64/ PR-WB-A | P43: Audio In Built-in Mic SD Card | Q43: Camera Tampering DDA- Line Crossing DDA- Sterile Area DDA- Object Counting (line) DDA- Object Counting (area) Item monitoring Heat Map Face Detection | R43: Yes | S43: $58.00 | U43: Yes | V43: =SUM((S43*1.095)+((S43*1.07)*Sheet1!C$3)) -> $63.51 | X43: Yes | Y43: 16 | Z43: 16
A44: 1 | B44: 1 | D44: DI-320IPEN-MVF | F44: Eye-Sight | G44: Camera- H.265 Eye-Sight Series, Dome/Turret IR 40M(2 LED Array), Motorized 2.8-12mm lens, 2M with P | H44: 2MP | I44: Turret/Dome | J44: True WDR | K44: Motorized Vari-Focal | L44: 2.8-12mm (100°-31°) | M44: IP67 | N44: 40M | O44: PR-JB14IP66/ PR-JB14IP64/ PR-WB-A | P44: Audio In Built-in Mic SD Card | Q44: Camera Tampering DDA- Line Crossing DDA- Sterile Area DDA- Object Counting (line) DDA- Object Counting (area) Item monitoring Heat Map Face Detection | R44: Yes | S44: $80.00 | U44: Yes | V44: =SUM((S44*1.095)+((S44*1.07)*Sheet1!C$3)) -> $87.60 | X44: only from China | Y44: 12 | Z44: 6
A45: 1 | B45: 1 | D45: I4-320IPEN-36-V4 | F45: Eye-Sight | G45: Camera- H.265 Eye-Sight Series, Bullet, IR 40M(2 LED Array), 3.6mm lens, 2M with PoE | H45: 2MP | I45: Bullet | J45: True WDR | K45: Fixed | L45: 3.6mm (89°) | M45: IP67 | N45: 40M | O45: PR-JB12IP66/ PR-JB12IP64 | P45: Audio In SD Card | Q45: Camera Tampering DDA- Line Crossing DDA- Sterile Area DDA- Object Counting (line) DDA- Object Counting (area) Item monitoring Heat Map Face Detection, Check Point Protect | R45: Yes | S45: $63.00 | U45: Yes | V45: =SUM((S45*1.095)+((S45*1.07)*Sheet1!C$3)) -> $68.99 | X45: Yes | Y45: 10 | Z45: 10
A46: 1 | B46: 1 | D46: I4-320IPE-MVF | F46: Eye-Sight | G46: Camera- H.265 Eye-Sight Series, Bullet, IR 40M(2 LED Array), Motorized 2.8-12mm lens, 2M with PoE | H46: 2MP | I46: Bullet | J46: True WDR | K46: Motorized Vari-Focal | L46: 2.8-12mm (103°-32°) | M46: IP67 | N46: 40M | O46: PR-JB12IP66/ PR-JB12IP64 | P46: Audio In SD Card | Q46: Camera Tampering DDA- Line Crossing DDA- Sterile Area DDA- Object Counting (line) DDA- Object Counting (area) Item monitoring Heat Map Face Detection | R46: No | S46: $81.00 | U46: EOL | V46: =SUM((S46*1.095)+((S46*1.07)*Sheet1!C$3)) -> $88.70 | X46: Yes | Y46: 10 | Z46: 10 | AA46: EOL, replaced by I4-320IPEN-MVF
A47: 1 | B47: 1 | D47: I4-320IPEN-MVF | F47: Eye-Sight | G47: Camera- H.265 Eye-Sight Series, Bullet, IR 40M(2 LED Array), Motorized 2.8-12mm lens, 2M with PoE | H47: 2MP | I47: Bullet | J47: True WDR | K47: Motorized Vari-Focal | L47: 2.8-12mm (103°-32°) | M47: IP67 | N47: 40M | O47: PR-JB12IP66/ PR-JB12IP64 | P47: Audio In SD Card | Q47: Camera Tampering DDA- Line Crossing DDA- Sterile Area DDA- Object Counting (line) DDA- Object Counting (area) Item monitoring Heat Map Face Detection | R47: Yes | S47: $81.00 | U47: Yes | V47: N/A | X47: only from CH | Y47: 10 | Z47: 10 | AA47: New Model
A48: 1 | B48: 1 | D48: I6-320IPEN-MVF | F48: Eye-Sight | G48: Camera- H.265 Eye-Sight Series, Bullet, IR 60M(4 LED Array), Motorized 2.8-12mm lens, 2M with PoE | H48: 2MP | I48: Bullet | J48: True WDR | K48: Motorized Vari-Focal | L48: 2.8-12mm (94.3°-29.9°) | M48: IP67 | N48: 60M | O48: PR-JB14IP66/ PR-JB14IP64 | P48: Audio In Audio Out I/O SD Card | Q48: Camera Tampering DDA- Line Crossing DDA- Sterile Area DDA- Object Counting (line) DDA- Object Counting (area) Item monitoring Heat Map Face Detection | R48: Yes | S48: $91.00 | U48: Yes | V48: =SUM((S48*1.095)+((S48*1.07)*Sheet1!C$3)) -> $99.65 | X48: Yes | Y48: 8 | Z48: 4
A49: 1 | B49: 1 | D49: BX-341IPEN | F49: Eye-Sight | G49: Camera-H.265 Eye-Sight Series,Box, 4Mega-Pixel with PoE | H49: 4MP | I49: Box | J49: True WDR | K49: None | L49: 0 | M49: IP67 | N49: None | O49: None | P49: Audio In SD Card I/O Built-in Mic | Q49: Camera Tampering DDA- Line Crossing DDA- Sterile Area DDA- Object Counting (line) DDA- Object Counting (area) Item monitoring Heat Map Face Detection | R49: Yes | S49: $79.00 | U49: Yes | V49: =SUM((S49*1.095)+((S49*1.07)*Sheet1!C$3)) -> $86.51 | X49: Yes | Y49: 18 | Z49: 5
A50: 1 | B50: 1 | D50: DMA-340IPEN-28 | F50: Eye-Sight | G50: Camera-H.265 Eye-Sight Series, Mini dome, IR 10M, 2.8mm Lens 4MP with PoE | H50: 4MP | I50: Dome Anti-Vandal | J50: True WDR | K50: Fixed | L50: 2.8mm (96°) | M50: IP66/ IK10 | N50: 10M | O50: PR-B10BJB / PR-WB-A | P50: Built-in Mic Audio In SD Card | Q50: Camera Tampering DDA- Line Crossing DDA- Sterile Area DDA- Object Counting (line) DDA- Object Counting (area) Item monitoring Heat Map Face Detection | R50: Yes | S50: $73.00 | U50: EOL | V50: =SUM((S50*1.095)+((S50*1.07)*Sheet1!C$3)) -> $79.94 | X50: Yes | Y50: 20 | Z50: 10 | AA50: EOL, replaced by DMA-340IPEN-28-V4
B51: 1 | D51: DMA-340IPEN-28-V4 | F51: Eye-Sight | G51: Camera-H.265 Eye-Sight Series, Mini dome, IR 10M, 2.8mm Lens 4MP with PoE | H51: 4MP | I51: Dome Anti-Vandal | J51: True WDR | K51: Fixed | L51: 2.8mm (93°) | M51: IP66/ IK10 | N51: 10M | O51: PR-B10BJB / PR-WB-A | P51: Audio In Audio Out I/O SD Card Built-in Mic Check Point Protect | Q51: Camera Tampering DDA- Line Crossing DDA- Sterile Area DDA- Object Counting (line) DDA- Object Counting (area) Item monitoring Heat Map Face Detection, | R51: Yes | S51: $71.00 | U51: Yes | V51: =SUM((S51*1.095)+((S51*1.07)*Sheet1!C$3)) -> $77.75 | X51: Mar | Y51: 20 | Z51: 10 | AA51: New Model
A52: 1 | B52: 1 | D52: DAI-340IPEN-28 | F52: Eye-Sight | G52: Camera-H.265 Eye-Sight Series, Anti-Vandal, IR 20M(3 LED Array), 2.8mm lens , 4M with PoE | H52: 4MP | I52: Dome Anti-Vandal | J52: True WDR | K52: Fixed | L52: 2.8mm (108°) | M52: IP67/ IK10 | N52: 20M | O52: PR-JB12IP66 / PR-ICB21 / PR-WB-A | P52: Audio In SD Card I/O Built-in Mic | Q52: Camera Tampering DDA- Line Crossing DDA- Sterile Area DDA- Object Counting (line) DDA- Object Counting (area) Item monitoring Heat Map Face Detection | R52: Yes | S52: $73.00 | U52: EOL | V52: =SUM((S52*1.095)+((S52*1.07)*Sheet1!C$3)) -> $79.94 | X52: Yes | Y52: 16 | Z52: 8 | AA52: EOL, replaced by DAI-340IPEN-28-V4
D53: DAI-340IPEN-28-V4 | F53: Eye-Sight | G53: Camera-H.265 Eye-Sight Series, Anti-Vandal, IR 20M(3 LED Array), 2.8mm lens , 4M with PoE | H53: 4MP | I53: Dome Anti-Vandal | J53: True WDR | K53: Fixed | L53: 2.8mm (108°) | M53: IP67/ IK10 | N53: 20M | O53: PR-JB12IP66 / PR-ICB21 / PR-WB-A | P53: Audio In SD Card I/O Built-in Mic Check Point Protect | Q53: Camera Tampering DDA- Line Crossing DDA- Sterile Area DDA- Object Counting (line) DDA- Object Counting (area) Item monitoring Heat Map Face Detection | R53: Yes | S53: $73.00 | U53: Yes | V53: =SUM((S53*1.095)+((S53*1.07)*Sheet1!C$3)) -> $79.94 | X53: Mar | Y53: 16 | Z53: 8 | AA53: New Model
A54: 1 | B54: 1 | D54: DAI-340IPEN-MVF-V4 | F54: Eye-Sight | G54: Camera-H.265 Eye-Sight Series, Anti-Vandal, IR 40M(2 LED Array), Motorized2.8-12mm lens, 4M with PoE | H54: 4MP | I54: Dome Anti-Vandal | J54: True WDR | K54: Motorized Vari-Focal | L54: 2.8-12mm (94.3°-29.9°) | M54: IP67/ IK10 | N54: 40M | O54: PR-JB14IP66 / PR-ICB23 | P54: Audio In Audio Out I/O SD Card Built-in Mic Check Point Protect | Q54: Camera Tampering DDA- Line Crossing DDA- Sterile Area DDA- Object Counting (line) DDA- Object Counting (area) Item monitoring Heat Map Face Detection, | R54: Yes | S54: $118.00 | U54: Yes | V54: =SUM((S54*1.095)+((S54*1.07)*Sheet1!C$3)) -> $129.21 | X54: Yes | Y54: 6 | Z54: 6
A55: 1 | B55: 1 | D55: DI-340IPEN-28 | F55: Eye-Sight | G55: Camera- H.265 Eye-Sight Series,, Dome/Turret IR 20M(1 LED Array), 2.8mm Lens, 4M with PoE | H55: 4MP | I55: Turret/Dome | J55: True WDR | K55: Fixed | L55: 2.8mm (100°) | M55: IP67 | N55: 20M | O55: PR-JB12IP66/ PR-JB12IP64/ PR-WB-A | P55: Audio In Built-in Mic SD Card | Q55: Camera Tampering DDA- Line Crossing DDA- Sterile Area DDA- Object Counting (line) DDA- Object Counting (area) Item monitoring Heat Map Face Detection | R55: Yes | S55: $65.00 | U55: EOL | V55: =SUM((S55*1.095)+((S55*1.07)*Sheet1!C$3)) -> $71.18 | X55: Yes | Y55: 16 | Z55: 16 | AA55: EOL, replaced by DI-340IPEN-28-V4
B56: 1 | D56: DI-340IPEN-28-V4 | F56: Eye-Sight | G56: Camera- H.265 Eye-Sight Series,, Dome/Turret IR 20M(1 LED Array), 2.8mm Lens, 4M with PoE | H56: 4MP | I56: Turret/Dome | J56: True WDR | K56: Fixed | L56: 2.8mm (96°) | M56: IP67 | N56: 20M | O56: PR-JB12IP66/ PR-JB12IP64/ PR-WB-A | P56: Audio In Audio Out SD Card Built-in Mic Check Point Protect | Q56: Camera Tampering DDA- Line Crossing DDA- Sterile Area DDA- Object Counting (line) DDA- Object Counting (area) Item monitoring Heat Map Face Detection, | R56: Yes | S56: $65.00 | U56: Yes | V56: =SUM((S56*1.095)+((S56*1.07)*Sheet1!C$3)) -> $71.18 | X56: Mar | Y56: 16 | Z56: 16 | AA56: New Model
A57: 1 | B57: 1 | D57: DI-340IPEN-28-G | F57: Eye-Sight | G57: Camera- H.265 Eye-Sight Series,, Dome/Turret IR 20M(1 LED Array), 2.8mm Lens, 4M with PoE | H57: 4MP | I57: Turret/Dome | J57: True WDR | K57: Fixed | L57: 2.8mm (100°) | M57: IP67 | N57: 20M | O57: PR-JB14IP66-G/ PR-WB-A-G | P57: Audio In Built-in Mic SD Card | Q57: Camera Tampering DDA- Line Crossing DDA- Sterile Area DDA- Object Counting (line) DDA- Object Counting (area) Item monitoring Heat Map Face Detection | R57: Yes | S57: $65.00 | U57: Yes | V57: =SUM((S57*1.095)+((S57*1.07)*Sheet1!C$3)) -> $71.18 | X57: Yes | Y57: 16 | Z57: 16
A58: 1 | B58: 1 | D58: DI-340IPEN-MVF | F58: Eye-Sight | G58: Camera- H.265 Eye-Sight Series, Dome/Turret IR 40M(2 LED Array), Motorized 2.8-12mm lens, 4M with PoE | H58: 4MP | I58: Turret/Dome | J58: True WDR | K58: Motorized Vari-Focal | L58: 2.8-12mm (96°-32°) | M58: IP67 | N58: 40M | O58: PR-JB14IP66/ PR-JB14IP64/ PR-WB-A | P58: Audio In SD Card Built-in Mic | Q58: Camera Tampering DDA- Line Crossing DDA- Sterile Area DDA- Object Counting (line) DDA- Object Counting (area) Item monitoring Heat Map Face Detection | R58: Yes | S58: $97.00 | U58: EOL | V58: =SUM((S58*1.095)+((S58*1.07)*Sheet1!C$3)) -> $106.22 | X58: Yes | Y58: 12 | Z58: 6 | AA58: EOL, replaced by DI-340IPEN-MVF-V4
B59: 1 | D59: DI-340IPEN-MVF-V4 | F59: Eye-Sight | G59: Camera- H.265 Eye-Sight Series, Dome/Turret IR 40M(2 LED Array), Motorized 2.8-12mm lens, 4M with P | H59: 4MP | I59: Turret/Dome | J59: True WDR | K59: Motorized Vari-Focal | L59: 2.8-12mm (100°-29°) | M59: IP67 | N59: 40M | O59: PR-JB14IP66/ PR-JB14IP64/ PR-WB-A | P59: Audio In Audio Out I/O SD Card Built-in Mic Check Point Protect | Q59: Camera Tampering DDA- Line Crossing DDA- Sterile Area DDA- Object Counting (line) DDA- Object Counting (area) Item monitoring Heat Map Face Detection | R59: Yes | S59: $97.00 | U59: Yes | V59: =SUM((S59*1.095)+((S59*1.07)*Sheet1!C$3)) -> $106.22 | X59: Mar | Y59: 12 | Z59: 6 | AA59: New Model
A60: 1 | B60: 1 | D60: I4-340IPEN-36 | F60: Eye-Sight | G60: Camera- H.265 Eye-Sight Series, Bullet, IR 40M(2 LED Array), 3.6mm lens, 4M with PoE | H60: 4MP | I60: Bullet | J60: True WDR | K60: Fixed | L60: 3.6mm (80.6°) | M60: IP67 | N60: 40M | O60: PR-JB12IP66/ PR-JB12IP64 | P60: Audio In SD Card | Q60: Camera Tampering DDA- Line Crossing DDA- Sterile Area DDA- Object Counting (line) DDA- Object Counting (area) Item monitoring Heat Map Face Detection | R60: Yes | S60: $73.00 | U60: Yes | V60: =SUM((S60*1.095)+((S60*1.07)*Sheet1!C$3)) -> $79.94 | X60: Yes | Y60: 10 | Z60: 10 | AA60: EOL, replaced by I4-340IPEN-36-V4
D61: I4-340IPEN-36-V4 | F61: Eye-Sight | G61: Camera- H.265 Eye-Sight Series, Bullet, IR 40M(2 LED Array), 3.6mm lens, 4M with PoE | H61: 4MP | I61: Bullet | J61: True WDR | K61: Fixed | L61: 3.6mm (80.6°) | M61: IP67 | N61: 40M | O61: PR-JB12IP66/ PR-JB12IP64 | P61: Audio In Audio Out Built-in Mic SD Card Check Point Protect | Q61: Camera Tampering DDA- Line Crossing DDA- Sterile Area DDA- Object Counting (line) DDA- Object Counting (area) Item monitoring Heat Map Face Detection | R61: Yes | S61: $73.00 | U61: Yes | V61: =SUM((S61*1.095)+((S61*1.07)*Sheet1!C$3)) -> $79.94 | X61: Mar | Y61: 10 | Z61: 10 | AA61: New Model
A62: 1 | B62: 1 | D62: I4-340IPEN-36-G | F62: Eye-Sight | G62: Camera- H.265 Eye-Sight Series, Bullet, IR 40M(2 LED Array), 3.6mm lens, 4M with PoE,grey | H62: 4MP | I62: Bullet | J62: True WDR | K62: Fixed | L62: 3.6mm (80.6°) | M62: IP67 | N62: 40M | O62: PR-JB12IP66/ PR-JB12IP64 | P62: Audio In SD Card | Q62: Camera Tampering DDA- Line Crossing DDA- Sterile Area DDA- Object Counting (line) DDA- Object Counting (area) Item monitoring Heat Map Face Detection | R62: Yes | S62: $73.00 | U62: Yes | V62: =SUM((S62*1.095)+((S62*1.07)*Sheet1!C$3)) -> $79.94 | X62: Yes | Y62: 10 | Z62: 10
A63: 1 | B63: 1 | D63: I4-340IPEN-MVF-V4 | F63: Eye-Sight | G63: Camera- H.265 Eye-Sight Series, Bullet, IR 40M(2 LED Array), Motorized 2.8-12mm lens, 4M with PoE | H63: 4MP | I63: Bullet | J63: True WDR | K63: Motorized Vari-Focal | L63: 2.8-12mm (94.3°-29.9°) | M63: IP67 | N63: 40M | O63: PR-JB12IP66/ PR-JB12IP64 | P63: Audio In SD Card Check Point Protect | Q63: Camera Tampering DDA- Line Crossing DDA- Sterile Area DDA- Object Counting (line) DDA- Object Counting (area) Item monitoring Heat Map Face Detection, | R63: Yes | S63: $102.00 | U63: Yes | V63: =SUM((S63*1.095)+((S63*1.07)*Sheet1!C$3)) -> $111.69 | X63: Yes | Y63: 10 | Z63: 10
A64: 1 | B64: 1 | D64: I6-340IPEN-MVF-V4 | F64: Eye-Sight | G64: Camera- H.265 Eye-Sight Series, Bullet, IR 60M(4 LED Array), Motorized 2.8-12mm lens, 4M with PoE | H64: 4MP | I64: Bullet | J64: True WDR | K64: Motorized Vari-Focal | L64: 2.8-12mm (96°-32°) | M64: IP67 | N64: 60M | O64: PR-JB14IP66/ PR-JB14IP64 | P64: Audio In Audio Out I/O SD Card Built-in Mic Check Point Protect | Q64: Camera Tampering DDA- Line Crossing DDA- Sterile Area DDA- Object Counting (line) DDA- Object Counting (area) Item monitoring Heat Map Face Detection, | R64: Yes | S64: $118.00 | U64: Yes | V64: =SUM((S64*1.095)+((S64*1.07)*Sheet1!C$3)) -> $129.21 | X64: Yes | Y64: 8 | Z64: 4
A65: 1 | B65: 1 | D65: I6-340IPE-MVF-G | F65: Eye-Sight | G65: Camera- H.265 Eye-Sight Series, Bullet, IR 60M(4 LED Array), Motorized 2.8-12mm lens, 4M with PoE | H65: 4MP | I65: Bullet | J65: True WDR | K65: Motorized Vari-Focal | L65: 2.8-12mm (96°-32°) | M65: IP67 | N65: 60M | O65: PR-JB14IP66/ PR-JB14IP64 | P65: Audio In Audio Out SD Card I/O | Q65: Camera Tampering DDA- Line Crossing DDA- Sterile Area DDA- Object Counting (line) DDA- Object Counting (area) Item monitoring Heat Map Face Detection | R65: No | S65: $118.00 | U65: EOL | V65: $129.21 | X65: EOL | Y65: 8 | Z65: 4 | AA65: announcing EOL, no replacment
B66: 1 | D66: I8-340IPEN-MVF2-V4 | F66: Eye-Sight | G66: Camera- H.265 Eye-Sight Series, Bullet, IR 80M(4 LED Array), Motorized 7-22mm lens, 4M with PoE | H66: 4MP | I66: Bullet | J66: True WDR | K66: Motorized Vari-Focal | L66: 7-22mm (43°-18°) | M66: IP67 | N66: 80M | O66: PR-JB14IP66/ PR-JB14IP64 | P66: Audio In Audio Out SD Card I/O | Q66: Camera Tampering DDA- Line Crossing DDA- Sterile Area DDA- Object Counting (line) DDA- Object Counting (area) Item monitoring Heat Map Face Detection | R66: Yes | S66: $125.00 | U66: Yes | V66: $129.21 | X66: Yes | Y66: 8 | Z66: 4
A67: 1 | B67: 1 | D67: DI-380IPEN-MVF-V3 | F67: Eye-Sight | G67: Camera- H.265 Eye-Sight Series,Dome/Turret IR 40M(2 LED Array), Motorized 2.8-12mm lens, 8M with PoE | H67: 8MP | I67: Turret/Dome | J67: True WDR | K67: Motorized Vari-Focal | L67: 2.8-12mm (96°-32°) | M67: IP67 | N67: 40M | O67: PR-JB14IP66/ PR-JB14IP64/ PR-WB-A | P67: Audio In Built-in Mic SD Card Check Point Protect | Q67: Camera Tampering DDA- Line Crossing DDA- Sterile Area DDA- Object Counting (line) DDA- Object Counting (area) Item monitoring Heat Map Face Detection | R67: Yes | S67: $137.00 | U67: Yes | V67: =SUM((S67*1.095)+((S67*1.07)*Sheet1!C$3)) -> $150.02 | X67: Yes | Y67: 12 | Z67: 6
B68: 1 | D68: DI-380IPEN-MVF-G-V3 | F68: Eye-Sight | G68: Camera- H.265 Eye-Sight Series,Dome/Turret IR 40M(2 LED Array), Motorized 2.8-12mm lens, 8M with PoE | H68: 8MP | I68: Turret/Dome | J68: True WDR | K68: Motorized Vari-Focal | L68: 2.8-12mm (96°-32°) | M68: IP67 | N68: 40M | O68: PR-JB14IP66-G/ PR-WB-A-G | P68: Audio In Built-in Mic SD Card Check Point Protect | Q68: Camera Tampering DDA- Line Crossing DDA- Sterile Area DDA- Object Counting (line) DDA- Object Counting (area) Item monitoring Heat Map Face Detection | R68: Yes | S68: $137.00 | U68: Yes | V68: =SUM((S68*1.095)+((S68*1.07)*Sheet1!C$3)) -> $150.02 | X68: Yes | Y68: 12 | Z68: 6
B69: 1 | D69: DAI-380IPEN-MVF-V3 | F69: Eye-Sight | G69: Camera-H.265 Eye-Sight Series, Anti-Vandal, IR 40M(2 LED Array), Motorized2.8-12mm lens, 8M with PoE | H69: 8MP | I69: Dome Anti-Vandal | J69: True WDR | K69: Motorized Vari-Focal | L69: 2.8-12mm (95°- 32°) | M69: IP67/ IK10 | N69: 40M | O69: PR-JB14IP66 / PR-ICB23 | P69: Audio In Built-in Mic Audio Out I/O SD Card Check Point Protect | Q69: Camera Tampering DDA- Line Crossing DDA- Sterile Area DDA- Object Counting Face Detection | R69: Yes | S69: $140.00 | U69: Yes | V69: =SUM((S69*1.095)+((S69*1.07)*Sheet1!C$3)) -> $153.30 | X69: Yes | Y69: 6 | Z69: 6
A70: 1 | B70: 1 | D70: I6-380IPE-MVF | F70: Eye-Sight | G70: Camera- H.265 Eye-Sight Series, Bullet, IR 60M(4 LED Array), Motorized 2.8-12mm lens, 8M with PoE | H70: 8MP | I70: Bullet | J70: True WDR | K70: Motorized Vari-Focal | L70: 2.8-12mm (96°-32°) | M70: IP67 | N70: 60M | O70: PR-JB14IP66/ PR-JB14IP64 | P70: Audio In Audio Out I/O SD Card | Q70: Camera Tampering DDA- Line Crossing DDA- Sterile Area DDA- Object Counting Face Detection | R70: No | S70: $150.00 | U70: EOL | V70: =SUM((S70*1.095)+((S70*1.07)*Sheet1!C$3)) -> $164.25 | X70: Yes | Y70: 8 | Z70: 4 | AA70: EOL, repalced by I6-380IPEN-MVF-V3
D71: I6-380IPEN-MVF-V3 | F71: Eye-Sight | G71: Camera- H.265 Eye-Sight Series, Bullet, IR 60M(4 LED Array), Motorized 2.8-12mm lens, 8M with PoE | H71: 8MP | I71: Bullet | J71: True WDR | K71: Motorized Vari-Focal | L71: 2.8-12mm (96°-32°) | M71: IP67 | N71: 60M | O71: PR-JB14IP66/ PR-JB14IP64 | P71: Audio In Audio Out I/O SD Card Check Point Protect | Q71: Camera Tampering DDA- Line Crossing DDA- Sterile Area DDA- Object Counting Face Detection | R71: No | S71: $150.00 | U71: Yes | V71: =SUM((S71*1.095)+((S71*1.07)*Sheet1!C$3)) -> $164.25 | X71: Feb | Y71: 8 | Z71: 4 | AA71: New Model
A72: 1 | B72: 1 | D72: BX-321FR | F72: Smart-Sight | G72: Camera-Smart-Sight series Face recognition, box,2MP with POE | H72: 2MP | I72: Box | J72: True WDR | K72: None | L72: 0 | M72: None | N72: None | O72: None | P72: Audio In Built-in Mic Audio Out I/O SD Card | Q72: Camera Tampering Face Detection Face Recognition | R72: No | S72: $166.00 | U72: Yes | V72: N/A | X72: only from china | Y72: 20 | Z72: 1
A73: 1 | B73: 1 | D73: DW-320FR-MVF2 | F73: Smart-Sight | G73: Camera-Smart-Sight serie Face Recognition, Turret/Dome, 2MP IR 40M(2LED Array), motorized 7-22mm, with POE | H73: 2MP | I73: Turret/Dome | J73: True WDR | K73: Motorized Vari-Focal | L73: 7-22mm (44°-17.6°) | M73: IP67 | N73: 10M | O73: PR-JB14IP66/ PR-JB14IP64 / PR-WB-A | P73: Audio In Built-in Mic SD Card | Q73: Camera Tampering Face Detection Face Recognition | R73: No | S73: $143.00 | U73: Yes | V73: N/A | X73: only from china | Y73: 12 | Z73: 1
A74: 1 | B74: 1 | D74: TW-320FR-MVF2 | F74: Smart-Sight | G74: Camera- Smart-Sight series, Face recognition, bullet 2MP,white LED, 7-22mm MVF Lens, with POE | H74: 2MP | I74: Bullet | J74: True WDR | K74: Motorized Vari-Focal | L74: 7-22mm (44°-17.6°) | M74: IP67 | N74: 10M | O74: PR-JB14IP66/ PR-JB14IP64 | P74: Audio In Built-in Mic Audio Out I/O SD Card | Q74: Camera Tampering Face Detection Face Recognition | R74: No | S74: $187.00 | U74: Yes | V74: N/A | X74: only from china | Y74: 8 | Z74: 1
A75: 1 | B75: 1 | D75: I6-320LPR-MVF1 | F75: Smart-Sight | G75: Camera-Smart series ,LPR, Bullet, 2MP IR 40M(2LED Array), 2.8-12mm MVF Lens, with POE | H75: 2MP | I75: Bullet | J75: True WDR | K75: Motorized Vari-Focal | L75: 2.8-12mm (103.4°-32.4°) | M75: IP67 | N75: 60M | O75: PR-JB14IP66/ PR-JB14IP64 | P75: Audio In Audio Out SD Card I/O | Q75: LPR | R75: No | S75: $199.00 | U75: Yes | V75: =SUM((S75*1.095)+((S75*1.07)*Sheet1!C$3)) -> $217.91 | X75: Yes | Y75: 8 | Z75: 1
A76: 1 | B76: 1 | D76: I6-320LPR-MVF2 | F76: Smart-Sight | G76: Camera-Smart series ,LPR, Bullet, 2MP IR 40M(2LED Array), 7-22mm MVF Lens, with POE | H76: 2MP | I76: Bullet | J76: True WDR | K76: Motorized Vari-Focal | L76: 7-22mm (44°-17.6°) | M76: IP67 | N76: 60M | O76: PR-JB14IP66/ PR-JB14IP64 | P76: Audio In Audio Out SD Card I/O | Q76: LPR | R76: No | S76: $199.00 | U76: Yes | V76: =SUM((S76*1.095)+((S76*1.07)*Sheet1!C$3)) -> $217.91 | X76: Yes | Y76: 8 | Z76: 1
A77: 1 | B77: 1 | D77: I6-340LPRN-MVF1 | F77: Smart-Sight | G77: Camera-Smart series, LPR, Bullet, 4MP IR 40M(2LED Array),2.8-12mm MVF Lens, with POE,support Wiegand | H77: 4MP | I77: Bullet | J77: True WDR | K77: Motorized Vari-Focal | L77: 2.8-12mm (100.4°-49°) | M77: IP67 | N77: 60M | O77: PR-JB14IP66/ PR-JB14IP64 | P77: Audio In Audio Out SD Card I/O Wigand | Q77: LPR | R77: Yes | S77: $240.00 | U77: Yes | V77: =SUM((S77*1.095)+((S77*1.07)*Sheet1!C$3)) -> $262.80 | X77: Yes | Y77: 8 | Z77: 1
A78: 1 | B78: 1 | D78: I6-340LPRN-MVF2 | F78: Smart-Sight | G78: Camera-Smart series ,LPR, Bullet, 4MP IR 40M(2LED Array), 8-32mm MVF Lens, with POE,support Wiegand | H78: 4MP | I78: Bullet | J78: True WDR | K78: Motorized Vari-Focal | L78: 8-32mm (41°-15.5°) | M78: IP67 | N78: 85M | O78: PR-JB14IP66/ PR-JB14IP64 | P78: Audio In Audio Out SD Card I/O Wigand | Q78: LPR | R78: Yes | S78: $255.00 | U78: Yes | V78: =SUM((S78*1.095)+((S78*1.07)*Sheet1!C$3)) -> $279.23 | X78: Yes | Y78: 8 | Z78: 1
A79: 1 | B79: 1 | D79: DI-340AD-MVF | F79: Smart-Sight | G79: Camera- H.265 S-Sight active deterrence Series,, Dome/Turret, IR LED, motorized Lens 4M with PoE | H79: 4MP | I79: Turret/Dome | J79: True WDR | K79: Motorized Vari-Focal | L79: 2.8-12mm (94.2°-29.8°) | M79: IP67 | N79: 40M | O79: PR-JB14IP66/ PR-JB14IP64/ PR-WB-A | P79: Audio In Built-in Mic Built-in speaker Red/Blue Strobe Light SD Card | Q79: DDA- Line Crossing DDA- Sterile Area Active Deterrence | R79: No | S79: $99.00 | T79: $110.00 | U79: Yes | V79: =SUM((S79*1.095)+((S79*1.07)*Sheet1!C$3)) -> $108.41 | W79: $120.45 | X79: Yes | Y79: 12 | Z79: 12 | AA79: Price reduce
A80: 1 | B80: 1 | D80: I4-340AD-MVF | F80: Smart-Sight | G80: Camera- H.265 S-Sight active deterrence Series, Bullet IR LED, motorized Lens 4M with PoE | H80: 4MP | I80: Bullet | J80: True WDR | K80: Motorized Vari-Focal | L80: 2.8-12mm (94.2°-29.8°) | M80: IP67 | N80: 40M | O80: PR-JB12IP66/ PR-JB12IP64 | P80: Audio In Built-in Mic Built-in speaker Red/Blue Strobe Light SD Card | Q80: DDA- Line Crossing DDA- Sterile Area Active Deterrence | R80: No | S80: $99.00 | T80: $110.00 | U80: Yes | V80: =SUM((S80*1.095)+((S80*1.07)*Sheet1!C$3)) -> $108.41 | W80: $120.45 | X80: Yes | Y80: 10 | Z80: 10 | AA80: Price reduce
A81: 1 | B81: 1 | D81: FEI-360IPN | F81: Special | G81: Camera-H.265 IP Series,fisheye,6Mega-Pixel with PoE | H81: 6MP | I81: Fish-Eye | J81: DWDR | K81: Fish-Eye | L81: 1.07mm (360°) | M81: IP60/IK10 | N81: 15M | O81: PR-B50JB | P81: Audio In Audio Out SD Card I/O Built-in Mic | Q81: None | R81: Yes | S81: $145.00 | T81: $165.00 | U81: Yes | V81: =SUM((S81*1.095)+((S81*1.07)*Sheet1!C$3)) -> $158.78 | W81: $180.68 | X81: Yes | Y81: 12 | Z81: 6 | AA81: Price reduce
A82: 1 | B82: 1 | D82: IV-320IPSN-37 | F82: Special | G82: Camera-H.265 , Dummy PIR, IR 10M(24 LEDs), 3.7mm Pinhole Lens , 1080P PoE | H82: 2MP | I82: Hidden | J82: DWDR | K82: Fixed | L82: 3.7mm (83°) | M82: IP67 | N82: 10M | O82: None | P82: Audio In SD Card Built-in Mic | Q82: Camera Tampering Standard- Line Crossing Standard- Sterile Area | R82: Yes | S82: $46.00 | U82: Yes | V82: =SUM((S82*1.095)+((S82*1.07)*Sheet1!C$3)) -> $50.37 | X82: Yes | Y82: 32 | Z82: 16
A83: 1 | B83: 1 | D83: MC-322IPE-37 | F83: Special | G83: Camera-H.265 Hidden, 3.7mm lens, 1080P | H83: 2MP | I83: Hidden | J83: True WDR | K83: Fixed | L83: 3.7mm (89°) | M83: None | N83: None | O83: None | P83: SD Card Built-in Mic | Q83: Camera Tampering DDA- Line Crossing DDA- Sterile Area DDA- Object Counting Face Detection | R83: No | S83: $110.00 | U83: Yes | V83: =SUM((S83*1.095)+((S83*1.07)*Sheet1!C$3)) -> $120.45 | X83: Yes | Y83: 12 | Z83: 12 | AA83: EOL
A84: 1 | B84: 1 | D84: BMH-THERMAL-3 | F84: Special | G84: Thermal Network Bullet Camera, 5MP,3.2mm thermal lens | H84: 5MP | I84: Bullet | J84: True WDR | K84: Fixed | L84: Thermal: 3.2mm (56°) Visible Light: 7mm (81°) | M84: IP66 | N84: 20M | O84: PR-JB12IP66/ PR-JB12IP64 | P84: Audio In Audio Out SD Card I/O Built-in Speaker | Q84: Fire Detection Temperture alert Camera Tampering DDA- Line Crossing DDA- Sterile Area DDA- Object Counting Face Detection | R84: Yes | S84: $290.00 | U84: Yes | V84: =SUM((S84*1.095)+((S84*1.07)*Sheet1!C$3)) -> $317.55 | X84: Yes | Y84: 10 | Z84: 1
A85: 1 | B85: 1 | D85: BMH-THERMAL-7 | F85: Special | G85: Thermal Network Bullet Camera, 5MP,7 mm thermal lens | H85: 5MP | I85: Bullet | J85: True WDR | K85: Fixed | L85: Thermal: 7mm (24.8°) Visible Light: 8mm (38°) | M85: IP66 | N85: 20M | O85: PR-JB12IP66/ PR-JB12IP64 | P85: Audio In Audio Out SD Card I/O Built-in Speaker | Q85: Fire Detection Temperture alert Camera Tampering DDA- Line Crossing DDA- Sterile Area DDA- Object Counting Face Detection | R85: Yes | S85: $300.00 | U85: Yes | V85: =SUM((S85*1.095)+((S85*1.07)*Sheet1!C$3)) -> $328.50 | X85: Yes | Y85: 10 | Z85: 1
D86: BLH-THERMAL-19 | F86: Special | G86: Thermal Network Bullet Camera, 5MP,19mm thermal lens | H86: 5MP | I86: Bullet | J86: True WDR | K86: Fixed | L86: Optical: 16mm (19.8°) Thermal: 25mm (15°) | M86: IP66 | N86: 85M | O86: PR-JB12IP66/ PR-JB12IP64 | P86: Audio In Audio Out SD Card I/O Built-in Speaker | Q86: Fire Detection Temperture alert Camera Tampering DDA- Line Crossing DDA- Sterile Area DDA- Object Counting Face Detection | R86: Yes | S86: $985.00 | U86: per request | V86: N/A | X86: only from china per request | Y86: 1 | Z86: 1 | AA86: New Model
A87: 1 | B87: 1 | D87: BLH-THERMAL-25 | F87: Special | G87: Thermal Network Bullet Camera, 5MP,25mm thermal lens | H87: 5MP | I87: Bullet | J87: True WDR | K87: Fixed | L87: Optical: 16mm (19.8°) Thermal: 25mm (15°) | M87: IP66 | N87: 85M | O87: PR-JB12IP66/ PR-JB12IP64 | P87: Audio In Audio Out SD Card I/O Built-in Speaker | Q87: Fire Detection Temperture alert Camera Tampering DDA- Line Crossing DDA- Sterile Area DDA- Object Counting Face Detection | R87: Yes | S87: $1,280.00 | U87: per request | V87: N/A | X87: only from china per request | Y87: 1 | Z87: 1 | AA87: New Model
B88: 1 | D88: DB-320WIPN | F88: Special | G88: Video doorbell camera, 2MP.2.3mm Lens,Access control function | H88: 2MP | I88: DoorBell | J88: DWDR | K88: Fixed | L88: 2.3mm (139°) | M88: IP65 | N88: 10M | O88: None | P88: Built-in Mic Built-in Speaker I/O SD Card Wigand Wi-Fi | Q88: SMD Face Detection | R88: Yes | S88: $69.00 | T88: $79.00 | U88: Yes | V88: =SUM((S88*1.095)+((S88*1.07)*Sheet1!C$3)) -> $75.56 | W88: $86.51 | X88: Yes | Y88: 20 | Z88: 10 | AA88: Price reduce
A89: 1 | B89: 1 | D89: DV-320SRN-36 | F89: Rainbow | G89: Camera- H.265 S-Sight Rainbow Series,, Dome/Turret, White LED, 3.6mm Lens 2M with PoE | H89: 2MP | I89: Turret/Dome | J89: True WDR | K89: Fixed | L89: 3.6mm (84.6°) | M89: IP67 | N89: 25M (White Led) | O89: PR-JB12IP66/ PR-JB12IP64/ PR-WB-A | P89: Audio In Built-in Mic SD Card Color at night | Q89: Camera Tampering DDA- Line Crossing DDA- Sterile Area DDA- Object Counting | R89: Yes | S89: $48.00 | U89: Yes | V89: =SUM((S89*1.095)+((S89*1.07)*Sheet1!C$3)) -> $52.56 | X89: Yes | Y89: 16 | Z89: 16
A90: 1 | B90: 1 | D90: DV-320SRN-28 | F90: Rainbow | G90: Camera- H.265 S-Sight Rainbow Series,, Dome/Turret, White LED, 2.8mm Lens 2M with PoE | H90: 2MP | I90: Turret/Dome | J90: True WDR | K90: Fixed | L90: 2.8mm (105.2°) | M90: IP67 | N90: 25M (White Led) | O90: PR-JB12IP66/ PR-JB12IP64/ PR-WB-A | P90: Audio In Built-in Mic SD Card Color at night | Q90: Camera Tampering DDA- Line Crossing DDA- Sterile Area DDA- Object Counting | R90: Yes | S90: $48.00 | U90: Yes | V90: =SUM((S90*1.095)+((S90*1.07)*Sheet1!C$3)) -> $52.56 | X90: Yes | Y90: 16 | Z90: 16
A91: 1 | B91: 1 | D91: DH-320SRN-MVF | F91: Rainbow | G91: Camera- H.265 S-Sight Series, Dome/Turret IR 40M(2 LED Array), Motorized 2.8-12mm lens, 2M with PoE | H91: 2MP | I91: Turret/Dome | J91: True WDR | K91: Motorized Vari-Focal | L91: 2.8-12mm (105.4°-34°) | M91: IP67 | N91: 40M Hybrid High Power LED | O91: PR-JB14IP66/ PR-JB14IP64/ PR-WB-A | P91: Audio In Built-in Mic SD Card Color at night | Q91: Camera Tampering DDA- Line Crossing DDA- Sterile Area DDA- Object Counting | R91: Yes | S91: $72.00 | U91: Yes | V91: =SUM((S91*1.095)+((S91*1.07)*Sheet1!C$3)) -> $78.84 | X91: Yes | Y91: 12 | Z91: 6
A92: 1 | B92: 1 | D92: TL-320IPSR-36 | F92: Rainbow | G92: Camera- H.265 S-Sight Rainbow Series, bullet, White LED, 3.6mm Lens 2M with PoE | H92: 2MP | I92: Bullet | J92: DWDR | K92: Fixed | L92: 3.6mm (84.8°) | M92: IP67 | N92: 25M (White Led) | O92: PR-JB12IP66/ PR-JB12IP64/ PR-WB-A | P92: Built-in Mic SD Card Color at night | Q92: Camera Tampering Standard- Line Crossing Standard- Sterile Area | R92: No | S92: $45.00 | U92: EOL | V92: =SUM((S92*1.095)+((S92*1.07)*Sheet1!C$3)) -> $49.28 | X92: Yes | Y92: 10 | Z92: 10 | AA92: EOL, replaced by BSV-320SRN-36
A93: 1 | B93: 1 | D93: BSV-320SRN-36 | F93: Rainbow | G93: Camera- H.265 S-Sight Rainbow Series, bullet, White LED, 3.6mm Lens 2M with PoE | H93: 2MP | I93: Bullet | J93: True WDR | K93: Fixed | L93: 3.6mm (84.6°) | M93: IP67 | N93: 25M (White Led) | O93: PR-JB12IP66/ PR-JB12IP64 | P93: Audio In Built-in Mic SD Card Color at night | Q93: Camera Tampering DDA- Line Crossing DDA- Sterile Area DDA- Object Counting | R93: Yes | S93: $48.00 | U93: Yes | V93: =SUM((S93*1.095)+((S93*1.07)*Sheet1!C$3)) -> $52.56 | X93: Yes | Y93: 18 | Z93: 18
A94: 1 | B94: 1 | D94: BMV-320SRN-36 | F94: Rainbow | G94: Camera- H.265 S-Sight Rainbow Series,, bullet, White LED, 3.6mm Lens 2M with PoE | H94: 2MP | I94: Bullet | J94: True WDR | K94: Fixed | L94: 3.6mm (84.6°) | M94: IP67 | N94: 40M (White Led) | O94: PR-JB12IP66/ PR-JB12IP64 | P94: Audio In Built-in Mic SD Card Color at night | Q94: Camera Tampering DDA- Line Crossing DDA- Sterile Area DDA- Object Counting | R94: Yes | S94: $54.00 | U94: Yes | V94: =SUM((S94*1.095)+((S94*1.07)*Sheet1!C$3)) -> $59.13 | X94: Yes | Y94: 10 | Z94: 10
A95: 1 | B95: 1 | D95: BMH-320SRN-MVF | F95: Rainbow | G95: Camera- H.265 S-Sight Series, Bullet, IR 40M(2 LED Array), Motorized 2.8-12mm lens, 2M with PoE | H95: 2MP | I95: Bullet | J95: True WDR | K95: Motorized Vari-Focal | L95: 2.8-12mm (105.4°-34°) | M95: IP67 | N95: 40M Hybrid High Power LED | O95: PR-JB12IP66/ PR-JB12IP64 | P95: Audio In Built-in Mic SD Card Color at night | Q95: Camera Tampering DDA- Line Crossing DDA- Sterile Area DDA- Object Counting | R95: Yes | S95: $72.00 | U95: Yes | V95: =SUM((S95*1.095)+((S95*1.07)*Sheet1!C$3)) -> $78.84 | X95: Yes | Y95: 10 | Z95: 10
A96: 1 | B96: 1 | D96: DV-340SRN-28 | F96: Rainbow | G96: Camera- H.265 S-Sight Rainbow Series,, Dome/Turret, White LED, 2.8mm Lens 4M with PoE | H96: 4MP | I96: Turret/Dome | J96: True WDR | K96: Fixed | L96: 2.8mm (99°) | M96: IP67 | N96: 25M (White Led) | O96: PR-JB12IP66/ PR-JB12IP64 | P96: Audio In Built-in Mic SD Card Color at night | Q96: Camera Tampering DDA- Line Crossing DDA- Sterile Area DDA- Object Counting | R96: Yes | S96: $54.00 | U96: Yes | V96: =SUM((S96*1.095)+((S96*1.07)*Sheet1!C$3)) -> $59.13 | X96: Yes | Y96: 16 | Z96: 16
A97: 1 | B97: 1 | D97: DH-340SRN-MVF | F97: Rainbow | G97: Camera- H.265 S-Sight Series, Dome/Turret IR 40M(2 LED Array), Motorized 2.8-12mm lens, 4M with PoE | H97: 4MP | I97: Turret/Dome | J97: True WDR | K97: Motorized Vari-Focal | L97: 2.8-12mm (105.4°-34°) | M97: IP67 | N97: 40M Hybrid High Power LED | O97: PR-JB14IP66/ PR-JB14IP64/ PR-WB-A | P97: Audio In Built-in Mic SD Card Color at night | Q97: Camera Tampering DDA- Line Crossing DDA- Sterile Area DDA- Object Counting | R97: Yes | S97: $78.00 | U97: Yes | V97: =SUM((S97*1.095)+((S97*1.07)*Sheet1!C$3)) -> $85.41 | X97: Yes | Y97: 12 | Z97: 6
A98: 1 | B98: 1 | D98: BSV-340SRN-36 | F98: Rainbow | G98: Camera- H.265 S-Sight Rainbow Series, bullet, White LED, 3.6mm Lens 4M with PoE | H98: 4MP | I98: Bullet | J98: True WDR | K98: Fixed | L98: 3.6mm (98°) | M98: IP67 | N98: 25M (White Led) | O98: PR-JB12IP66/ PR-JB12IP64 | P98: Audio In SD Card Color at night | Q98: Camera Tampering DDA- Line Crossing DDA- Sterile Area DDA- Object Counting | R98: Yes | S98: $52.00 | U98: Yes | V98: =SUM((S98*1.095)+((S98*1.07)*Sheet1!C$3)) -> $56.94 | X98: Yes | Y98: 18 | Z98: 18
A99: 1 | B99: 1 | D99: BMV-340SRN-36 | F99: Rainbow | G99: Camera- H.265 S-Sight Rainbow Series,, bullet, White LED, 3.6mm Lens 4M with PoE | H99: 4MP | I99: Bullet | J99: True WDR | K99: Fixed | L99: 3.6mm (79°) | M99: IP67 | N99: 40M (White Led) | O99: PR-JB12IP66/ PR-JB12IP64 | P99: Audio In Built-in Mic SD Card Color at night | Q99: Camera Tampering DDA- Line Crossing DDA- Sterile Area DDA- Object Counting | R99: Yes | S99: $59.00 | U99: Yes | V99: =SUM((S99*1.095)+((S99*1.07)*Sheet1!C$3)) -> $64.61 | X99: Yes | Y99: 10 | Z99: 10
A100: 1 | B100: 1 | D100: BMH-340SRN-MVF | F100: Rainbow | G100: Camera- H.265 S-Sight Series, Bullet, IR 40M(2 LED Array), Motorized 2.8-12mm lens, 4M with PoE | H100: 4MP | I100: Bullet | J100: True WDR | K100: Motorized Vari-Focal | L100: 2.8-12mm (105.4°-34°) | M100: IP67 | N100: 40M Hybrid High Power LED | O100: PR-JB12IP66/ PR-JB12IP64 | P100: Audio In Built-in Mic SD Card Color at night | Q100: Camera Tampering DDA- Line Crossing DDA- Sterile Area DDA- Object Counting | R100: Yes | S100: $78.00 | U100: Yes | V100: =SUM((S100*1.095)+((S100*1.07)*Sheet1!C$3)) -> $85.41 | X100: Yes | Y100: 10 | Z100: 10
A101: 1 | B101: 1 | D101: DL-340IPERN-36 | F101: Rainbow | G101: Camera- H.265 E-Sight Rainbow Series, Dome/Turret , White LED, 3.6mm Lens, 4M with PoE | H101: 4MP | I101: Turret/Dome | J101: True WDR | K101: Fixed | L101: 3.6mm (77.9°) | M101: IP67 | N101: 25M (White Led) | O101: PR-JB12IP66/ PR-JB12IP64/ PR-WB-A | P101: Audio In Built-in Mic SD Card Color at night | Q101: Camera Tampering DDA- Line Crossing DDA- Sterile Area DDA- Object Counting Face Detection | R101: Yes | S101: $54.00 | T101: $80.00 | U101: Yes | V101: =SUM((S101*1.095)+((S101*1.07)*Sheet1!C$3)) -> $59.13 | W101: $87.60 | X101: Yes | Y101: 16 | Z101: 16 | AA101: Special offer price
A102: 1 | B102: 1 | D102: TL-340IPERN-36 | F102: Rainbow | G102: Camera- H.265 E-Sight Rainbow Series, bullet, White LED, 3.6mm Lens, 4M with PoE | H102: 4MP | I102: Bullet | J102: True WDR | K102: Fixed | L102: 3.6mm (77.9°) | M102: IP67 | N102: 25M (White Led) | O102: PR-JB12IP66/ PR-JB12IP64 | P102: Audio In Built-in Mic SD Card Color at night | Q102: Camera Tampering DDA- Line Crossing DDA- Sterile Area DDA- Object Counting Face Detection | R102: Yes | S102: $59.00 | T102: $85.00 | U102: Yes | V102: =SUM((S102*1.095)+((S102*1.07)*Sheet1!C$3)) -> $64.61 | W102: $93.08 | X102: Yes | Y102: 10 | Z102: 10 | AA102: Special offer price

Sheet DVR
C1: DVR
C4: Model | D4: Free text | E4: Description | F4: No. of Channels | G4: No. of IP Channels | H4: HD Max Resolution | I4: HD Max Real-Time Resolution | J4: IP Max Resolution | K4: Bandwidth | L4: HDD | M4: E-Sata | N4: Audio | O4: Video Output | P4: Dry Contact | Q4: NDAA | R4: China Price | S4: Old Price | T4: China Availability | U4: Netherlands Price | V4: Old Price | W4: Netherland Availability | X4: Unit Per Carton | Y4: MOQ | Z4: Remarks
A5: 1 | B5: 1 | C5: SH-4100A5N-2L(MM) | E5: All In 1 Hybrid Stand Alone DVR-H.265 1080P Lite , 4CH Video Inputs. MM case | F5: 4 | G5: up to 2 | H5: 2MP Lite | I5: 2MP Lite | J5: 3MP | K5: 10Mbps/ 30Mbps | L5: 1 of 6TB max | M5: 0 | N5: IN- 1+IPC Out- 1+IPC | O5: HDMI, VGA, CVBS | P5: Based on IPC Only | Q5: Yes | R5: $28.00 | T5: Yes | U5: =SUM((R5*1.095)+((R5*1.07)*Sheet1!C$4)) -> $30.66 | W5: Yes | X5: 5 | Y5: 5
C6: SH-4050A5N-5L(MM)-V2 | E6: H.265 All In 1 Hybrid NDAA DVR-5MP Lite, 4CH Video Inputs. MM case, CheckPoint Embedded, SMD | F6: 4 | G6: up to 2 | H6: 5MP Lite | I6: 2MP Lite | J6: 5MP | K6: 16Mbps/ 40Mbps | L6: 1 of 10TB max | M6: 0 | N6: IN- 1+IPC Out- 1+IPC | O6: HDMI, VGA, CVBS | P6: Based on IPC Only | Q6: Yes | R6: $42.00 | T6: Yes | U6: =SUM((R6*1.095)+((R6*1.07)*Sheet1!C$4)) -> $45.99 | W6: Yes | X6: 5 | Y6: 5
A7: 1 | B7: 1 | C7: SH-4050A5N-5L | E7: H.265 All In 1 Hybrid Stand Alone DVR-5MP Lite, 4CH Video Inputs. Small 1U case | F7: 4 | G7: up to 2 | H7: 5MP Lite | I7: 2MP Lite | J7: 5MP | K7: 16Mbps/ 40Mbps | L7: 1 of 8TB max | M7: 0 | N7: IN- 4+IPC Out- 1+IPC | O7: HDMI, VGA, CVBS | P7: IN- 4+IPC Out- 1+IPC | Q7: Yes | R7: $53.00 | T7: Yes | U7: =SUM((R7*1.095)+((R7*1.07)*Sheet1!C$4)) -> $58.04 | W7: Yes | X7: 4 | Y7: 4 | Z7: announcing EOL, till stock last
A8: 1 | B8: 1 | C8: SH-4050A5N-8L(MM) | E8: H.265 All In 1 Hybrid Stand Alone DVR-8MP Lite, 4CH Video Inputs. MM case | F8: 4 | G8: up to 2 | H8: 8MP Lite | I8: 4MP Lite | J8: 8MP | K8: 16Mbps/ 40Mbps | L8: 1 of 6TB max | M8: 0 | N8: IN- 1+IPC Out- 1+IPC | O8: HDMI (4K), VGA, CVBS | P8: Based on IPC Only | Q8: Yes | R8: $63.00 | T8: Yes | U8: =SUM((R8*1.095)+((R8*1.07)*Sheet1!C$4)) -> $68.99 | W8: Yes | X8: 5 | Y8: 5
A9: 1 | B9: 1 | C9: SH-4050A5-8L | E9: H.265 All In 1 Hybrid Stand Alone DVR-8MP Lite, 4CH Video Inputs. Small 1U case | F9: 4 | G9: up to 6 | H9: 8MP Lite | I9: 4MP Lite | J9: 8MP | K9: 40Mbps/ 40Mbps | L9: 1 of 8TB max | M9: 1 | N9: IN- 4+IPC Out- 1+IPC | O9: HDMI (4K), VGA, CVBS | P9: IN- 4+IPC Out- 1+IPC | Q9: No | R9: $72.00 | T9: Yes | U9: =SUM((R9*1.095)+((R9*1.07)*Sheet1!C$4)) -> $78.84 | W9: Yes | X9: 4 | Y9: 4 | Z9: announcing EOL, till stock last
A10: 1 | B10: 1 | C10: SH-8100A5N-2L(MM) | E10: All In 1 Hybrid Stand Alone DVR-H.265 1080P Lite , 8CH Video Inputs. MM case | F10: 8 | G10: up to 4 | H10: 2MP Lite | I10: 1MP | J10: 5MP | K10: 16Mbps/ 60Mbps | L10: 1 of 6TB max | M10: 0 | N10: IN- 1+IPC Out- 1+IPC | O10: HDMI, VGA | P10: Based on IPC Only | Q10: Yes | R10: $37.00 | T10: Yes | U10: =SUM((R10*1.095)+((R10*1.07)*Sheet1!C$4)) -> $40.52 | W10: Yes | X10: 5 | Y10: 5
C11: SH-8100A5N-5L(MM)-V2 | E11: DVR-5MP Lite, 8CH Video Inputs, NDAA, CheckPoint Embedded, MM case. SMD | F11: 8 | G11: up to 4 | H11: 5MP Lite | I11: 2MP Lite | J11: 5MP | K11: 32Mbps/ 60Mbps | L11: 1 of 10TB max | M11: 32Mbps/ 60Mbps | N11: IN- 1+IPC Out- 1+IPC | O11: HDMI, VGA, CVBS | P11: Based on IPC Only | Q11: Yes | R11: $66.00 | T11: Yes | U11: =SUM((R11*1.095)+((R11*1.07)*Sheet1!C$4)) -> $72.27 | W11: Yes | X11: 5 | Y11: 5
C12: SH-8100A5N-5L-V2 | E12: DVR-5MP Lite, 8CH Video Inputs, NDAA, CheckPoint Embedded, Small 1U case | F12: 8 | G12: up to 12 | H12: 5MP Lite | I12: 2MP Lite | J12: 5MP | K12: 60Mbps/ 60Mbps | L12: 1 of 8TB max | M12: 1 | N12: IN- 8+IPC Out- 1+IPC | O12: HDMI, VGA, CVBS | P12: IN- 8+IPC Out- 2+IPC | Q12: Yes | R12: $82.00 | T12: Yes | U12: =SUM((R12*1.095)+((R12*1.07)*Sheet1!C$4)) -> $89.79 | W12: Yes | X12: 4 | Y12: 4
A13: 1 | B13: 1 | C13: SH-8100A5N-8L(MM) | E13: H.265 All In 1 Hybrid Stand Alone DVR-8MP Lite, 8CH Video Inputs. MM case | F13: 8 | G13: up to 8 | H13: 8MP Lite | I13: 4MP Lite | J13: 8MP | K13: 32Mbps/ 80Mbps | L13: 1 of 6TB max | M13: 0 | N13: IN- 1+IPC Out- 1+IPC | O13: HDMI (4K), VGA, CVBS | P13: Based on IPC Only | Q13: Yes | R13: $110.00 | T13: EOL | U13: =SUM((R13*1.095)+((R13*1.07)*Sheet1!C$4)) -> $120.45 | W13: Yes | X13: 5 | Y13: 5 | Z13: EOL, replace by SH-8100A5N-5L(MM)-V2
C14: SH-8100A5N-8L(MM)-V2 | E14: H.265 All In 1 Hybrid Stand Alone DVR-8MP Lite, 8CH Video Inputs. MM case | F14: 8 | G14: up to 8 | H14: 8MP Lite | I14: 4MP Lite | J14: 8MP | K14: 32Mbps/ 80Mbps | L14: 1 of 6TB max | M14: 0 | N14: IN- 1+IPC Out- 1+IPC | O14: HDMI (4K), VGA, CVBS | P14: Based on IPC Only | Q14: Yes | R14: $110.00 | T14: Yes | U14: =SUM((R14*1.095)+((R14*1.07)*Sheet1!C$4)) -> $120.45 | W14: Yes | X14: 5 | Y14: 5 | Z14: New Model
C15: SH-8100A5N-8L(1U)-V2 | E15: H.265 All In 1 Hybrid Stand Alone DVR-8MP Lite, 8CH Video Inputs. 1U case | F15: 8 | G15: up to 8 | H15: 8MP Lite | I15: 4MP Lite | J15: 8MP | K15: 32Mbps/ 96Mbps | L15: 2 of 8TB max | M15: 1 | N15: IN- 8+IPC Out- 1+IPC | O15: HDMI (4K), VGA, CVBS | P15: IN- 8+IPC Out- 2+IPC | Q15: Yes | R15: $150.00 | T15: Yes | U15: =SUM((R15*1.095)+((R15*1.07)*Sheet1!C$4)) -> $164.25 | W15: Yes | X15: 4 | Y15: 4
A16: 1 | B16: 1 | C16: SH-8100A5-8(1U) | E16: H.265 All In 1 Hybrid Stand Alone DVR-8MP, 8CH Video Inputs. 1U case | F16: 8 | G16: up to 12 | H16: 8MP | I16: 5MP Lite | J16: 8MP | K16: 96Mbps/ 128Mbps | L16: 2 of 8TB max | M16: 1 | N16: IN- 8+IPC Out- 1+IPC | O16: HDMI (4K), VGA, CVBS | P16: IN- 8+IPC Out- 2+IPC | Q16: No | R16: $180.00 | T16: Yes | U16: =SUM((R16*1.095)+((R16*1.07)*Sheet1!C$4)) -> $197.10 | W16: Yes | X16: 4 | Y16: 1 | Z16: Soon to be EOL
A17: 1 | B17: 1 | C17: SH-16200A5N-2L(MM) | E17: All In 1 Hybrid Stand Alone DVR-H.265 1080P Lite , 16CH Video Inputs. MM case | F17: 16 | G17: up to 2 | H17: 2MP Lite | I17: 1MP | J17: 5MP | K17: 16Mbps/ 80Mbps | L17: 1 of 6TB max | M17: 0 | N17: Based on IPC Only | O17: HDMI, VGA, CVBS | P17: Based on IPC Only | Q17: Yes | R17: $62.50 | T17: Yes | U17: =SUM((R17*1.095)+((R17*1.07)*Sheet1!C$4)) -> $68.44 | W17: Yes | X17: 5 | Y17: 5
A18: 1 | B18: 1 | C18: SH-16200A5N-5L(MM) | E18: H.265 All In 1 Hybrid Stand Alone DVR-5MP Lite, 16CH Video Inputs. MM case | F18: 16 | G18: up to 8 | H18: 5MP Lite | I18: 2MP Lite | J18: 5MP | K18: 32Mbps/ 80Mbps | L18: 1 of 6TB max | M18: 0 | N18: IN- 1+IPC Out- 1+IPC | O18: HDMI, VGA, CVBS | P18: Based on IPC Only | Q18: Yes | R18: $110.00 | T18: Yes | U18: =SUM((R18*1.095)+((R18*1.07)*Sheet1!C$4)) -> $120.45 | W18: Yes | X18: 5 | Y18: 5
C19: SH-16200A5N-5L(1U)V2 | E19: H.265 All In 1 Hybrid Stand Alone DVR-5MP Lite, 16CH Video Inputs. 1U case | F19: 16 | G19: up to 8 | H19: 5MP Lite | I19: 2MP Lite | J19: 5MP | K19: 64Mbps/ 96Mbps | L19: 2 of 8TB max | M19: 1 | N19: IN- 8+IPC Out- 1+IPC | O19: HDMI, VGA, CVBS | P19: IN- 16+IPC Out- 4+IPC | Q19: Yes | R19: $139.00 | T19: Yes | U19: =SUM((R19*1.095)+((R19*1.07)*Sheet1!C$4)) -> $152.21 | W19: Yes | X19: 4 | Y19: 4
C20: SH-16200A5N-8L(1U) | E20: H.265 All In 1 Hybrid Stand Alone DVR- 8MP Lite, 16CH Video Inputs. 1U case | F20: 16 | G20: up to 16 | H20: 8MP Lite | I20: 4MP Lite | J20: 8MP | K20: 64Mbps/ 96Mbps | L20: 2 of 8TB max | M20: 1 | N20: IN- 8+IPC Out- 1 | O20: HDMI (4K), VGA,CVBS | P20: IN- 16+IPC Out- 4+IPC | Q20: Yes | R20: $250.00 | T20: Yes | U20: =SUM((R20*1.095)+((R20*1.07)*Sheet1!C$4)) -> $273.75 | W20: Yes | X20: 4 | Y20: 4
C21: SH-32400A5N-5L(1.5U) | E21: H.265 All In 1 Hybrid Stand Alone DVR-5MP Lite, 32CH Video Inputs. 1.5U case | F21: 32 | G21: up to 16 | H21: 5MP Lite | I21: 2MP Lite | J21: 5MP | K21: 88Mbps/ 160Mbps | L21: 4 of 8TB max | M21: 1 | N21: IN- 16+IPC Out- 1+IPC | O21: HDMI, VGA, CVBS | P21: IN- 16+IPC Out- 4+IPC | Q21: Yes | R21: $320.00 | T21: EOL | U21: =SUM((R21*1.095)+((R21*1.07)*Sheet1!C$4)) -> $350.40 | W21: Mar | X21: 2 | Y21: 2 | Z21: EOL, replace by SH-32400A5N-5L(1.5U)-V2
C22: SH-32400A5N-5L(1.5U)-V2 | E22: DVR-5MP Lite, 32CH Video Inputs, NDAA, CheckPoint Embedded,1.5U case. | F22: 32 | G22: up to 16 | H22: 5MP Lite | I22: 2MP Lite | J22: 5MP | K22: 88Mbps/ 160Mbps | L22: 4 of 8TB max | M22: 1 | N22: IN- 16+IPC Out- 1+IPC | O22: HDMI, VGA, CVBS | P22: IN- 16+IPC Out- 4+IPC | Q22: Yes | R22: $300.00 | T22: Yes | U22: =SUM((R22*1.095)+((R22*1.07)*Sheet1!C$4)) -> $328.50 | W22: Yes | X22: 2 | Y22: 2 | Z22: New Model

Sheet HDC
C1: HDC
C4: Series | D4: Free text | E4: Series | F4: Description | G4: Resolution | H4: Housing | I4: Lens Type | J4: Lens Focal | K4: Protection | L4: IR Range | M4: Juntion box | N4: Special features | O4: China Price | P4: Old Price | Q4: China Availability | R4: Netherlands Price | S4: Old Price | T4: Netherland Availability | U4: Unit Per Carton | V4: MOQ | W4: Remarks
A5: 1 | C5: DI-320AB-28 | E5: Basic | F5: Camera HD-2MP Basic series, Turret, IR 20M (1 LED Array), 2.8mm Lens | G5: 2MP | H5: Turret/Dome | I5: Fixed | J5: 2.8mm (88°) | K5: IP67 | L5: 20M | M5: PR-JB12IP66 / PR-JB12IP64 / PR-WB-A | N5: HLC | O5: $11.00 | Q5: Yes | R5: =SUM((O5*1.095)+((O5*1.07)*Sheet1!C$3)) -> $12.05 | T5: Yes | U5: 16 | V5: 16 | W5: New model
A6: 1 | C6: I2-320AB-28 | E6: Basic | F6: Camera HD-2MP Basic series, Bullet, IR 20M (1 LED Array), 2.8mm Lens | G6: 2MP | H6: Bullet | I6: Fixed | J6: 2.8mm (88°) | K6: IP67 | L6: 20M | M6: PR-JB12IP66 / PR-JB12IP64 | N6: None | O6: $11.00 | Q6: Yes | R6: =SUM((O6*1.095)+((O6*1.07)*Sheet1!C$3)) -> $12.05 | T6: Mar | U6: 18 | V6: 18 | W6: New model
A7: 1 | C7: DI-33K0AB-28 | E7: Basic | F7: Camera HD-3K Basic series, Turret, IR 20M (1 LED Array), 2.8mm Lens | G7: 3K | H7: Turret/Dome | I7: Fixed | J7: 2.8mm (98°) | K7: IP67 | L7: 20M | M7: PR-JB12IP66 / PR-JB12IP64 / PR-WB-A | N7: Built-in Mic D-WDR HLC | O7: $18.00 | Q7: Yes | R7: =SUM((O7*1.095)+((O7*1.07)*Sheet1!C$3)) -> $19.71 | T7: Mar | U7: 18 | V7: 18 | W7: New model
A8: 1 | C8: I2-33K0AB-28 | E8: Basic | F8: Camera HD-3K Basic series, Bullet, IR 20M (1 LED Array), 2.8mm Lens | G8: 3K | H8: Bullet | I8: Fixed | J8: 2.8mm (98°) | K8: IP67 | L8: 20M | M8: PR-JB12IP66 / PR-JB12IP64 | N8: Built-in Mic D-WDR HLC | O8: $18.00 | Q8: Yes | R8: =SUM((O8*1.095)+((O8*1.07)*Sheet1!C$3)) -> $19.71 | T8: Feb | U8: 18 | V8: 18 | W8: New model
A9: 1 | C9: BX-391A | E9: Pro | F9: Camera-AHD Pro Series, Box, 1/2.8" Sensor, 2.0MP | G9: 2MP | H9: Box | I9: None | J9: - | K9: - | L9: - | M9: None | N9: HLC | O9: $27.00 | Q9: Yes | R9: =SUM((O9*1.095)+((O9*1.07)*Sheet1!C$3)) -> $29.57 | T9: Yes | U9: 10 | V9: 10 | W9: EOL item, no replacment
A10: 1 | C10: DI-320A-28 | E10: Pro | F10: Camera HD- 2MP Pro series, Dome/Turret IR 20M (1 LED Array), 2.8mm Lens | G10: 2MP | H10: Turret/Dome | I10: Fixed | J10: 2.8mm (88°) | K10: IP67 | L10: 20M | M10: PR-JB12IP66 / PR-JB12IP64 / PR-WB-A | N10: None | O10: $16.00 | Q10: Yes | R10: =SUM((O10*1.095)+((O10*1.07)*Sheet1!C$3)) -> $17.52 | T10: Yes | U10: 16 | V10: 16
A11: 1 | C11: DI-320A-VF | E11: Pro | F11: Camera HD- 2MP Pro series, Dome/Turret IR 40M(3LED Array), 2.8-12mm Lens | G11: 2MP | H11: Turret/Dome | I11: Vari-Focal | J11: 2.8-12mm (88°-33°) | K11: IP67 | L11: 40M | M11: PR-JB14IP66 / PR-JB14IP64 / PR-WB-A | N11: None | O11: $25.00 | Q11: Yes | R11: =SUM((O11*1.095)+((O11*1.07)*Sheet1!C$3)) -> $27.38 | T11: Yes | U11: 12 | V11: 6
A12: 1 | C12: DI-320A-VF-G | E12: Pro | F12: Camera HD- 2MP Pro series, Turret IR 40M(3LED Array), 2.8-12mm Lens Grey | G12: 2MP | H12: Turret/Dome | I12: Vari-Focal | J12: 2.8-12mm (88°-33°) | K12: IP67 | L12: 40M | M12: PR-JB14IP66-G/ PR-WB-A-G | N12: None | O12: $25.00 | Q12: Yes | R12: =SUM((O12*1.095)+((O12*1.07)*Sheet1!C$3)) -> $27.38 | T12: Yes | U12: 12 | V12: 6
A13: 1 | C13: I2-320A-28 | E13: Pro | F13: Camera HD- 2MP Pro series, Bullet, IR 20M (1 LED Array), 2.8mm Lens | G13: 2MP | H13: Bullet | I13: Fixed | J13: 2.8mm (88°) | K13: IP67 | L13: 20M | M13: PR-JB12IP66 / PR-JB12IP64 | N13: None | O13: $16.00 | Q13: Yes | R13: =SUM((O13*1.095)+((O13*1.07)*Sheet1!C$3)) -> $17.52 | T13: Yes | U13: 18 | V13: 18
A14: 1 | C14: I4-320A-28 | E14: Pro | F14: Camera HD- 2MP Pro series, Bullet, IR 30M (2LED Array), 2.8mm Lens | G14: 2MP | H14: Bullet | I14: Fixed | J14: 2.8mm (88°) | K14: IP67 | L14: 40M | M14: PR-JB12IP66 / PR-JB12IP64 | N14: None | O14: $20.00 | Q14: Yes | R14: =SUM((O14*1.095)+((O14*1.07)*Sheet1!C$3)) -> $21.90 | T14: Yes | U14: 10 | V14: 10
A15: 1 | C15: I4-320A-VF | E15: Pro | F15: Camera HD- 2MP Pro series, Bullet, IR 40M (3 LED Array), 2.8-12mm Lens | G15: 2MP | H15: Bullet | I15: Vari-Focal | J15: 2.8-12mm (88°-33°) | K15: IP67 | L15: 40M | M15: PR-JB12IP66 / PR-JB12IP64 | N15: None | O15: $25.50 | Q15: Yes | R15: =SUM((O15*1.095)+((O15*1.07)*Sheet1!C$3)) -> $27.92 | T15: Yes | U15: 10 | V15: 10
A16: 1 | C16: I4-320A-VF-G | E16: Pro | F16: Camera HD- 2MP Pro series, Bullet, IR 40M (3 LED Array), 2.8-12mm Lens, Grey | G16: 2MP | H16: Bullet | I16: Vari-Focal | J16: 2.8-12mm (88°-33°) | K16: IP67 | L16: 40M | M16: PR-JB12IP66-G | N16: None | O16: $25.50 | Q16: Yes | R16: =SUM((O16*1.095)+((O16*1.07)*Sheet1!C$3)) -> $27.92 | T16: Yes | U16: 10 | V16: 10
A17: 1 | C17: DI-350A-28 | E17: Pro | F17: Camera HD- 5MP Pro series, Dome/Turret IR 20M (1 LED Array), 2.8mm Lens | G17: 5MP | H17: Turret/Dome | I17: Fixed | J17: 2.8mm (91°) | K17: IP67 | L17: 20M | M17: PR-JB12IP66 / PR-JB12IP64 / PR-WB-A | N17: D-WDR | O17: $23.00 | Q17: Yes | R17: =SUM((O17*1.095)+((O17*1.07)*Sheet1!C$3)) -> $25.19 | T17: Yes | U17: 16 | V17: 16 | W17: EOL, replaced by DI-33K0AP-28
A18: 1 | C18: DI-33K0AP-28 | E18: Pro | F18: Camera HD-3K Basic series, Turret, IR 20M (1 LED Array), 2.8mm Lens | G18: 3K | H18: Turret/Dome | I18: Fixed | J18: 2.8mm (100°) | K18: IP67 | L18: 20M | M18: PR-JB12IP66 / PR-JB12IP64 / PR-WB-A | N18: Built-in Mic D-WDR | O18: $20.00 | Q18: Feb | R18: =SUM((O18*1.095)+((O18*1.07)*Sheet1!C$3)) -> $21.90 | T18: Apr | U18: 16 | V18: 16 | W18: New model
A19: 1 | C19: DI-350A-VF | E19: Pro | F19: Camera HD- 5MP Pro Series, Dome/Turret IR 40M(3 LED Array), 2.8-12mm lens | G19: 5MP | H19: Turret/Dome | I19: Vari-Focal | J19: 2.8-12mm (84°-32°) | K19: IP67 | L19: 40M | M19: PR-JB14IP66 / PR-JB14IP64 / PR-WB-A | N19: D-WDR | O19: $36.00 | Q19: Yes | R19: =SUM((O19*1.095)+((O19*1.07)*Sheet1!C$3)) -> $39.42 | T19: Yes | U19: 12 | V19: 6
A20: 1 | C20: DI-350A-MVF | E20: Pro | F20: Camera HD- 5MP Pro Series, Dome/Turret IR 40M(3 LED Array), Motorized 2.8-12mm lens | G20: 5MP | H20: Turret/Dome | I20: Motorized Vari-Focal | J20: 2.8-12mm (84°-32°) | K20: IP67 | L20: 40M | M20: PR-JB14IP66 / PR-JB14IP64 / PR-WB-A | N20: D-WDR | O20: $38.00 | Q20: Yes | R20: =SUM((O20*1.095)+((O20*1.07)*Sheet1!C$3)) -> $41.61 | T20: Yes | U20: 12 | V20: 6 | W20: EOL, replaced by DI-33K0AP-MVF
A21: 1 | C21: DI-33K0AP-MVF | E21: Pro | F21: Camera HD- 3K Pro Series, 16:9,DWDR,Audio over coax,Turret IR 40M, Motorized 2.8-12mm lens | G21: 3K | H21: Turret/Dome | I21: Motorized Vari-Focal | J21: 2.8-12mm (104°-38°) | K21: IP67 | L21: 40M | M21: PR-JB14IP66 / PR-JB14IP64 / PR-WB-A | N21: Built-in Mic D-WDR | O21: $35.00 | Q21: Mar | R21: =SUM((O21*1.095)+((O21*1.07)*Sheet1!C$3)) -> $38.33 | T21: Apr | U21: 12 | V21: 6 | W21: New model
A22: 1 | C22: DI-350A-MVF-G | E22: Pro | F22: Camera HD- 5MP Pro Series, Dome/Turret IR 40M(3 LED Array), Motorized 2.8-12mm lens, Grey | G22: 5MP | H22: Turret/Dome | I22: Motorized Vari-Focal | J22: 2.8-12mm (84°-32°) | K22: IP67 | L22: 40M | M22: PR-JB14IP66-G / PR-WB-A-G | N22: D-WDR | O22: $40.00 | Q22: Yes | R22: =SUM((O22*1.095)+((O22*1.07)*Sheet1!C$3)) -> $43.80 | T22: Yes | U22: 12 | V22: 6
A23: 1 | C23: DAI-350A-MVF | E23: Pro | F23: Camera HD-5MP Pro series, Anti-vandal, IR 40M (3LED Array), 2.8-12mm motorized Lens | G23: 5MP | H23: Dome Anti-Vandal | I23: Motorized Vari-Focal | J23: 2.8-12mm (84°-32°) | K23: IP67 | L23: 40M | M23: PR-JBA14IP66 | N23: Anti-Vandal D-WDR | O23: $42.00 | Q23: Yes | R23: =SUM((O23*1.095)+((O23*1.07)*Sheet1!C$3)) -> $45.99 | T23: Yes | U23: 6 | V23: 6
A24: 1 | C24: I2-350A-28 | E24: Pro | F24: Camera HD- 5MP Pro series, Bullet, IR 20M (1 LED Array), 2.8mm Lens | G24: 5MP | H24: Bullet | I24: Fixed | J24: 2.8mm (91°) | K24: IP67 | L24: 20M | M24: PR-JB12IP66 / PR-JB12IP64 | N24: D-WDR | O24: $23.00 | Q24: Yes | R24: =SUM((O24*1.095)+((O24*1.07)*Sheet1!C$3)) -> $25.19 | T24: Yes | U24: 18 | V24: 18 | W24: EOL, replaced by I2-33K0AP-28
A25: 1 | C25: I2-33K0AP-28 | E25: Pro | F25: Camera HD-3K Pro series, 16:9,DWDR,Audio over coax,Bullet, IR 20M , 2.8mm Lens | G25: 3K | H25: Bullet | I25: Fixed | J25: 2.8mm (100°) | K25: IP67 | L25: 20M | M25: PR-JB12IP66 / PR-JB12IP64 | N25: Built-in Mic D-WDR | O25: $20.00 | Q25: Feb | R25: =SUM((O25*1.095)+((O25*1.07)*Sheet1!C$3)) -> $21.90 | T25: Apr | U25: 18 | V25: 18 | W25: New model
A26: 1 | C26: I4-350A-28 | E26: Pro | F26: Camera HD- 5MP Pro series, Bullet, IR 30M (2LED Array), 2.8mm Lens | G26: 5MP | H26: Bullet | I26: Fixed | J26: 2.8mm (91°) | K26: IP67 | L26: 40M | M26: PR-JB12IP66 / PR-JB12IP64 | N26: D-WDR | O26: $28.50 | Q26: Yes | R26: =SUM((O26*1.095)+((O26*1.07)*Sheet1!C$3)) -> $31.21 | T26: Yes | U26: 10 | V26: 10 | W26: EOL, replaced by I4-33K0AP-28
A27: 1 | C27: I4-33K0AP-28 | E27: Pro | F27: Camera HD- 3K Pro series, 16:9,DWDR,Audio over coax,Bullet, IR 40M , 2.8Lens | G27: 3K | H27: Bullet | I27: Fixed | J27: 2.8mm (100°) | K27: IP67 | L27: 40M | M27: PR-JB12IP66 / PR-JB12IP64 | N27: Built-in Mic D-WDR | O27: $23.00 | Q27: Mar | R27: =SUM((O27*1.095)+((O27*1.07)*Sheet1!C$3)) -> $25.19 | T27: May | U27: 10 | V27: 10 | W27: New model
A28: 1 | C28: I4-350A-VF | E28: Pro | F28: Camera HD- 5MP Pro series, Bullet, IR 40M(3 LED Array), 2.8-12mm Lens | G28: 5MP | H28: Bullet | I28: Vari-Focal | J28: 2.8-12mm (84°-32°) | K28: IP67 | L28: 40M | M28: PR-JB12IP66 / PR-JB12IP64 | N28: D-WDR | O28: $37.00 | Q28: Yes | R28: =SUM((O28*1.095)+((O28*1.07)*Sheet1!C$3)) -> $40.52 | T28: Yes | U28: 10 | V28: 10
A29: 1 | C29: I4-350A-MVF | E29: Pro | F29: Camera HD- 5MP Pro series, Bullet, IR 40M (3 LED Array), 2.8-12mm motorized Lens | G29: 5MP | H29: Bullet | I29: Motorized Vari-Focal | J29: 2.8-12mm (84°-32°) | K29: IP67 | L29: 40M | M29: PR-JB12IP66 / PR-JB12IP64 | N29: D-WDR | O29: $38.50 | Q29: Yes | R29: =SUM((O29*1.095)+((O29*1.07)*Sheet1!C$3)) -> $42.16 | T29: Yes | U29: 10 | V29: 10 | W29: EOL, replaced by I4-33K0AP-MVF
A30: 1 | C30: I4-33K0AP-MVF | E30: Pro | F30: Camera HD- 3K Pro series, 16:9,DWDR,Audio over coax,Bullet, IR 40M , 2.8-12mm motorized Lens | G30: 3K | H30: Bullet | I30: Motorized Vari-Focal | J30: 2.8-12mm (103°-38°) | K30: IP67 | L30: 40M | M30: PR-JB12IP66 / PR-JB12IP64 | N30: Built-in Mic D-WDR | O30: $35.00 | Q30: Feb | R30: =SUM((O30*1.095)+((O30*1.07)*Sheet1!C$3)) -> $38.33 | T30: Apr | U30: 10 | V30: 10 | W30: New model
A31: 1 | C31: DI-380A-28 | E31: Pro | F31: Camera HD- 8MP Pro series, Dome/Turret, IR 20M (1 LED Array), 2.8mm Lens | G31: 8MP | H31: Turret/Dome | I31: Fixed | J31: 2.8mm (89.3°) | K31: IP67 | L31: 20M | M31: PR-JB12IP66 / PR-JB12IP64 / PR-WB-A | N31: None | O31: $38.00 | Q31: Yes | R31: =SUM((O31*1.095)+((O31*1.07)*Sheet1!C$3)) -> $41.61 | T31: Yes | U31: 16 | V31: 16
A32: 1 | C32: DI-380A-MVF | E32: Pro | F32: Camera HD- 8MP Pro series, Dome/Turret, IR 40M (3 LED Array), 2.8-12mm motorized Lens | G32: 8MP | H32: Turret/Dome | I32: Motorized Vari-Focal | J32: 2.8-12mm (78°-31.3°) | K32: IP67 | L32: 40M | M32: PR-JB14IP66 / PR-JB14IP64 / PR-WB-A | N32: None | O32: $55.00 | Q32: Yes | R32: =SUM((O32*1.095)+((O32*1.07)*Sheet1!C$3)) -> $60.23 | T32: Yes | U32: 12 | V32: 6
A33: 1 | C33: DAI-380A-MVF | E33: Pro | F33: Camera HD-8MP Pro series, Anti-vandal, IR 40M (3LED Array), 2.8-12mm motorized Lens | G33: 8MP | H33: Dome Anti-Vandal | I33: Motorized Vari-Focal | J33: 2.8-12mm (83.5°-32°) | K33: IP67 | L33: 40M | M33: PR-JB14IP66 | N33: Anti-Vandal | O33: $60.00 | Q33: Yes | R33: =SUM((O33*1.095)+((O33*1.07)*Sheet1!C$3)) -> $65.70 | T33: Yes | U33: 6 | V33: 6
A34: 1 | C34: I2-380A-28 | E34: Pro | F34: Camera HD- 8MP Pro series, Bullet, IR 20M (1 LED Array), 2.8mm Lens | G34: 8MP | H34: Bullet | I34: Fixed | J34: 2.8mm (95°) | K34: IP67 | L34: 20M | M34: PR-JB12IP66 / PR-JB12IP64 | N34: None | O34: $37.00 | Q34: Yes | R34: =SUM((O34*1.095)+((O34*1.07)*Sheet1!C$3)) -> $40.52 | T34: Yes | U34: 18 | V34: 18
A35: 1 | C35: I4-380A-MVF | E35: Pro | F35: Camera HD- 8MP Pro series, Bullet, IR 40M (3 LED Array), 2.8-12mm motorized Lens | G35: 8MP | H35: Bullet | I35: Motorized Vari-Focal | J35: 2.8-12mm (82.5°-31.5°) | K35: IP67 | L35: 40M | M35: PR-JB12IP66 / PR-JB12IP64 | N35: None | O35: $56.00 | Q35: Yes | R35: =SUM((O35*1.095)+((O35*1.07)*Sheet1!C$3)) -> $61.32 | T35: Yes | U35: 10 | V35: 10
A36: 1 | C36: DI-320AU-MVF | E36: Ultra | F36: Camera HD- 2MP Ultra series, Dome/Turret IR 40M (3LED Array), 2.8-12mm motorized Lens | G36: 2MP | H36: Turret/Dome | I36: Motorized Vari-Focal | J36: 2.8-12mm (96°-34°) | K36: IP67 | L36: 40M | M36: PR-JB14IP66 / PR-JB14IP64 / PR-WB-A | N36: Support WDR | O36: $30.00 | P36: $37.00 | Q36: Yes | R36: =SUM((O36*1.095)+((O36*1.07)*Sheet1!C$3)) -> $32.85 | T36: Yes | U36: 12 | V36: 6 | W36: Announcing EOL, special offer
A37: 1 | C37: DI-320AU-MVF-G | E37: Ultra | F37: Camera HD- 2MP Ultra series, Turret IR 40M (3LED Array), 2.8-12mm motorized Lens Grey | G37: 2MP | H37: Turret/Dome | I37: Motorized Vari-Focal | J37: 2.8-12mm (96°-34°) | K37: IP67 | L37: 40M | M37: PR-JB14IP66-G/ PR-WB-A-G | N37: Support WDR | O37: $37.00 | Q37: Yes | R37: =SUM((O37*1.095)+((O37*1.07)*Sheet1!C$3)) -> $40.52 | T37: Yes | U37: 12 | V37: 6
A38: 1 | C38: DAI-320AU-VF | E38: Ultra | F38: Camera HD-2MP Ultra series, Anti-vandal, IR 40M (3LED Array), 2.8-12mm Lens | G38: 2MP | H38: Dome Anti-Vandal | I38: Vari-Focal | J38: 2.8-12mm (88°-33°) | K38: IP67 | L38: 40M | M38: PR-JBA14IP66 | N38: Anti-Vandal support WDR | O38: $30.00 | P38: $35.00 | Q38: Yes | R38: =SUM((O38*1.095)+((O38*1.07)*Sheet1!C$3)) -> $32.85 | T38: Yes | U38: 6 | V38: 6 | W38: Announcing EOL, special offer
A39: 1 | C39: I4-320AU-MVF | E39: Ultra | F39: Camera HD- 2MP Ultra series, Bullet , IR 40M (3LED Array), 2.8-12mm motorized Lens | G39: 2MP | H39: Bullet | I39: Motorized Vari-Focal | J39: 2.8-12mm (96°-34°) | K39: IP67 | L39: 40M | M39: PR-JB12IP66 / PR-JB12IP64 | N39: Support WDR | O39: $30.00 | P39: $38.00 | Q39: EOL | R39: =SUM((O39*1.095)+((O39*1.07)*Sheet1!C$3)) -> $32.85 | T39: Yes | U39: 10 | V39: 10 | W39: Announcing EOL, special offer
A40: 1 | C40: DS-392A37 | E40: Pro | F40: Camera, Dummy smoke detector, 3.7mm lens, 1/3 Sensor 2MP | G40: 2MP | H40: Hidden | I40: Fixed | J40: 3.7mm (78°) | K40: - | L40: None | M40: None | N40: HLC | O40: $24.00 | Q40: Yes | R40: =SUM((O40*1.095)+((O40*1.07)*Sheet1!C$3)) -> $26.28 | T40: Yes | U40: 36 | V40: 12
A41: 1 | C41: MW-392A37 | E41: Pro | F41: Camera-Hidden, Snake camera, Fix lens (3.7mm), 1/3" Sensor, 2MP, 4 in 1, NTSC | G41: 2MP | H41: Hidden | I41: Fixed | J41: 3.7mm (83°) | K41: - | L41: None | M41: None | N41: HLC | O41: $32.00 | Q41: Yes | R41: =SUM((O41*1.095)+((O41*1.07)*Sheet1!C$3)) -> $35.04 | T41: Yes | U41: 36 | V41: 12
A42: 1 | C42: DL-392A37 | E42: Pro | F42: Camera, Hidden, Spot Light, 3.7mm lens, 1/3 Sensor 2MP | G42: 2MP | H42: Hidden | I42: Fixed | J42: 3.7mm (78°) | K42: - | L42: None | M42: None | N42: HLC | O42: $26.00 | Q42: Yes | R42: =SUM((O42*1.095)+((O42*1.07)*Sheet1!C$3)) -> $28.47 | T42: Yes | U42: 36 | V42: 12
A43: 1 | C43: MC-392A37 | E43: Pro | F43: Camera-Hidden, camera, Fix lens (3.7mm), 1/3" Sensor, 2MP, 4 in 1, | G43: 2MP | H43: Hidden | I43: Fixed | J43: 3.7mm (78°) | K43: - | L43: None | M43: None | N43: HLC | O43: $24.00 | Q43: Yes | R43: =SUM((O43*1.095)+((O43*1.07)*Sheet1!C$3)) -> $26.28 | T43: Yes | U43: 36 | V43: 12
A44: 1 | C44: IV-390A37-V2 | E44: Pro | F44: Camera, Hidden, Dummy PIR, IR 15M(36 LEDs), 3.7mm lens, 1/3 Sensor, 2MP | G44: 2MP | H44: Hidden | I44: Fixed | J44: 3.7mm (78°) | K44: - | L44: 10M | M44: None | N44: HLC | O44: $23.00 | Q44: Yes | R44: =SUM((O44*1.095)+((O44*1.07)*Sheet1!C$3)) -> $25.19 | T44: Yes | U44: 36 | V44: 12
A45: 1 | C45: IV-350A-37 | E45: Pro | F45: Camera HD- 5MP, Hidden, Dummy PIR, IR 15M(36 LEDs), 3.7mm lens, 1/3 Sensor, 5MP | G45: 5MP | H45: Hidden | I45: Fixed | J45: 3.7mm (73°) | K45: - | L45: 10M | M45: None | N45: None | O45: $29.00 | Q45: EOL | R45: =SUM((O45*1.095)+((O45*1.07)*Sheet1!C$3)) -> $31.76 | T45: Yes | U45: 36 | V45: 12 | W45: EOL item, no replacment
A46: 1 | C46: DV-320AR-36 | E46: Rainbow | F46: Camera HD- 2MP Pro Rainbow series, Turret, IR 20M (1 LED Array), 3.6mm Lens | G46: 2MP | H46: Turret/Dome | I46: Fixed | J46: 3.6mm (84.6°) | K46: IP67 | L46: 25M | M46: PR-WB-A, PR-JB12IP64, PR-JB12IP66 | N46: Color at night Built-in Mic D-WDR HLC | O46: $22.00 | Q46: Yes | R46: =SUM((O46*1.095)+((O46*1.07)*Sheet1!C$3)) -> $24.09 | T46: Yes | U46: 16 | V46: 16
A47: 1 | C47: BSV-320AR-36 | E47: Rainbow | F47: Camera HD- 2MP Pro Rainbow series, Bullet, IR 20M (1 LED Array), 3.6mm Lens | G47: 2MP | H47: Bullet | I47: Fixed | J47: 3.6mm (84.6°) | K47: IP67 | L47: 25M | M47: PR-JB12IP64, PR-JB12IP66 | N47: Color at night Built-in Mic D-WDR HLC | O47: $22.00 | Q47: Yes | R47: =SUM((O47*1.095)+((O47*1.07)*Sheet1!C$3)) -> $24.09 | T47: Yes | U47: 18 | V47: 18
A48: 1
A49: 1
A50: 1
A51: 1
A52: 1
A53: 1
A54: 1
A55: 1
A56: 1
A57: 1
A58: 1
A59: 1

Sheet PTZ
B2: PTZ
B4: Model | C4: Free Text | D4: Description | E4: Series | F4: Resolution | G4: Housing | H4: WDR | I4: Lens Focal | J4: Power Supply | K4: Protection | L4: IR range | M4: Pan/Tilt Range | N4: Special features | O4: Brackets | P4: NDAA | Q4: China Price | R4: Old Price | S4: China Availability | T4: Netherlands Price | U4: Old Price | V4: Netherland Availability | W4: Unit Per Carton | X4: MOQ | Y4: Remarks
B5: I5PT-320IPMX4-P | D5: Camera- IP Bullet IR PTZ, 1080P, X10 with IR 50m distance, with POE | E5: IP | F5: 2MP | G5: Bullet | H5: DWDR | I5: 2.8-12mm X4 | J5: 12VDC/2A | K5: IP66 | L5: 50M | M5: 250° / 65° | N5: H265 | O5: PR-B55JB+ | P5: Yes | Q5: $79.00 | S5: Yes | T5: =SUM((Q5*1.095)+((Q5*1.07)*Sheet1!C$3)) -> $86.51 | V5: Yes | W5: 12 | X5: 6
B6: I5PT-320IPMX10-P | D6: Camera- IP Bullet IR PTZ, 1080P, X10 with IR 50m distance, with POE | E6: IP | F6: 2MP | G6: Bullet | H6: DWDR | I6: 5.1-51mm X10 | J6: 12VDC/2A | K6: IP66 | L6: 50M | M6: 250° / 65° | N6: H265 | O6: PR-B55JB+ | P6: Yes | Q6: $100.00 | S6: Yes | T6: =SUM((Q6*1.095)+((Q6*1.07)*Sheet1!C$3)) -> $109.50 | V6: Yes | W6: 12 | X6: 6
B7: MZ-20IPM-2(IR) | D7: IP PTZ,1080P, X20 high speed Pan/Tilt/Zoom camera with IR 80m distance | E7: IP | F7: 2MP | G7: Mini Ultra-Z | H7: DWDR | I7: 4.7-97mm X20 | J7: DC12V/3A | K7: IP66 | L7: 80M | M7: 360° (Endless) / -10°~180° (Auto Flip) | N7: 4 Pattern 8 Scan Route 8 Cruise Lanes VMD | O7: Wall bracket included; ceiling bracket-PR-B20C | P7: Yes | Q7: $150.00 | S7: Yes | T7: =SUM((Q7*1.095)+((Q7*1.07)*Sheet1!C$3)) -> $164.25 | V7: Yes | W7: 4 | X7: 1
B8: Z4-25IPEN-2(IR) | D8: 4" 2MP x25 PTZ, with DDA Analytics,PoE+, 80°/Sec,120dB WDR, SD Card, wall bracket included | E8: IP | F8: 2MP | G8: 4'' | H8: DWDR | I8: 4.8-120mm X25 | J8: PoE+ (802.3at) / DC12V/3A | K8: IP66 | L8: 100M | M8: 360° (Endless) / -5°~185° (Auto Flip) | N8: 4 Pattern 8 Scan Route 8 Cruise Lanes VMD | O8: wall bracket included; other brackets- PR-CB-Z, PR-B50PB, PR-B50ECB | P8: Yes | Q8: $250.00 | S8: Yes | T8: =SUM((Q8*1.095)+((Q8*1.07)*Sheet1!C$3)) -> $273.75 | V8: Yes | W8: 4 | X8: 1
B9: Z5-25IPE-2(IR) | D9: 5"2MP x25 PTZ ,DDA Analytics,PoE+,140°/Sec,120dB WDR,SD Card,1Alarm in/out,1Audio in/out, Wall bracket inclued | E9: IP | F9: 2MP | G9: 5'' | H9: DWDR | I9: 4.8-120mm X25 | J9: PoE+ (802.3at) / DC24V/3A / AC24V/3A | K9: IP66 | L9: 150M | M9: 360° (Endless) / -3°~183° (Auto Flip) | N9: 4 Pattern 8 Scan Route 8 Cruise Lanes I/O VMD | O9: wall bracket included; other brackets- PR-CB-Z, PR-B50PB, PR-B50ECB | P9: No | Q9: $306.50 | S9: Yes | T9: =SUM((Q9*1.095)+((Q9*1.07)*Sheet1!C$3)) -> $335.62 | V9: Yes | W9: 2 | X9: 1
B10: Z4-25IPEN-4(IR) | D10: 4" 4MP x25 PTZ, with DDA Analytics, PoE+, 80°/Sec, 120dB WDR, SD Card,wall bracket included | E10: IP | F10: 4MP | G10: 4'' | H10: DWDR | I10: 4.8-120mm X25 | J10: PoE+ (802.3at) / DC12V/3A | K10: IP66 | L10: 100M | M10: 360° (Endless) / -5°~185° (Auto Flip) | N10: 4 Pattern 8 Scan Route 8 Cruise Lanes VMD | O10: wall bracket included; other brackets- PR-CB-Z, PR-B50PB, PR-B50ECB | P10: Yes | Q10: $285.00 | S10: Yes | T10: =SUM((Q10*1.095)+((Q10*1.07)*Sheet1!C$3)) -> $312.08 | V10: Yes | W10: 4 | X10: 1
B11: Z5-25IPE-4(IR) | D11: 5"4MP x25 PTZ ,DDA Analytics,PoE+,140°/Sec,120dB WDR,SD Card,1Alarm in/out,1Audio in/out, Wall bracket inclued | E11: IP | F11: 4MP | G11: 5'' | H11: DWDR | I11: 4.8-120mm X25 | J11: PoE+ (802.3at) / DC24V/3A / AC24V/3A | K11: IP66 | L11: 150M | M11: 360° (Endless) / -3°~183° (Auto Flip) | N11: 4 Pattern 8 Scan Route 8 Cruise Lanes I/O VMD | O11: wall bracket included; other brackets- PR-CB-Z, PR-B50PB, PR-B50ECB | P11: No | Q11: $366.50 | S11: Yes | T11: =SUM((Q11*1.095)+((Q11*1.07)*Sheet1!C$3)) -> $401.32 | V11: Yes | W11: 2 | X11: 1
B12: Z6-32IPE-4(IR) | D12: 6“4MP x32 PTZ,DDA Analytics,PoE++,250°/Sec,120dB WDR, SD Card, 2Alarm in/out,1Audio in/out,1 wall bracket included | E12: IP | F12: 4MP | G12: 6'' | H12: DWDR | I12: 5.6-179.2mm X32 | J12: PoE++ (802.3bt) / AC24V/3A | K12: IP66 | L12: 200M | M12: 360° (Endless) / -25°~205° (Auto Flip) | N12: 4 Pattern 8 Scan Route 8 Cruise Lanes I/O RS-485 VMD | O12: wall bracket included; other brackets- PR-CB-Z, PR-B70PB, PR-B70ECB | P12: No | Q12: $790.00 | S12: Yes | T12: =SUM((Q12*1.095)+((Q12*1.07)*Sheet1!C$3)) -> $865.05 | V12: Yes | W12: 2 | X12: 1
B13: I5PT-390AX4 | D13: Mini PTZ, bullet IR, 1080P, X4 high speed Pan/Tilt/Zoom bullet camera with IR 50m distance | E13: AHD | F13: 2MP | G13: Bullet | H13: - | I13: 2.8-12mm X4 | J13: 12VDC/2A | K13: IP66 | L13: 50M | M13: 250° Pan / 65° Tilt | N13: Park Action | O13: PR-B55JB+ | Q13: $54.50 | S13: Yes | T13: =SUM((Q13*1.095)+((Q13*1.07)*Sheet1!C$3)) -> $59.68 | V13: Yes | W13: 10 | X13: 10
B14: I5PT-390AX10 | D14: PTZ, bullet IR, 1080P, X10 high speed Pan/Tilt/Zoom bullet camera with IR 50m distance | E14: AHD | F14: 2MP | G14: Bullet | H14: - | I14: 5.1-51mm X10 | J14: 12VDC/2A | K14: IP66 | L14: 50M | M14: 250° Pan / 65° Tilt | N14: Park Action | O14: PR-B55JB+ | Q14: $73.50 | S14: Yes | T14: =SUM((Q14*1.095)+((Q14*1.07)*Sheet1!C$3)) -> $80.48 | V14: Yes | W14: 10 | X14: 10
B15: MZ-10A-2(IR) | D15: ULTRA-Z, 1080P, 10X high speed Pan/Tilt/Zoom Dome camera with IR | E15: AHD | F15: 2MP | G15: Mini Ultra-Z | H15: - | I15: 4.7-47mm X10 | J15: 12VDC/2A | K15: IP66 | L15: 60M | M15: 360° (Endless) / 180° (Auto Flip) | N15: 4 Pattern 4 Auto Scan 8 Group | O15: wall bracket included | Q15: $136.00 | S15: Yes | T15: =SUM((Q15*1.095)+((Q15*1.07)*Sheet1!C$3)) -> $148.92 | V15: Yes | W15: 4 | X15: 4
B16: ZE-20A-2(IR) | D16: Eco PTZ, 1080P, 4IN1 X20 high speed Pan/Tilt/Zoom PTZ camera with IR 100m distance, with 220V Power | E16: AHD | F16: 2MP | G16: Eco-Z | H16: - | I16: 4.9-97mm X20 | J16: 12VDC/2A | K16: IP66 | L16: 100M | M16: 360° (Endless) / 180° (Auto Flip) | N16: 4 Pattern 8 Auto Scan 4 Group | O16: wall bracket included | Q16: $140.00 | S16: Yes | T16: =SUM((Q16*1.095)+((Q16*1.07)*Sheet1!C$3)) -> $153.30 | V16: Yes | W16: 2 | X16: 1
B17: ZP-20A-2(IR) | D17: Pro PTZ, 1080P, 4IN1 X20 high speed Pan/Tilt/Zoom PTZ camera with IR 100m distance, with 220V Power | E17: AHD | F17: 2MP | G17: Pro-Z | H17: - | I17: 4.9-97mm X20 | J17: 24VAC/3A | K17: IP66 | L17: 100M | M17: 360° (Endless) / 180° (Auto Flip) | N17: 4 Pattern 4 Auto Scan 8 Group I/O | O17: wall bracket included | Q17: $185.00 | S17: Yes | T17: =SUM((Q17*1.095)+((Q17*1.07)*Sheet1!C$3)) -> $202.58 | V17: Yes | W17: 2 | X17: 1
B18: bracket and Accessories
B19: Model | C19: Free Text | D19: Description | E19: China Price | F19: Old Price | G19: China Availability | H19: Netherlands Price | I19: Old Price | J19: Netherland Availability | K19: Unit Per Carton | L19: MOQ | M19: Remarks
B20: PR-B30C | D20: Ceiling pedant mount bracket for PTZ | E20: $8.50 | G20: Yes | H20: =SUM((E20*1.095)+((E20*1.07)*Sheet1!C$11)) -> $9.55 | J20: Yes | K20: 5 | L20: 5 | M20: EOL
B21: PR-B30EC | D21: External Corner bracket for PTZ | E21: $8.50 | G21: Yes | H21: =SUM((E21*1.095)+((E21*1.07)*Sheet1!C$11)) -> $9.55 | J21: Yes | K21: 5 | L21: 5 | M21: EOL
B22: PR-B30IC | D22: Internal Corner bracket for PTZ | E22: $8.50 | G22: Yes | H22: =SUM((E22*1.095)+((E22*1.07)*Sheet1!C$11)) -> $9.55 | J22: Yes | K22: 5 | L22: 5
B23: PR-CB-Z | D23: Ceiling pedant mount bracket for PTZ | E23: $10.50 | G23: Yes | H23: =SUM((E23*1.095)+((E23*1.07)*Sheet1!C$11)) -> $11.80 | J23: Yes | K23: 20 | L23: 1
B24: PR-ICB-Z | D24: In-Ceiling pedant mount bracket for PTZ Z4 models | E24: $13.50 | G24: Yes | H24: =SUM((E24*1.095)+((E24*1.07)*Sheet1!C$11)) -> $15.17 | J24: Yes | K24: 8 | L24: 1
B25: PR-WJB-Z | D25: Bracket- Wall bracket and Junction box for Z4,Z5,Z6 PTZ | E25: $55.00 | G25: Yes | H25: =SUM((E25*1.095)+((E25*1.07)*Sheet1!C$11)) -> $61.81 | J25: Yes | K25: 1 | L25: 1
B26: PR-B50PB | D26: Pole mount bracket | E26: $12.50 | G26: Yes | H26: =SUM((E26*1.095)+((E26*1.07)*Sheet1!C$11)) -> $14.05 | J26: Yes | K26: 10 | L26: 10
B27: PR-B50ECB | D27: External Corner bracket | E27: $12.00 | G27: Yes | H27: =SUM((E27*1.095)+((E27*1.07)*Sheet1!C$11)) -> $13.49 | J27: Yes | K27: 6 | L27: 6
B28: PR-B60PB | D28: Pole mount bracket for junction box PR-WJB-Z | E28: $37.00 | G28: Yes | H28: =SUM((E28*1.095)+((E28*1.07)*Sheet1!C$11)) -> $41.58 | J28: Yes | K28: 2 | L28: 2
B29: PR-B60ECB | D29: External Corner bracket for junction box PR-WJB-Z | E29: $33.00 | G29: Yes | H29: =SUM((E29*1.095)+((E29*1.07)*Sheet1!C$11)) -> $37.09 | J29: Yes | K29: 2 | L29: 2
B30: PR-B70PB | D30: Pole mount bracket for Z6 PTZ | E30: $18.00 | G30: Yes | H30: =SUM((E30*1.095)+((E30*1.07)*Sheet1!C$11)) -> $20.23 | J30: Yes | K30: 4 | L30: 4
B31: PR-B70ECB | D31: External Corner bracket for Z6 PTZ | E31: $15.00 | G31: Yes | H31: =SUM((E31*1.095)+((E31*1.07)*Sheet1!C$11)) -> $16.86 | J31: Yes | K31: 2 | L31: 2
B32: PR-B20C | D32: celling bracket for MZ-4 Inch PTZ | E32: $7.50 | G32: Yes | H32: =SUM((E32*1.095)+((E32*1.07)*Sheet1!C$11)) -> $8.43 | J32: Yes | K32: 5 | L32: 5
B33: Joystick
B34: C06 | D34: Joystick to control PTZ and DVR | E34: $170.00 | G34: Yes | H34: N/A | J34: only from CH | K34: 5 | L34: 1 | M34: EOL, please use IP-Key01
B35: IP-Key01 | D35: IP controller | E35: $170.00 | G35: Yes | H35: N/A | J35: only from CH | K35: 5 | L35: 1

Sheet Wi-Fi IP
B2: Wi-Fi IP
B4: Model | C4: Free text | D4: Description | E4: Series | F4: Resolution | G4: Housing | H4: WDR | I4: Lens Type | J4: Lens Focal | K4: Protection | L4: IR range | M4: Juntion box | N4: Special features | O4: Analytic | P4: China Price | Q4: Old Price | R4: China Availability | S4: Netherlands Price | T4: Old Price | U4: Netherland Availability | V4: Unit Per Carton | W4: MOQ | X4: Remarks
B5: I3-330WIP536-M | D5: Camera-wireless IPC, 30M (3pcs LED array), 3.6mm lens, 3MP | E5: Special | F5: 3MP | G5: Bullet | H5: DWDR | I5: Fix | J5: 3.6mm (90°) | K5: IP66 | L5: 30M | M5: None | N5: Wireless With WR-04IPC Adapter | O5: None | P5: $33.00 | R5: Yes | S5: =SUM((P5*1.095)+((P5*1.07)*Sheet1!C$3)) -> $36.14 | U5: Yes | V5: 20 | W5: 20
B6: WR-04IPC_V2 | D6: 4ch Repeater for Wi-Fi camera model I3-330WIP536 | F6: None | G6: Adapter | H6: None | I6: None | J6: None | K6: None | L6: N/A | M6: Wall Mount | N6: Installation Audio Prompts | O6: None | P6: $18.00 | R6: Yes | S6: =SUM((P6*1.095)+((P6*1.07)*Sheet1!C$3)) -> $19.71 | U6: Yes | V6: 10 | W6: 10
B7: I2-340WIPSN-28 | D7: Camera-wireless IPC, 20M (6pcs LED array), 2.8mm lens, 4MP, PSU not included | F7: 4MP | G7: Bullet | H7: True WDR | I7: Fix | J7: 2.8mm (110°) | K7: IP67 | L7: 20M | M7: PR-JB12IP66/ PR-JB12IP65 | N7: Wireless Without any Adapter, SD Card, Audio In | O7: Camera Tampering Standard- Line Crossing Standard- Sterile Area | P7: $50.00 | R7: Yes | S7: =SUM((P7*1.095)+((P7*1.07)*Sheet1!C$3)) -> $54.75 | U7: Yes | V7: 18 | W7: 18
B8: PT-848 | D8: PnV 4MP Pan/Tilt IP camera with IR, 2.4G&5G, White | F8: 4MP | G8: Pan / Tilt | H8: None | I8: Fix | J8: 2.3mm (84°) | K8: None | L8: 10M | M8: N/A | N8: Plug & View, Two Way Audio with Built-in Microphone & Speaker | O8: Motion Detection, Human detection | P8: $26.00 | R8: Yes | S8: =SUM((P8*1.095)+((P8*1.07)*Sheet1!C$3)) -> $28.47 | U8: Yes | V8: 20 | W8: 20 | X8: New Model
B9: WP-919 | D9: 1080p PnV Waterproof fix IP camera with IR with EU&US Soket | F9: 2MP | G9: Outdoor | H9: None | I9: Fix | J9: 4.0mm | K9: IP66 | L9: 15M | M9: Wall / Ceiling Mount Bracket | N9: built-in micorphone & speaker | O9: Motion Detection | P9: $28.00 | R9: Yes | S9: =SUM((P9*1.095)+((P9*1.07)*Sheet1!C$3)) -> $30.66 | U9: Yes | V9: 20 | W9: 20

Sheet PoE Switches
B2: PoE Switch
B4: Model | C4: Free text | D4: Description | E4: Downlink Port | F4: Uplink Port | G4: PoE Power Budget | H4: Power Supply | I4: CCTV MODE | J4: Monitor | K4: China Price | L4: Old Price | M4: China Availability | N4: Netherlands Price | O4: Old Price | P4: Netherland Availability | Q4: Unit Per Carton | R4: MOQ | S4: Remarks
B5: PoES-0460C+2I-V2 | D5: 4-port 10/100Mbps PoE switch,CCTV Mode, 2-port 10/100Mbps UPLINK ,60W Internal power supply | E5: 4ch 10/100 | F5: 2ch 10/100 | G5: 60W | H5: 100-240VAC | I5: Y | J5: N | K5: $18.50 | M5: Yes | N5: =SUM((K5*1.095)+((K5*1.07)*Sheet1!C$15)) -> $20.26 | P5: Yes | Q5: 10 | R5: 10
B6: PoES-0460G+1G(HPD) | D6: 4+1-port Giga PoE Ethernet Switch, 4 giga ports act as PSE downlink , 1G 55W PD Uplink Port | E6: 4ch Giga | F6: 1ch Giga | G6: 55W | H6: From High Power PoE | I6: N | J6: N | K6: $37.00 | M6: Yes | N6: =SUM((K6*1.095)+((K6*1.07)*Sheet1!C$15)) -> $40.52 | P6: Yes | Q6: 10 | R6: 1
B7: PoES-0472GC+2G | D7: 4+2-Port Giga PoE Ethernet Switch,4 giga Ports act as downlink and uplink,2x1G Port uplink,72W | E7: 4ch Giga | F7: 2ch Giga | G7: 72W | H7: 54v/2.2A | I7: Y | J7: N | K7: $39.00 | M7: Yes | N7: =SUM((K7*1.095)+((K7*1.07)*Sheet1!C$15)) -> $42.71 | P7: Yes | Q7: 10 | R7: 5
B8: PoES-08120C+2I-V2 | D8: 8-port 10/100Mbps PoE switch, CCTV Mode,2-port 10/100Mbps UPLINK , 120W Internal power supply | E8: 8ch 10/100 | F8: 2ch 10/100 | G8: 120W | H8: 100-240VAC | I8: Y | J8: N | K8: $40.00 | M8: Yes | N8: =SUM((K8*1.095)+((K8*1.07)*Sheet1!C$15)) -> $43.80 | P8: Yes | Q8: 5 | R8: 5
B9: PoES-08120GC+2GI | D9: 8+2 Port Giga PoE Switch,8 giga downlink port, 2 giga uplink port, 120W, with cctv mode | E9: 8ch Giga | F9: 2ch Giga | G9: 120W | H9: 100-240VAC | I9: Y | J9: N | K9: $46.00 | M9: Yes | N9: =SUM((K9*1.095)+((K9*1.07)*Sheet1!C$15)) -> $50.37 | P9: Yes | Q9: 5 | R9: 5
B10: PoES-08120GCL+2Combo | D10: 8+2 Port Giga PoE Switch,8 giga downlink port, 2 giga combo port, 120W, with cctv mode,color LCD | E10: 8ch Giga | F10: 2ch Giga | G10: 120W | H10: 100-240VAC | I10: Y | J10: LCD | K10: $87.00 | M10: Yes | N10: =SUM((K10*1.095)+((K10*1.07)*Sheet1!C$15)) -> $95.27 | P10: Yes | Q10: 5 | R10: 5
B11: PoES-16250C+2Combo | D11: 16CH unmanaged PoE switch, downlink:*16 100mbps, uplink: *2 1000mbps,total PoE is 250W | E11: 16ch 10/100 | F11: 2ch Combo | G11: 250W | H11: 100-240VAC | I11: Y | J11: N | K11: $115.00 | M11: Yes | N11: =SUM((K11*1.095)+((K11*1.07)*Sheet1!C$15)) -> $125.93 | P11: Yes | Q11: 3 | R11: 3
B12: PoES-16250CL+2G+2SFP | D12: 16CH unmanaged PoE switch, downlink:*16 100mbps, uplink: *2 1000mbps,total PoE is 250W.CCTV Mode | E12: 16ch 10/100 | F12: 2ch Giga + 2ch SFP | G12: 250W | H12: 100-240VAC | I12: Y | J12: LCD | K12: $160.00 | M12: Yes | N12: =SUM((K12*1.095)+((K12*1.07)*Sheet1!C$15)) -> $175.20 | P12: Yes | Q12: 5 | R12: 5
B13: PoES-16250GCL+2SFP | D13: 16-Port Giga PoE Ethernet Switch,16 giga Ports act as downlink and uplink,2SFP,250W | E13: 16ch Giga | F13: SFP Only +2ch SFP | G13: 250W | H13: 100-240VAC | I13: Y | J13: LCD | K13: $175.00 | M13: Yes | N13: =SUM((K13*1.095)+((K13*1.07)*Sheet1!C$15)) -> $191.63 | P13: Yes | Q13: 5 | R13: 5
B14: PoES-24370C+2Combo | D14: 24CH unmanaged PoE switch, downlink:*24 100mbps, uplink: *2 1000mbps,total PoE is 370W | E14: 24ch 10/100 | F14: 2ch Combo | G14: 370W | H14: 100-240VAC | I14: Y | J14: N | K14: $130.00 | M14: Yes | N14: =SUM((K14*1.095)+((K14*1.07)*Sheet1!C$15)) -> $142.35 | P14: Yes | Q14: 3 | R14: 3
B15: PoES-24370CL+2G+2SFP | D15: 24CH unmanaged PoE switch, downlink:*24 100mbps, uplink: *2 1000mbps,total PoE 370W CCTV mode | E15: 24ch 10/100 | F15: 2ch Giga + 2ch SFP | G15: 370W | H15: 100-240VAC | I15: Y | J15: LCD | K15: $200.00 | M15: Yes | N15: =SUM((K15*1.095)+((K15*1.07)*Sheet1!C$15)) -> $219.00 | P15: Yes | Q15: 5 | R15: 5
B16: PoES-24370GCL+2SFP | D16: 24+2SFPPort Giga PoE Ethernet Switch,24 giga Ports act as downlink and uplink,2xSFP slots,370W | E16: 24ch Giga | F16: SFP Only +2ch SFP | G16: 370W | H16: 100-240VAC | I16: Y | J16: LCD | K16: $230.00 | M16: Yes | N16: =SUM((K16*1.095)+((K16*1.07)*Sheet1!C$15)) -> $251.85 | P16: Yes | Q16: 5 | R16: 5

Sheet PoE Accessories
B2: PoE Accessories
B4: Model | C4: Free text | D4: Description | E4: China Price | F4: Old Price | G4: China Availability | H4: Netherlands Price | I4: Old Price | J4: Netherland Availability | K4: Unit Per Carton | L4: MOQ | M4: Remarks
B5: PoEI-0130 | D5: 1 Channel PoE Ethernet Injector IEEE802.3at (30W) | E5: $14.00 | G5: Yes | H5: =SUM((E5*1.095)+((E5*1.07)*Sheet1!C$15)) -> $15.33 | J5: Yes | K5: 50 | L5: 5
B6: PoEI-0160 | D6: 1 Channel 60W Hi-PoE Ethernet Injector, IEEE80 | E6: $32.00 | G6: Yes | H6: =SUM((E6*1.095)+((E6*1.07)*Sheet1!C$15)) -> $35.04 | J6: Yes | K6: 50 | L6: 5
B7: PoESP-0112S | D7: 1 Channel PoE Ethernet Splitter, IEEE802.3af (13W) | E7: $9.00 | G7: Yes | H7: N/A | J7: only from CH | K7: 100 | L7: 50
B8: PoESP-0124W | D8: 1 Channel PoE Ethernet Splitter, IEEE802.3at (24W) | E8: $12.00 | G8: Yes | H8: =SUM((E8*1.095)+((E8*1.07)*Sheet1!C$15)) -> $13.14 | J8: Yes | K8: 50 | L8: 5
B9: PoESP-0172W | D9: 1 Channel PoE Ethernet + DC ( 24VDC / 3A) Splitter, IEEE802.3at (72W), DC Jack / Terminal Connector Output | E9: $30.00 | G9: Yes | H9: =SUM((E9*1.095)+((E9*1.07)*Sheet1!C$15)) -> $32.85 | J9: Yes | K9: 20 | L9: 20
B10: PoER-01 | D10: 1 Channel 10/100M PoE Extender (Repeater), IEEE802.3at | E10: $24.00 | G10: Yes | H10: =SUM((E10*1.095)+((E10*1.07)*Sheet1!C$15)) -> $26.28 | J10: Yes | K10: 50 | L10: 10
B11: PoER-02 | D11: 1 to 2 Channels 10/100M PoE Extender (Repeater), IEEE802.3at | E11: $27.00 | G11: Yes | H11: =SUM((E11*1.095)+((E11*1.07)*Sheet1!C$15)) -> $29.57 | J11: Yes | K11: 50 | L11: 10
B12: EOC-01 | D12: Set-Transmitter + Receiver, Ethernet Over Standard Coax Cable Up To 150 Meter | E12: $8.00 | G12: Yes | H12: =SUM((E12*1.095)+((E12*1.07)*Sheet1!C$15)) -> $8.76 | J12: Yes | K12: 80 | L12: 10
B13: DCoE-01 | D13: Set-Transmitter/Receiver, Transmit DC Power and Ethernet Over Ethernet Cable, 50 Meter Working Distance, Not PoE | E13: $3.50 | G13: Yes | H13: =SUM((E13*1.095)+((E13*1.07)*Sheet1!C$15)) -> $3.83 | J13: Yes | K13: 56 | L13: 7

Sheet Accessories
C2: Accessories
B4: קטגוריה | C4: Category | D4: Free text | E4: Model | F4: Description | G4: China Price | H4: Old Price | I4: China Availability | J4: Netherlands Price | K4: Old Price | L4: Netherland Availability | M4: Unit Per Carton | N4: MOQ | O4: Remarks
C5: Lens
C6: Lens | E6: 02812DCMP-3-V2 | F6: Vari-Focal DC Auto Iris 2.8-12mm,3 Mega-Pixel lens | G6: $15.00 | I6: Yes | J6: =SUM((G6*1.095)+((G6*1.07)*Sheet1!C$8)) -> $16.43 | L6: Yes | M6: 50 | N6: 10
C7: Lens | E7: 0550DCMP-8 | F7: Vari-Focal DC Auto Iris 5-50mm, 8 Mega-Pixel lens | G7: $44.00 | I7: Yes | J7: N/A | L7: only from CH | M7: 20 | N7: 1
C8: Lens | E8: 03610DCMP-6 | F8: Vari-Focal F1.5, CS mount, 1/1.8" P-IRIS 3.6mm-10mm, 6 Mega Pixel lens | G8: $31.00 | I8: Yes | J8: N/A | L8: only from CH | M8: 10 | N8: 10
B9: Monitors
C10: Monitor | E10: TM-434In1-8 | F10: 4.3 inch AHD/TVI/CVI/CVBS tester with RS485 up to 8MP with EU&US socket | G10: $60.00 | I10: Yes | J10: =SUM((G10*1.095)+((G10*1.07)*Sheet1!C$7)) -> $74.69 | L10: Yes | M10: 10 | N10: 10
C11: Monitor | E11: TM-54In1-2 | F11: 5 inch AHD/TVI/CVI/CVBS tester with RS485 up to 2MP | G11: $60.00 | I11: Yes | J11: =SUM((G11*1.095)+((G11*1.07)*Sheet1!C$7)) -> $74.69 | L11: Yes | M11: 10 | N11: 10
C12: Monitor | E12: TM-54In1-8 | F12: 5 inch AHD/TVI/CVI/CVBS tester with RS485. Network and Coax testers. Up to 8MP with EU&US socket | G12: $95.00 | I12: Yes | J12: =SUM((G12*1.095)+((G12*1.07)*Sheet1!C$7)) -> $118.26 | L12: Yes | M12: 10 | N12: 1
C13: Monitor | E13: PR-IPS7-W | F13: 7" standalone LCD Monitor with IPS panel, HDMI&AV&VGA,White shell. | G13: $45.00 | I13: Yes | J13: =SUM((G13*1.095)+((G13*1.07)*Sheet1!C$7)) -> $56.02 | L13: Yes | M13: 10 | N13: 10
C14: Monitor | E14: PR-IPS10-W | F14: 10.1" standalone LCD Monitor with IPS panel , HDMI&AV&VGA,White shell. | G14: $60.00 | I14: Yes | J14: =SUM((G14*1.095)+((G14*1.07)*Sheet1!C$7)) -> $74.69 | L14: Yes | M14: 10 | N14: 10
B15: Power Supply
C16: Power Supply | E16: PR-12V1A-A | F16: 12V 1A Power Supply | G16: $1.70 | I16: Yes | J16: =SUM((G16*1.095)+((G16*1.07)*Sheet1!C$6)) -> $1.86 | L16: Yes | M16: 100 | N16: 100
C17: Power Supply | E17: PR-12V3A | F17: 12V 3A Power Supply | G17: $4.10 | I17: Yes | J17: =SUM((G17*1.095)+((G17*1.07)*Sheet1!C$6)) -> $4.49 | L17: Yes | M17: 60 | N17: 60
C18: Power Supply | E18: PR-12V5A | F18: 12V 5A Power Supply | G18: $6.30 | I18: Yes | J18: =SUM((G18*1.095)+((G18*1.07)*Sheet1!C$6)) -> $6.90 | L18: Yes | M18: 36 | N18: 36
C19: Power Supply | E19: PR-12V5A-4 | F19: 12V 5A Power Supply with 4 splitter | G19: $7.00 | I19: Yes | J19: =SUM((G19*1.095)+((G19*1.07)*Sheet1!C$6)) -> $7.67 | L19: Yes | M19: 36 | N19: 36
C20: Power Supply | E20: PR-12V5A-4T | F20: Power supply, DC 12V5A with 4 channel terminal block | G20: $7.50 | I20: Yes | J20: =SUM((G20*1.095)+((G20*1.07)*Sheet1!C$6)) -> $8.21 | L20: Yes | M20: 20 | N20: 20
C21: Power Supply | E21: PR-5A8CH+ | F21: 8CH, 12V/5A Profesional power supply with socket | G21: $23.50 | I21: Yes | J21: =SUM((G21*1.095)+((G21*1.07)*Sheet1!C$6)) -> $25.73 | L21: Yes | M21: 10 | N21: 10
C22: Power Supply | E22: PR-5A8CH-B | F22: 8CH, 12V/5A Proffesional power supply with room for backup battery with socket | G22: $24.00 | I22: Yes | J22: =SUM((G22*1.095)+((G22*1.07)*Sheet1!C$6)) -> $26.28 | L22: Yes | M22: 10 | N22: 10
C23: Power Supply | E23: PR-10A9CH+ | F23: 9CH, 12V/10A Profesional power supply with socket | G23: $33.00 | I23: Yes | J23: =SUM((G23*1.095)+((G23*1.07)*Sheet1!C$6)) -> $36.14 | L23: Yes | M23: 10 | N23: 10
C24: Power Supply | E24: PR-10A9CH-B | F24: 9CH, 12V/10A Proffesional power supply with room for backup battery with socket | G24: $39.00 | I24: Yes | J24: =SUM((G24*1.095)+((G24*1.07)*Sheet1!C$6)) -> $42.71 | L24: Yes | M24: 5 | N24: 5
C25: Power Supply | E25: PR-12A16CH+ | F25: 16CH,12V/12A Profesional power supply with socket | G25: $46.00 | I25: Yes | J25: =SUM((G25*1.095)+((G25*1.07)*Sheet1!C$6)) -> $50.37 | L25: Yes | M25: 10 | N25: 10
C26: Power Supply | E26: PR-20A16CH(1U) | F26: 16CH,12V/20A Proffesional power supply,1u case,with socket | G26: $66.00 | I26: Yes | J26: =SUM((G26*1.095)+((G26*1.07)*Sheet1!C$6)) -> $72.27 | L26: Yes | M26: 3 | N26: 3
C27: bracket and Junction box
B28: אביזרים | C28: bracket and Junction box | E28: PR-JB14IP66 | F28: Bracket- Junction box for I6-/DI-VF, IP66 | G28: $9.20 | I28: Yes | J28: =SUM((G28*1.095)+((G28*1.07)*Sheet1!C$11)) -> $10.34 | L28: Yes | M28: 20 | N28: 20
B29: אביזרים | C29: bracket and Junction box | E29: PR-JB14IP66-G | F29: Bracket- Junction box for I6-/DI-VF, IP66,Grey | G29: $9.20 | I29: Yes | J29: =SUM((G29*1.095)+((G29*1.07)*Sheet1!C$11)) -> $10.34 | L29: Yes | M29: 20 | N29: 20
C30: bracket and Junction box | E30: PR-JB14IP64 | F30: Bracket- Junction box for I6-/DI-VF, IP64 | G30: $5.00 | I30: Yes | J30: =SUM((G30*1.095)+((G30*1.07)*Sheet1!C$11)) -> $5.62 | L30: Yes | M30: 30 | N30: 30
B31: אביזרים | C31: bracket and Junction box | E31: PR-JB12IP66 | F31: Bracket- Junction box for I4-/I2-/DI-Fix, IP66 | G31: $8.20 | I31: Yes | J31: =SUM((G31*1.095)+((G31*1.07)*Sheet1!C$11)) -> $9.22 | L31: Yes | M31: 20 | N31: 20
B32: אביזרים | C32: bracket and Junction box | E32: PR-JB12IP66-G | F32: Bracket- Junction box for I4-/I2-/DI-Fix, IP66,Grey | G32: $8.20 | I32: Yes | J32: =SUM((G32*1.095)+((G32*1.07)*Sheet1!C$11)) -> $9.22 | L32: Yes | M32: 20 | N32: 20
C33: bracket and Junction box | E33: PR-JB12IP64 | F33: Bracket- Junction box for I4-/I2-/DI-Fix, IP64 | G33: $4.40 | I33: Yes | J33: =SUM((G33*1.095)+((G33*1.07)*Sheet1!C$11)) -> $4.95 | L33: Yes | M33: 20 | N33: 20
B34: אביזרים | C34: bracket and Junction box | E34: PR-WB14 | F34: Bracket- L shape bracket with PR-JB14IP66 for I6-/DI-VF/DAI-VF, IP66 | G34: $11.00 | I34: Yes | J34: =SUM((G34*1.095)+((G34*1.07)*Sheet1!C$11)) -> $12.36 | L34: Yes | M34: 12 | N34: 12
B35: אביזרים | C35: bracket and Junction box | E35: PR-WB12 | F35: Bracket- L shape bracket with PR-JB12IP66 for I4-/I2-/DI-Fix/DAI-Fix, IP66 | G35: $11.00 | I35: Yes | J35: =SUM((G35*1.095)+((G35*1.07)*Sheet1!C$11)) -> $12.36 | L35: Yes | M35: 12 | N35: 12
B36: אביזרים | C36: bracket and Junction box | E36: PR-WB-A | F36: Bracket- Wall braket for DI-VF, DI-Fix, DAI-Fix, DMA | G36: $8.80 | I36: Yes | J36: =SUM((G36*1.095)+((G36*1.07)*Sheet1!C$11)) -> $9.89 | L36: Yes | M36: 20 | N36: 20
B37: אביזרים | C37: bracket and Junction box | E37: PR-WB-A-G | F37: Bracket- Wall bracket for DI-VF, DI-Fix, DAI-Fix, DMA.Grey | G37: $8.80 | I37: Yes | J37: =SUM((G37*1.095)+((G37*1.07)*Sheet1!C$11)) -> $9.89 | L37: Yes | M37: 20 | N37: 20
B38: אביזרים | C38: bracket and Junction box | E38: PR-CB14 | F38: Bracket- Straight bracket with PR-JB14IP66 for I6-/DI-VF/DAI-VF, IP66 | G38: $12.00 | I38: Yes | J38: =SUM((G38*1.095)+((G38*1.07)*Sheet1!C$11)) -> $13.49 | L38: Yes | M38: 12 | N38: 12
B39: אביזרים | C39: bracket and Junction box | E39: ='[2]Full Pricelist'!$E$269 -> PR-CB12 | F39: Bracket- Straight bracket with PR-JB12IP66 for I4-/I2-/DI-Fix/DAI-Fix, IP66 | G39: $12.00 | I39: Yes | J39: =SUM((G39*1.095)+((G39*1.07)*Sheet1!C$11)) -> $13.49 | L39: Yes | M39: 12 | N39: 12
B40: אביזרים למצלמות ממונעות | C40: bracket and Junction box | E40: PR-ICB21 | F40: Bracket- In-celling mount bracket for DAI-fix | G40: $11.00 | I40: Yes | J40: =SUM((G40*1.095)+((G40*1.07)*Sheet1!C$11)) -> $12.36 | L40: Yes | M40: 8 | N40: 8
B41: אביזרים למצלמות ממונעות | C41: bracket and Junction box | E41: PR-ICB23 | F41: Bracket- In-celling mount bracket for DAI-VF | G41: $12.00 | I41: Yes | J41: =SUM((G41*1.095)+((G41*1.07)*Sheet1!C$11)) -> $13.49 | L41: Yes | M41: 8 | N41: 8
B42: אביזרים למצלמות ממונעות | C42: bracket and Junction box | E42: PR-WB50 | F42: Bracket- Wall bracket for FEI- | G42: $12.00 | I42: Yes | J42: =SUM((G42*1.095)+((G42*1.07)*Sheet1!C$11)) -> $13.49 | L42: Yes | M42: 12 | N42: 12
B43: אביזרים למצלמות ממונעות | C43: bracket and Junction box | E43: PR-CB50 | F43: Bracket- Celling bracket for FEI- | G43: $12.00 | I43: Yes | J43: =SUM((G43*1.095)+((G43*1.07)*Sheet1!C$11)) -> $13.49 | L43: Yes | M43: 12 | N43: 12
B44: אביזרים למצלמות ממונעות | C44: bracket and Junction box | E44: PR-B10BJB | F44: Junction Box for DMA fix Dome camera (IP Series) | G44: $4.60 | I44: Yes | J44: =SUM((G44*1.095)+((G44*1.07)*Sheet1!C$11)) -> $5.17 | L44: Yes | M44: 20 | N44: 20
B45: אביזרים למצלמות ממונעות | C45: bracket and Junction box | E45: PR-B10EX | F45: Extantion Bracket of 10cm for Junction Box | G45: $2.20 | I45: Yes | J45: =SUM((G45*1.095)+((G45*1.07)*Sheet1!C$11)) -> $2.47 | L45: Yes | M45: 9 | N45: 9
C46: bracket and Junction box | E46: PR-B20EX | F46: extension Bracket of 20cm | G46: $3.80 | I46: Yes | J46: =SUM((G46*1.095)+((G46*1.07)*Sheet1!C$11)) -> $4.27 | L46: Mar | M46: 10 | N46: 10 | O46: New model
B47: אביזרים | C47: bracket and Junction box | E47: PR-B42PJB | F47: Smal Plastic junction Box for AHD camera . White color | G47: $1.50 | I47: Yes | J47: =SUM((G47*1.095)+((G47*1.07)*Sheet1!C$11)) -> $1.69 | L47: Yes | M47: 25 | N47: 25
B48: אביזרים | C48: bracket and Junction box | E48: PR-B50PB | F48: Pole mount bracket for PR-JB12xxx, PR-JB14xxx | G48: $12.50 | I48: Yes | J48: =SUM((G48*1.095)+((G48*1.07)*Sheet1!C$11)) -> $14.05 | L48: Yes | M48: 10 | N48: 10
B49: אביזרים | C49: bracket and Junction box | E49: PR-B50ECB | F49: External Corner bracket for PR-JB12xxx, PR-JB14xxx | G49: $12.00 | I49: Yes | J49: =SUM((G49*1.095)+((G49*1.07)*Sheet1!C$11)) -> $13.49 | L49: Yes | M49: 6 | N49: 6
B50: אביזרים | C50: bracket and Junction box | E50: PR-B50JB | F50: Junction Box for Fisheye IP camera | G50: $6.00 | I50: Yes | J50: =SUM((G50*1.095)+((G50*1.07)*Sheet1!C$11)) -> $6.74 | L50: Yes | M50: 12 | N50: 12
C51: bracket and Junction box | E51: PR-JB1-DB | F51: junction box with roof for Doorbell | G51: $4.50 | I51: Dec | J51: =SUM((G51*1.095)+((G51*1.07)*Sheet1!C$11)) -> $5.06 | L51: Jan | M51: 20 | N51: 20 | O51: New model
C52: bracket and Junction box | E52: PR-WB15-DB | F52: 15 degree bracket for Doorbell | G52: $2.20 | I52: Dec | J52: =SUM((G52*1.095)+((G52*1.07)*Sheet1!C$11)) -> $2.47 | L52: Jan | M52: 20 | N52: 20 | O52: New model
C53: CONNECTORS
B54: אביזרים | C54: CONNECTORS | E54: PR-C01 | F54: BNC Male -RCA female Connector | G54: $0.16 | I54: Yes | J54: =SUM((G54*1.095)+((G54*1.07)*Sheet1!C$9)) -> $0.18 | L54: Yes | M54: 1000 | N54: 100
B55: אביזרים | C55: CONNECTORS | E55: PR-C02 | F55: T Connector - BNC Female to 2 BNC female | G55: $0.22 | I55: Yes | J55: N/A | L55: only from CH | M55: 1000 | N55: 100
B56: אביזרים | C56: CONNECTORS | E56: PR-C03 | F56: T Connector - BNC Male to 2 BNC female | G56: $0.22 | I56: Yes | J56: =SUM((G56*1.095)+((G56*1.07)*Sheet1!C$9)) -> $0.24 | L56: Yes | M56: 1000 | N56: 100
B57: אביזרים | C57: CONNECTORS | E57: PR-C04 | F57: BNC female to RCA male | G57: $0.20 | I57: Yes | J57: =SUM((G57*1.095)+((G57*1.07)*Sheet1!C$9)) -> $0.22 | L57: Yes | M57: 1000 | N57: 100
B58: אביזרים | C58: CONNECTORS | E58: PR-C07 | F58: BNC Female to BNC Female (BNC Cable Exstender) | G58: $0.15 | I58: Yes | J58: =SUM((G58*1.095)+((G58*1.07)*Sheet1!C$9)) -> $0.16 | L58: Yes | M58: 1000 | N58: 100
B59: אביזרים | C59: CONNECTORS | E59: PR-C08 | F59: DC jack male | G59: $0.15 | I59: Yes | J59: =SUM((G59*1.095)+((G59*1.07)*Sheet1!C$9)) -> $0.16 | L59: Yes | M59: 1000 | N59: 100
B60: אביזרים | C60: CONNECTORS | E60: PR-C09 | F60: DC jack female | G60: $0.15 | I60: Yes | J60: =SUM((G60*1.095)+((G60*1.07)*Sheet1!C$9)) -> $0.16 | L60: Yes | M60: 1000 | N60: 100
B61: אביזרים | C61: CONNECTORS | E61: PR-C10 | F61: DC cable Male (25cm) | G61: $0.15 | I61: Yes | J61: =SUM((G61*1.095)+((G61*1.07)*Sheet1!C$9)) -> $0.16 | L61: Yes | M61: 1000 | N61: 100
B62: אביזרים | C62: CONNECTORS | E62: PR-C11 | F62: DC cable female (15cm) | G62: $0.15 | I62: Yes | J62: N/A | L62: only from CH | M62: 1000 | N62: 100
B63: אביזרים | C63: CONNECTORS | E63: PR-C12 | F63: Male BNC angular type connector (screwing) | G63: $0.15 | I63: Yes | J63: =SUM((G63*1.095)+((G63*1.07)*Sheet1!C$9)) -> $0.16 | L63: Yes | M63: 1000 | N63: 100
B64: אביזרים | C64: CONNECTORS | E64: PR-C13 | F64: BNC Plug (3 pc's in set -use with ratchet BNC carmping tool | G64: $0.15 | I64: Yes | J64: =SUM((G64*1.095)+((G64*1.07)*Sheet1!C$9)) -> $0.16 | L64: Yes | M64: 1000 | N64: 100
B65: אביזרים | C65: CONNECTORS | E65: PR-C14 | F65: 4CH DC splitter(1 female to 4 male) cable | G65: $0.60 | I65: Yes | J65: =SUM((G65*1.095)+((G65*1.07)*Sheet1!C$9)) -> $0.66 | L65: Yes | M65: 50 | N65: 50
B66: אביזרים | C66: CONNECTORS | E66: PTR-101V-HD-8 | F66: 1 CH HD Passive Video Balun Set, 8MP | G66: $1.60 | I66: Yes | J66: =SUM((G66*1.095)+((G66*1.07)*Sheet1!C$9)) -> $1.75 | L66: Yes | M66: 200 | N66: 50
C67: CONNECTORS | E67: PTR-102VP-HD-8 | F67: 1 CH Passive Balun HD Video And Power - Set,up to 8MP | G67: $4.50 | I67: Yes | J67: =SUM((G67*1.095)+((G67*1.07)*Sheet1!C$9)) -> $4.93 | L67: Yes | M67: 80 | N67: 10
B68: אביזרים | C68: CONNECTORS | E68: PTR-103VHP-HD | F68: 1-ch HD passive video & power balun, 24/36VDC Input. converts to 12VDC at camera side. | G68: $7.00 | I68: Yes | J68: =SUM((G68*1.095)+((G68*1.07)*Sheet1!C$9)) -> $7.67 | L68: Yes | M68: 80 | N68: 10
C69: HDMI
B70: HDMI אביזרים | C70: HDMI | E70: PR-VGAtoBNC | F70: Input: 1CH VGA Output:1CH VGA or 1CH AV convertor up to 1920*1200 | G70: $13.00 | I70: Yes | J70: N/A | L70: only from CH | M70: 40 | N70: 1
B71: HDMI אביזרים | C71: HDMI | E71: PR-HDMItoVGA | F71: HDMI to VGA converter | G71: $3.20 | I71: Yes | J71: =SUM((G71*1.095)+((G71*1.07)*Sheet1!C$12)) -> $3.50 | L71: Yes | M71: 100 | N71: 10
B72: HDMI אביזרים | C72: HDMI | E72: PR-HDEx(4K) | F72: 4K HDMI Repeater (Up to 50M) | G72: $3.50 | I72: Yes | J72: =SUM((G72*1.095)+((G72*1.07)*Sheet1!C$12)) -> $3.83 | L72: Yes | M72: 96 | N72: 12
B73: HDMI אביזרים | C73: HDMI | E73: PR-SP102(4K) | F73: 1 in 2 out 4K HDMI Splitter plastic, black | G73: $5.50 | I73: Yes | J73: =SUM((G73*1.095)+((G73*1.07)*Sheet1!C$12)) -> $6.02 | L73: Yes | M73: 64 | N73: 8
B74: HDMI אביזרים | C74: HDMI | E74: PR-SP104(4K) | F74: 1 in 4 out 4K HDMI Splitter, support 3D, with US socket | G74: $10.50 | I74: Yes | J74: =SUM((G74*1.095)+((G74*1.07)*Sheet1!C$12)) -> $11.50 | L74: Yes | M74: 10 | N74: 10
B75: HDMI אביזרים | C75: HDMI | E75: PR-SW301(4K) | F75: 3 in 1 out HDMI Switch 4k(3840*2160), plastic | G75: $5.00 | I75: Yes | J75: =SUM((G75*1.095)+((G75*1.07)*Sheet1!C$12)) -> $5.48 | L75: Yes | M75: 40 | N75: 5
B76: HDMI אביזרים | C76: HDMI | E76: PR-4IN1-Con | F76: Converter- AHD/TVI/CVI/CVBS to HDMI/VGA/AV , support up to 5MP | G76: $32.00 | I76: Yes | J76: =SUM((G76*1.095)+((G76*1.07)*Sheet1!C$12)) -> $35.04 | L76: Yes | M76: 10 | N76: 10
B77: HDMI אביזרים | C77: HDMI | E77: PR-HDoNet+ | F77: HDMI over network, extend 40-60 meters | G77: $23.00 | I77: Yes | J77: =SUM((G77*1.095)+((G77*1.07)*Sheet1!C$12)) -> $25.19 | L77: Yes | M77: 10 | N77: 10
B78: HDMI אביזרים | C78: HDMI | E78: PR-HDoNet-E | F78: HDMI over network, extend 10-20meters | G78: $8.00 | I78: Yes | J78: =SUM((G78*1.095)+((G78*1.07)*Sheet1!C$12)) -> $8.76 | L78: Yes | M78: 48 | N78: 12
B79: HDMI אביזרים | C79: HDMI | E79: PR-HDKVMoNet | F79: HDMI over cat5/5e/6 kvm +2USB with IR | G79: $74.00 | I79: Yes | J79: =SUM((G79*1.095)+((G79*1.07)*Sheet1!C$12)) -> $81.03 | L79: Yes | M79: 6 | N79: 6
C80: Others
C81: Speaker | E81: PR-HS30W | F81: 30W 12V-24V active horn speaker with 3.5mm stereo male sound input, Vol control, | G81: $46.00 | I81: Yes | J81: =SUM((G81*1.095)+((G81*1.07)*Sheet1!C$3)) -> $50.37 | L81: Yes | M81: 6 | N81: 6
C82: Video Server | E82: DVS-IP5-4 | F82: video server, H.265 4MP AHD, PoE, audio, alarm, SD, RS-485 | G82: $60.00 | I82: Yes | J82: =SUM((G82*1.095)+((G82*1.07)*Sheet1!C$3)) -> $65.70 | L82: Yes | M82: 12 | N82: 6
C83: Alarm Unit | E83: I/O-1606 | F83: USB Alarm Expansion Box, 16CH alarm input, 6CH alarm output | G83: $14.00 | I83: Yes | J83: =SUM((G83*1.095)+((G83*1.07)*Sheet1!C$3)) -> $15.33 | L83: Yes | M83: 12 | N83: 6
C84: Chime | E84: PR-Chime | F84: Internal chime for Doorbell | G84: $14.00 | I84: Yes | J84: =SUM((G84*1.095)+((G84*1.07)*Sheet1!C$3)) -> $15.33 | L84: Dec | M84: 24 | N84: 12 | O84: New model

Sheet מערכת SHOB (hidden)
B1: כותרת שו"ב החדשה
D6: מחירון שרת
D7: פריט | E7: מכיל | F7: מחיר | G7: כמות | H7: סה"כ | J7: חויית משתמש 2020
D8: ערכת בסיס | E8: 16 מצלמות | F8: ₪ 8,750.00 | H8: =F8*G8 -> ₪ 0.00
E9: 32 גלאים
E10: 4 דלתות | J10: ממשק משתמש עשיר וידידותי
E11: ממשק מפות | J11: הגדרת תרחישים פשוטה ויעילה
E12: ממשק תרחישים | J12: הפקת דו"ח אביזרים תקולים
E13: יומן אירועים | J13: ממשק לכל המערכות הקיימות בשוק
E14: מודולי שליטה | J14: ממשק מפות ויומן אירועים חי ואינטרקטיבי
E15: 2 הרשאות לעמודת עבודה | J15: פתרונות ייעודיים לפי דרישה
E16: חומרה עליה מותקנת השו"ב - לא נועד לצפית וידאו | J16: צוות פיתוח ישראלי זמין
D17: הרשאה לעמדת עבודה נוספת | E17: תוכנה בלבד | F17: ₪ 1,750.00 | H17: =F17*G17 -> ₪ 0.00
D18: הוספת קבוצת 8 דלתות | E18: הרשאה | F18: ₪ 1,750.00 | H18: =F18*G18 -> ₪ 0.00
D19: הוספת קבוצת 16 מצלמות | E19: הרשאה | F19: ₪ 1,750.00 | H19: ₪ 0.00
D20: הוספת קבוצת 32 גלאים | E20: הרשאה | F20: ₪ 1,750.00 | H20: ₪ 0.00
D21: מודול לשליחת הודעות SMS | E21: כולל מודם, לא כולל SIM | F21: ₪ 2,500.00 | H21: ₪ 0.00
D22: התקנת הספק | E22: עלות של מערך החבילה 10% לא פחות מ 4000 | H22: ₪ 0.00
D23: בניית מסך גרפי (מפה) | E23: עלות בניית מפה אחת | F23: ₪ 850.00 | H23: ₪ 0.00
D24: שרות שנתי | E24: החל מהשנה שניה | F24: 15% | H24: =SUM(H8,H17:H23)*F24 -> ₪ 0.00
D25: עלות מפתח | E25: יום עבודה | F25: ₪ 1,750.00 | H25: ₪ 0.00
D26: סה"כ עלות ללא שרות שנתי | H26: =SUM(H8,H17:H23) -> ₪ 0.00
D29: לפרטים נוספים והצעת מחיר: שגיא 09-7601346 שלוחה 217 / 050-5738835

Sheet VMS Hardware
B2: VMS Hardware
B4: Category | C4: Model | D4: Free text | E4: Description | F4: China Price | G4: Old Price | H4: China Availability | I4: Netherlands Price | J4: Old Price | K4: Netherland Availability | L4: Unit Per Carton | M4: MOQ | N4: Remarks
B5: License | C5: OC-CH | E5: Basic system- 32 ch free 33-150ch- 18$ per channel 151-300ch- 15$ per channel 301ch and up- 12$ per channel
B6: Management Server- S | C6: OC-MSCL-S(DT)-V2 | E6: Ossia VMS Management Server include 256 Licenses/ Client for OC-MS-XL(1U) /OC-MSCL-S(DT) servers | F6: $375.000 | H6: Yes | I6: =SUM((F6*1.095)+((F6*1.07)*Sheet1!C$14)) -> $410.63 | K6: Yes | L6: 6 | M6: 1
B7: Management Server- M | C7: OC-MS-M(1U) | E7: Ossia VMS Management Server include 512 Licenses | F7: $1,300.000 | H7: Yes | I7: =SUM((F7*1.095)+((F7*1.07)*Sheet1!C$14)) -> $1,423.50 | K7: Yes | L7: 6 | M7: 1
B8: Management Server- XL | C8: OC-MS-XL(1U)-V2 | E8: Ossia VMS up to 10,000ch Management Server include 512ch Licenses | F8: $2,500.000 | H8: Yes | I8: =SUM((F8*1.095)+((F8*1.07)*Sheet1!C$14)) -> $2,737.50 | K8: Yes | L8: 1 | M8: 1
B9: Recording Server | C9: OC-RS-16(3U) | E9: Ossia VMS 16HDD Recording Server with Raid and 2 PSU | F9: $4,000.000 | H9: by request | I9: N/A | K9: only from CH | L9: 1 | M9: 1
B10: Transfer Server | C10: OC-TS(1U) | E10: Ossia VMS transfer Server | F10: $2,100.000 | H10: by request | I10: N/A | K10: only from CH | L10: 1 | M10: 1 | N10: EOL- please contact us when needed
B11: Decoder | C11: DEC-0104(1U) | E11: IP Decoder, 1*HDMI input 1080P, 4*HDMI output (2*4K+ 2*1080P),1U case | F11: $440.000 | H11: Yes | I11: =SUM((F11*1.095)+((F11*1.07)*Sheet1!C$14)) -> $481.80 | K11: Yes | L11: 5 | M11: 1
B12: Joystick | C12: IP-Key02-V2 | E12: Keyboard controller for PTZ and Ossia VMS | F12: $225.000 | H12: Oct | I12: N/A | K12: only from CH | L12: 1 | M12: 1 | N12: New model

Sheet Maitainance file
A1: IPC | K1: HDC | U1: NVR | AE1: DVR | AP1: Clean
A2: Series | B2: Resolution | C2: Housing | D2: WDR | E2: Lens type | F2: Special features | G2: Analytic | K2: Resolution | L2: Housing | M2: Lens type | P2: Speical feature | U2: No. Of Channels | V2: Max Resolution | W2: HDD | X2: Dry Contact | Z2: Special Feature | AE2: Number of Channels | AF2: No. of IP Channels | AG2: HD Max Resolution | AH2: HD Max Real-Time Resolution | AI2: HDD | AJ2: Audio | AK2: Dry Contact | AP2: Model search
A3: F | B3: H | C3: I | D3: J | E3: K | F3: P | G3: Q | K3: G | L3: H | M3: I | P3: N | U3: F | V3: G | W3: K | X3: N | Z3: O | AE3: F | AF3: G | AG3: H | AH3: I | AI3: L | AJ3: N | AK3: P
A4: Series | B4: Resolution | C4: Housing | D4: WDR | E4: Lens type | F4: Special features | G4: Analytic | K4: Resolution | L4: Housing | M4: Lens type | P4: Speical feature | U4: No. Of Channels | V4: Max Resolution | W4: HDD | X4: Dry Contact | Z4: Special Feature | AE4: Number of Channels | AF4: No. of IP Channels | AG4: HD Max Resolution | AH4: HD Max Real-Time Resolution | AI4: HDD | AJ4: Audio | AK4: Dry Contact
A5: Eye-Sight | B5: 2MP | C5: Bullet | D5: DWDR | E5: Fixed | F5: I/O | G5: Camera Tampering | K5: 2MP | L5: Bullet | M5: Fixed | P5: Anti-vandal | U5: 4 | V5: 5MP | W5: 1 of 6TB Max | X5: Based on IPC Only | Z5: None PoE | AE5: 4 | AF5: up to 2 | AG5: 2MP Lite | AH5: 1MP | AI5: 1 of 6TB Max | AJ5: Based on IPC Only | AK5: Based on IPC Only
A6: S-Sight | B6: 4MP | C6: Turret/Dome | D6: True WDR | E6: Vari-Focal | F6: Audio In | G6: Standard- Line Crossing | K6: 3K | L6: Turret/Dome | M6: Vari-Focal | P6: color at night | U6: 8 | V6: 8MP | W6: 1 of 8TB Max | X6: In- 8+IPC Out- 4+IPC | Z6: with PoE | AE6: 8 | AF6: up to 4 | AG6: 5MP Lite | AH6: 2MP Lite | AI6: 1 of 8TB Max | AJ6: IN- 1+IPC Out- 1 | AK6: IN- 4+IPC Out- 1
A7: Special | B7: 6MP | C7: Fish-Eye | E7: Motorized Vari-Focal | F7: Audio Out | G7: Standard- Sterile Area | K7: 5MP | L7: Box | M7: Motorized Vari-Focal | P7: Support WDR | U7: 16 | V7: 12MP | W7: 2 of 8TB Max | X7: In- 4+IPC Out- 1+IPC | Z7: RAID | AE7: 16 | AF7: up to 6 | AG7: 8MP Lite | AH7: 2MP | AI7: 2 of 8TB Max | AJ7: IN- 4+IPC Out- 1+IPC | AK7: IN- 4+IPC Out- 1+IPC
A8: Smart-Sight | B8: 8MP | C8: Box | E8: None | F8: SD Card | G8: DDA- Line Crossing | K8: 8MP | L8: Hidden | M8: None | P8: D-WDR | U8: 32 | W8: 8 of 8TB Max | X8: In- 16+IPC Out- 1+IPC | Z8: Face | AE8: 32 | AF8: up to 8 | AG8: 8MP | AH8: 4MP Lite | AI8: 4 of 8TB max | AJ8: IN- 8+IPC Out- 1 | AK8: IN- 8+IPC Out- 2+IPC
A9: Rainbow | B9: 5MP | C9: Hidden | F9: Built-in Mic | G9: DDA- Sterile Area | L9: Dome Anti-Vandal | P9: HLC | U9: 64 | W9: 16 of 8TB Max | Z9: DDA Analytic | AF9: up to 10 | AH9: 5MP Lite | AI9: 8 of 8TB Max | AJ9: IN- 8+IPC Out- 1+IPC | AK9: IN- 16+IPC Out- 4+IPC
C10: Dome Anti-Vandal | F10: Built-in Speaker | G10: DDA- Object Counting (line) | P10: Built-in Mic | U10: 128 | Z10: FishEye | AF10: up to 12 | AI10: 1 of 10TB Max | AJ10: IN- 16+IPC Out- 1+IPC | AK10: IN- 16+IPC Out- 8+IPC
C11: Doorbell | F11: Wireless | G11: DDA- Object Counting (area) | Z11: 2*Ethernet | AF11: up to 16
F12: Color at night | G12: Item monitoring | Z12: Basic Analytic | AF12: up to 64
F13: Red/Blue Strobe Light | G13: Heat Map | Z13: LPR
F14: Check Point Protect | G14: Face Detection | Z14: Check Point Protect
F15: Wigand | G15: Face Recognition
F16: Wi-Fi | G16: LPR
G17: Active Deterrence
G18: Fire Detection
G19: Temperture alert
G20: Check Point Protect

Sheet Sheet1
B2: Items duties
B3: Cameras | C3: 0
B4: DVR | C4: 0
B5: NVR | C5: 0
B6: Power supply | C6: 0
B7: Monitor | C7: 0.14
B8: Lens | C8: 0
B9: Connectors | C9: 0
B10: UTP Baluns
B11: HOUSING AND BRACKETS | C11: 0.027
B12: HDMI | C12: 0
B13: HDD
B14: server | C14: 0
B15: PoE | C15: 0
